Directorate,Department,Expenditure Type,Ref.Doc.1,Vendor Name,Expenditure Amount (exc VAT),Payment Date
Delivery Units,Assurance,Training,1030014301,PRICEWATERHOUSE COOPERS,229.92,12/10/2023
Delivery Units,Assurance,Audit Fee,1030014802,PRICEWATERHOUSE COOPERS,"5,000.00",12/10/2023
Delivery Units,Assurance,Training,1029825202,Lewisham Council,"1,000.00",09/10/2023
Delivery Units,Assurance,Stationery,1029823202,Banner Group Limited,64.12,11/10/2023
Delivery Units,Assurance,Equipment and Materials Purcha,1029825902,ATLANTIS OFFICE LIMITED,120.00,16/10/2023
Delivery Units,Assurance,Equipment and Materials Purcha,1029827302,Madly Merch,300.00,05/10/2023
Delivery Units,Assurance,Stationery,1030283101,ITS TRAINING (UK) LTD,166.40,18/10/2023
Delivery Units,Assurance,Professional Services,1029688001,TAMESIDE METROPOLITAN BOROUGH COUNC,22.95,03/10/2023
Delivery Units,Assurance,General Office Expenses,1030662302,CABINET OFFICE,"4,120.00",30/10/2023
Delivery Units,Strategy and Resources,Other Establishments - Third P,0080070593,GLA LEVIES,"50,633.80",11/10/2023
Delivery Units,Strategy and Resources,Grant Payments,1029880602,CITY OF LONDON,"73,886.00",09/10/2023
Delivery Units,Strategy and Resources,Other Establishments - Third P,0080070364,ENVIRONMENT AGENCY,"90,498.61",03/10/2023
Delivery Units,Strategy and Resources,Grant Payments,1029977002,TRANSPORT FOR LONDON,"127,792.40",11/10/2023
Delivery Units,Strategy and Resources,Other Establishments - Third P,0080070786,LEE VALLEY REGIONAL PARK AUTH.,"32,407.20",18/10/2023
Delivery Units,Strategy and Resources,Other Services,0080071021,North London Waste Authority ,"897,742.00",26/10/2023
Delivery Units,Customer and Place,Subscriptions,1028899403,THE BARNETGROUP LIMITED,"70,000.00",16/10/2023
Delivery Units,Customer and Place,Other Agencies - Third Party P,1030136301,THE BARNETGROUP LIMITED,"-92,595.88",13/10/2023
Delivery Units,Customer and Place,Private Contractors - Third Pa,1030137301,THE BARNETGROUP LIMITED,"1,571,692.06",13/10/2023
Delivery Units,Customer and Place,Other Awards,1030137801,THE BARNETGROUP LIMITED,"-211,354.46",13/10/2023
Delivery Units,Customer and Place,Other Awards,1030139101,THE BARNETGROUP LIMITED,"-412,746.91",13/10/2023
Delivery Units,Customer and Place,Other Services,1030175801,THE BARNETGROUP LIMITED,"320,000.00",16/10/2023
Delivery Units,Customer and Place,Private Contractors - Third Pa,1030176801,THE BARNETGROUP LIMITED,"1,613,000.00",16/10/2023
Delivery Units,Customer and Place,Other Awards,1030177001,THE BARNETGROUP LIMITED,"131,000.00",16/10/2023
Delivery Units,Customer and Place,Other Agencies - Third Party P,1030177901,THE BARNETGROUP LIMITED,"224,000.00",16/10/2023
Delivery Units,Customer and Place,Other Agencies - Third Party P,1030386101,THE BARNETGROUP LIMITED,"224,000.00",20/10/2023
Delivery Units,Customer and Place,Other Services,1030386802,THE BARNETGROUP LIMITED,"320,000.00",20/10/2023
Delivery Units,Customer and Place,Other Awards,1030386901,THE BARNETGROUP LIMITED,"131,000.00",20/10/2023
Delivery Units,Customer and Place,Private Contractors - Third Pa,1030388301,THE BARNETGROUP LIMITED,"1,613,000.00",20/10/2023
Delivery Units,Customer and Place,CSG Services Contract Payment,1029641102,IDOX SOFTWARE LIMITED,"139,862.18",12/10/2023
Delivery Units,Customer and Place,Professional Services,1029691701,Capita Property & Infrastructure Ltd,"2,124.02",04/10/2023
Delivery Units,Customer and Place,Professional Services,1030061701,PeopleScout Limited,514.53,12/10/2023
Delivery Units,Customer and Place,Professional Services,1030063201,PeopleScout Limited,438.60,12/10/2023
Delivery Units,Customer and Place,Professional Services,1030277701,PeopleScout Limited,533.51,18/10/2023
Delivery Units,Customer and Place,Professional Services,1030547501,PeopleScout Limited,495.54,25/10/2023
Delivery Units,Customer and Place,Professional Services,1030704601,PeopleScout Limited,647.39,31/10/2023
Delivery Units,Customer and Place,Professional Services,1030434401,CAPITA BUSINESS SERVICES LTD,"6,250.12",23/10/2023
Delivery Units,Childrens Service DSG,Education CFR Funding Advances,0050072937,Barnet Special Education Trust T/A,"24,305.50",18/10/2023
Delivery Units,Childrens Service DSG,Education CFR Funding Advances,0050072749,DANEGROVE PRIMARY SCHOOL,"239,866.99",18/10/2023
Delivery Units,Childrens Service DSG,Education CFR Funding Advances,0050073161,DANEGROVE PRIMARY SCHOOL,"7,322.50",18/10/2023
Delivery Units,Childrens Service DSG,Education CFR Funding Advances,0050073247,DANEGROVE PRIMARY SCHOOL,"3,425.63",18/10/2023
Delivery Units,Childrens Service DSG,Education CFR Funding Advances,0050073307,Claremont Primary School Academy,"7,490.00",18/10/2023
Delivery Units,Childrens Service DSG,Education CFR Funding Advances,0050073319,PARKFIELD ACADEMY,"1,490.55",18/10/2023
Delivery Units,Childrens Service DSG,Education CFR Funding Advances,0050073322,Summerside Primary Academy,"28,469.45",18/10/2023
Delivery Units,Childrens Service DSG,Education CFR Funding Advances,0050073324,Watling Park School,"13,806.20",18/10/2023
Delivery Units,Childrens Service DSG,Education CFR Funding Advances,0050073340,Alma Primary,"6,580.00",18/10/2023
Delivery Units,Childrens Service DSG,Education CFR Funding Advances,0050073344,BROADFIELDS ACADEMY,"6,580.00",18/10/2023
Delivery Units,Childrens Service DSG,Education CFR Funding Advances,0050073368,PARKFIELD ACADEMY,"14,805.00",18/10/2023
Delivery Units,Childrens Service DSG,Education CFR Funding Advances,0050073380,Summerside Primary Academy,"3,290.00",18/10/2023
Delivery Units,Childrens Service DSG,Education CFR Funding Advances,0050073330,St Andrew the Apostle,"2,101.69",18/10/2023
Delivery Units,Childrens Service DSG,Education CFR Funding Advances,0050073331,Bishop Douglass Catholic School Academy,"51,239.48",18/10/2023
Delivery Units,Childrens Service DSG,Education CFR Funding Advances,0050073332,THE COMPTON SCHOOL,"2,072.50",18/10/2023
Delivery Units,Childrens Service DSG,Education CFR Funding Advances,0050073333,COPTHALL SCHOOL (ACADEMY),"2,812.68",18/10/2023
Delivery Units,Childrens Service DSG,Education CFR Funding Advances,0050073335,HENDON SCHOOL (ACADEMY),"1,996.60",18/10/2023
Delivery Units,Childrens Service DSG,Education CFR Funding Advances,0050073336,Saracens High School,"1,103.39",18/10/2023
Delivery Units,Childrens Service DSG,Education CFR Funding Advances,0050073339,WHITEFIELD SCHOOL ACADEMY TRUST CO.,"14,186.40",18/10/2023
Delivery Units,Childrens Service DSG,Education CFR Funding Advances,0050073343,Bishop Douglass Catholic School Academy,"45,964.00",18/10/2023
Delivery Units,Childrens Service DSG,Education CFR Funding Advances,0050073350,THE COMPTON SCHOOL,"15,322.00",18/10/2023
Delivery Units,Childrens Service DSG,Education CFR Funding Advances,0050073361,HENDON SCHOOL (ACADEMY),"61,289.00",18/10/2023
Delivery Units,Childrens Service DSG,Education CFR Funding Advances,0050073369,QUEEN ELIZABETH'S GIRLS ACADEMY,"21,888.00",18/10/2023
Delivery Units,Childrens Service DSG,Education CFR Funding Advances,0050073373,St Andrew the Apostle,"17,511.00",18/10/2023
Delivery Units,Childrens Service DSG,Education CFR Funding Advances,0050073384,WHITEFIELD SCHOOL ACADEMY TRUST CO.,"15,321.00",18/10/2023
Delivery Units,Customer and Place,Building Repairs & Maintenance,1027795903,Sureserve Fire & Electrical Ltd,"4,303.15",02/10/2023
Delivery Units,Customer and Place,Building Repairs & Maintenance,1028704003,Orion Building Engineering Services Ltd,"3,130.00",03/10/2023
Delivery Units,Customer and Place,Building Repairs & Maintenance,1028946203,RGE SERVICES,384.41,12/10/2023
Delivery Units,Customer and Place,Building Repairs & Maintenance,1028948503,RGE SERVICES,599.92,12/10/2023
Delivery Units,Customer and Place,Building Repairs & Maintenance,1028949003,RGE SERVICES,355.51,12/10/2023
Delivery Units,Customer and Place,Building Repairs & Maintenance,1028950103,RGE SERVICES,261.34,12/10/2023
Delivery Units,Customer and Place,Building Repairs & Maintenance,1029051703,RGE SERVICES,484.32,12/10/2023
Delivery Units,Customer and Place,Building Repairs & Maintenance,1029149803,RGE SERVICES,230.00,12/10/2023
Delivery Units,Customer and Place,Building Repairs & Maintenance,1029315003,Sureserve Fire & Electrical Ltd,201.14,03/10/2023
Delivery Units,Customer and Place,Building Repairs & Maintenance,1029414602,Orion Building Engineering Services Ltd,"3,117.50",02/10/2023
Delivery Units,Customer and Place,Other Services,1029821302,S W Bruce & Co Ltd,"95,090.01",12/10/2023
Delivery Units,Customer and Place,Building Repairs & Maintenance,1029824802,Mattei Compressors Ltd,"1,202.03",10/10/2023
Delivery Units,Customer and Place,Building Repairs & Maintenance,1029881402,Sureserve Fire & Electrical Ltd,42.50,25/10/2023
Delivery Units,Customer and Place,Building Repairs & Maintenance,1029926001,Riverside Environmental Services LTD,575.00,09/10/2023
Delivery Units,Customer and Place,Building Repairs & Maintenance,1029926401,Riverside Environmental Services LTD,"12,400.00",09/10/2023
Delivery Units,Customer and Place,Building Repairs & Maintenance,1029927001,Riverside Environmental Services LTD,"2,873.00",09/10/2023
Delivery Units,Customer and Place,Building Repairs & Maintenance,1029927801,Riverside Environmental Services LTD,"5,298.00",09/10/2023
Delivery Units,Childrens Family Services,Miscellaneous Expenses,1029816601,Charitylog (Dizions Ltd),660.00,05/10/2023
Delivery Units,Childrens Family Services,Stationery,1029973302,ATLANTIS OFFICE LIMITED,155.00,13/10/2023
Delivery Units,Childrens Family Services,Professional Services,1028904203,ISS Mediclean,430.00,04/10/2023
Delivery Units,Childrens Service DSG,Other Establishments - Third P,0050072990,PARKFIELD ACADEMY,366.06,18/10/2023
Delivery Units,Childrens Service DSG,Other Establishments - Third P,0050072996,THE HYDE EF ACADEMY,281.69,18/10/2023
Delivery Units,Childrens Service DSG,Other Establishments - Third P,0050073059,BROADFIELDS ACADEMY,828.37,18/10/2023
Delivery Units,Childrens Service DSG,Education CFR Funding Advances,0020067440,BEIS SOROH SCHNEIRER,"34,844.68",23/10/2023
Delivery Units,Childrens Service DSG,Education CFR Funding Advances,0020067444,BROADFIELDS ACADEMY,"13,567.84",23/10/2023
Delivery Units,Childrens Service DSG,Education CFR Funding Advances,0020067451,BEIS CHINUCH PRIMARY SCHOOL,"39,517.52",23/10/2023
Delivery Units,Childrens Service DSG,Education CFR Funding Advances,0020067454,Finchley Yochien,"2,514.32",23/10/2023
Delivery Units,Childrens Service DSG,Education CFR Funding Advances,0020067458,HENDON PREPARATORY SCHOOL,"4,250.63",23/10/2023
Delivery Units,Childrens Service DSG,Education CFR Funding Advances,0020067464,The Mill Hill Foundation,"4,933.76",23/10/2023
Delivery Units,Childrens Service DSG,Education CFR Funding Advances,0020067470,Millbrook Park Primary School,"16,651.44",23/10/2023
Delivery Units,Childrens Service DSG,Education CFR Funding Advances,0020067472,NANCY REUBEN PRIMARY SCHOOL,"19,118.32",23/10/2023
Delivery Units,Childrens Service DSG,Education CFR Funding Advances,0020067476,PARKFIELD ACADEMY,"18,501.60",23/10/2023
Delivery Units,Childrens Service DSG,Education CFR Funding Advances,0020067477,Peninim Primary School,"5,858.84",23/10/2023
Delivery Units,Childrens Service DSG,Education CFR Funding Advances,0020067481,St Anthony's School for Girls,434.87,23/10/2023
Delivery Units,Childrens Service DSG,Education CFR Funding Advances,0020067485,ST MARTIN'S SCHOOL,"4,957.48",23/10/2023
Delivery Units,Childrens Service DSG,Education CFR Funding Advances,0020067488,Summerside Primary Academy,"8,396.88",23/10/2023
Delivery Units,Childrens Service DSG,Education CFR Funding Advances,0020067490,THE HYDE EF ACADEMY,"13,971.08",23/10/2023
Delivery Units,Childrens Service DSG,Private Contractors - Third Pa,0080071077,PUDDLEDUCKS NURSERIES,"1,389.19",30/10/2023
Delivery Units,Childrens Service DSG,Private Contractors - Third Pa,0080071079,GREENWICH LEISURE LTD,"1,681.20",30/10/2023
Delivery Units,Childrens Service DSG,Private Contractors - Third Pa,0080070928,Barnet Early Years Alliance (BEYA),"1,807.20",23/10/2023
Delivery Units,Childrens Service DSG,Private Contractors - Third Pa,0080071078,JOEL DAY NURSERY,"1,130.05",30/10/2023
Delivery Units,Childrens Service DSG,Private Contractors - Third Pa,0080071080,Buckingham Montessori School,"1,807.20",30/10/2023
Delivery Units,Childrens Service DSG,Private Contractors - Third Pa,0080071081,ABRACADABRA PRE-SCHOOL NURSERY,"1,731.60",30/10/2023
Delivery Units,Childrens Service DSG,Private Contractors - Third Pa,0080071082,LITTLE LEO'S NURSERY,"1,443.00",30/10/2023
Delivery Units,Childrens Service DSG,Private Contractors - Third Pa,0080071084,ABRACADABRA PRE-SCHOOL NURSERY,"1,782.00",30/10/2023
Delivery Units,Childrens Service DSG,Private Contractors - Third Pa,0080071085,The Finchley Day Nursery,"1,979.73",30/10/2023
Delivery Units,Childrens Service DSG,Private Contractors - Third Pa,0080071086,Kana Nurseries Ltd,"1,756.80",30/10/2023
Delivery Units,Childrens Service DSG,Private Contractors - Third Pa,0080071090,SPARKLER'S  NURSERY,"1,756.80",30/10/2023
Delivery Units,Childrens Service DSG,Private Contractors - Third Pa,0080071091,WEST HENDON PRE-SCHOOL,"1,756.80",30/10/2023
Delivery Units,Childrens Service DSG,Private Contractors - Third Pa,0080071083,Kidz Choice Nursery,"1,610.40",30/10/2023
Delivery Units,Childrens Service DSG,Private Contractors - Third Pa,0080071089,Kidz Choice Nursery,"1,656.60",30/10/2023
Delivery Units,Childrens Service DSG,Private Contractors - Third Pa,0080071076,ALYSON SHANNON CHILDCARE,"1,150.62",30/10/2023
Delivery Units,Childrens Family Services,Cleaning and domestic material,1030062801,Cleantec Services Ltd,"1,217.44",12/10/2023
Delivery Units,Childrens Family Services,Equipment and Materials Purcha,1030184602,ClearCall2000 LTD,41.86,16/10/2023
Delivery Units,Childrens Family Services,Other Services,1030284201,LEE SECURITY LONDON LIMITED,77.00,18/10/2023
Delivery Units,Childrens Family Services,Cleaning and domestic material,1030284301,G.B.HOLDINGS LTD,48.90,18/10/2023
Delivery Units,Childrens Family Services,Cleaning and domestic material,1030482101,Cleantec Services Ltd,"1,217.44",24/10/2023
Delivery Units,Childrens Family Services,Equipment and Materials Purcha,1029411802,LEE SECURITY LONDON LIMITED,"1,530.00",02/10/2023
Delivery Units,Childrens Family Services,Cleaning and domestic material,1029763601,Norse Commercial Services Ltd,704.36,04/10/2023
Delivery Units,Childrens Family Services,Equipment and Materials Purcha,1029764502,Norse Commercial Services Ltd,64.25,05/10/2023
Delivery Units,Childrens Family Services,Cleaning and domestic material,1029881301,Norse Commercial Services Ltd,470.00,06/10/2023
Delivery Units,Childrens Family Services,Other Agencies - Third Party P,1030345302,KENT COUNTY COUNCIL (KCS),270.45,20/10/2023
Delivery Units,Childrens Family Services,Equipment and Materials Purcha,1029412102,LEE SECURITY LONDON LIMITED,"1,186.90",02/10/2023
Delivery Units,Childrens Family Services,Equipment and Materials Purcha,1029763001,Norse Commercial Services Ltd,61.58,04/10/2023
Delivery Units,Childrens Family Services,Cleaning and domestic material,1029764102,Norse Commercial Services Ltd,528.42,05/10/2023
Delivery Units,Childrens Family Services,Water Services,1029882101,2468 LTD,95.21,06/10/2023
Delivery Units,Childrens Family Services,Equipment and Materials Purcha,1030345101,G.B.HOLDINGS LTD,55.65,19/10/2023
Delivery Units,Childrens Family Services,Other Energy,1030135102,KENT COUNTY COUNCIL (KCS),43.81,13/10/2023
Delivery Units,Childrens Family Services,Other Services,1030012601,BLUE 9 SECURITY LIMITED,"2,365.74",11/10/2023
Delivery Units,Childrens Family Services,Other Services,1030013101,BLUE 9 SECURITY LIMITED,"1,556.94",11/10/2023
Delivery Units,Childrens Family Services,Other Services,1030013301,BLUE 9 SECURITY LIMITED,"2,042.22",11/10/2023
Delivery Units,Childrens Family Services,Other Services,1030013401,BLUE 9 SECURITY LIMITED,404.40,11/10/2023
Delivery Units,Childrens Family Services,Other Services,1030013501,BLUE 9 SECURITY LIMITED,"2,186.10",11/10/2023
Delivery Units,Childrens Family Services,Other Services,1030013601,BLUE 9 SECURITY LIMITED,"2,608.38",12/10/2023
Delivery Units,Childrens Family Services,Other Services,1030014101,BLUE 9 SECURITY LIMITED,80.88,11/10/2023
Delivery Units,Childrens Family Services,Other Services,1030014701,BLUE 9 SECURITY LIMITED,80.88,11/10/2023
Delivery Units,Childrens Family Services,Other Services,1030178101,BLUE 9 SECURITY LIMITED,262.86,16/10/2023
Delivery Units,Childrens Family Services,Other Services,1030279101,1ST CONTAINERS UK LIMITED,30.00,18/10/2023
Delivery Units,Childrens Family Services,Other Services,1030280401,Enigma CCTV Ltd,"3,649.55",18/10/2023
Delivery Units,Childrens Family Services,Books-CDs-Audio-Video,0021007181,DX NETWORK SERVICES LTD,10.64,06/10/2023
Delivery Units,Childrens Family Services,Books-CDs-Audio-Video,0021007182,ASKEWS & HOLTS LIBRARY SERVICES LTD,11.56,06/10/2023
Delivery Units,Childrens Family Services,Books-CDs-Audio-Video,0021007186,ASKEWS & HOLTS LIBRARY SERVICES LTD,11.56,06/10/2023
Delivery Units,Childrens Family Services,Books-CDs-Audio-Video,0021007187,ASKEWS & HOLTS LIBRARY SERVICES LTD,11.56,06/10/2023
Delivery Units,Childrens Family Services,Books-CDs-Audio-Video,0021007192,Mill Hill Newsagents Ltd,142.10,09/10/2023
Delivery Units,Childrens Family Services,Books-CDs-Audio-Video,0021007196,ASKEWS & HOLTS LIBRARY SERVICES LTD,11.56,09/10/2023
Delivery Units,Childrens Family Services,Books-CDs-Audio-Video,0021007202,ASKEWS & HOLTS LIBRARY SERVICES LTD,11.56,09/10/2023
Delivery Units,Childrens Family Services,Books-CDs-Audio-Video,0021007205,Latitude Mapping Ltd,223.86,09/10/2023
Delivery Units,Childrens Family Services,Books-CDs-Audio-Video,0021007211,ASKEWS & HOLTS LIBRARY SERVICES LTD,11.56,09/10/2023
Delivery Units,Childrens Family Services,Books-CDs-Audio-Video,0021007214,ASKEWS & HOLTS LIBRARY SERVICES LTD,11.56,09/10/2023
Delivery Units,Childrens Family Services,Books-CDs-Audio-Video,0021007215,ASKEWS & HOLTS LIBRARY SERVICES LTD,11.56,09/10/2023
Delivery Units,Childrens Family Services,Books-CDs-Audio-Video,0021007222,ASKEWS & HOLTS LIBRARY SERVICES LTD,11.56,09/10/2023
Delivery Units,Childrens Family Services,Books-CDs-Audio-Video,0021007227,ASKEWS & HOLTS LIBRARY SERVICES LTD,11.56,09/10/2023
Delivery Units,Childrens Family Services,Books-CDs-Audio-Video,0021007228,ASKEWS & HOLTS LIBRARY SERVICES LTD,11.56,09/10/2023
Delivery Units,Childrens Family Services,Books-CDs-Audio-Video,0021007245,ASKEWS & HOLTS LIBRARY SERVICES LTD,12.68,17/10/2023
Delivery Units,Childrens Family Services,Books-CDs-Audio-Video,0021007256,Malhotra News Agent Ltd,291.30,19/10/2023
Delivery Units,Childrens Family Services,Books-CDs-Audio-Video,0021007257,ASKEWS & HOLTS LIBRARY SERVICES LTD,725.35,19/10/2023
Delivery Units,Childrens Family Services,Books-CDs-Audio-Video,0021007283,ASKEWS & HOLTS LIBRARY SERVICES LTD,4.89,30/10/2023
Delivery Units,Childrens Family Services,Books-CDs-Audio-Video,0021007286,ASKEWS & HOLTS LIBRARY SERVICES LTD,9.00,30/10/2023
Delivery Units,Childrens Family Services,Books-CDs-Audio-Video,0021007288,ASKEWS & HOLTS LIBRARY SERVICES LTD,71.34,30/10/2023
Delivery Units,Childrens Family Services,Books-CDs-Audio-Video,0021007295,ASKEWS & HOLTS LIBRARY SERVICES LTD,71.34,30/10/2023
Delivery Units,Childrens Family Services,Books-CDs-Audio-Video,0021007334,ASKEWS & HOLTS LIBRARY SERVICES LTD,155.34,30/10/2023
Delivery Units,Childrens Family Services,Books-CDs-Audio-Video,0021007337,ASKEWS & HOLTS LIBRARY SERVICES LTD,25.76,30/10/2023
Delivery Units,Childrens Family Services,Books-CDs-Audio-Video,0021007191,CONFAGS,265.30,09/10/2023
Delivery Units,Childrens Family Services,Cleaning and domestic material,1029974801,Norse Commercial Services Ltd,"2,648.54",10/10/2023
Delivery Units,Childrens Family Services,Cleaning and domestic material,1030012401,Norse Commercial Services Ltd,"2,338.11",11/10/2023
Delivery Units,Childrens Family Services,Other Services,1030014001,Norse Commercial Services Ltd,34.83,11/10/2023
Delivery Units,Childrens Family Services,Laundry and Dry Cleaning,1030064901,PHS GROUP LTD,271.60,13/10/2023
Delivery Units,Childrens Family Services,Other Services,1029500101,Norse Commercial Services Ltd,-49.20,03/10/2023
Delivery Units,Childrens Family Services,Other Services,1029500501,Norse Commercial Services Ltd,-43.96,03/10/2023
Delivery Units,Childrens Family Services,Other Services,1030014201,Norse Commercial Services Ltd,67.33,11/10/2023
Delivery Units,Childrens Family Services,Cleaning and domestic material,1029974101,Norse Commercial Services Ltd,528.42,10/10/2023
Delivery Units,Childrens Family Services,Other Services,1029975901,Norse Commercial Services Ltd,17.00,10/10/2023
Delivery Units,Childrens Family Services,Equipment and Materials Repair,1029644703,WATES PROPERTY SERVICES LTD,"1,681.25",18/10/2023
Delivery Units,Childrens Family Services,Other Services,1029923302,Norse Commercial Services Ltd,-26.23,10/10/2023
Delivery Units,Childrens Family Services,Other Services,1029925402,Norse Commercial Services Ltd,-10.70,10/10/2023
Delivery Units,Childrens Family Services,Cleaning and domestic material,1029976001,Norse Commercial Services Ltd,"1,165.84",10/10/2023
Delivery Units,Childrens Family Services,Other Services,1029976201,Norse Commercial Services Ltd,29.58,10/10/2023
Delivery Units,Childrens Family Services,Laundry and Dry Cleaning,1030566802,PHS GROUP LTD,133.93,25/10/2023
Delivery Units,Childrens Family Services,Cleaning and domestic material,1030010301,Herts FullStop,47.80,12/10/2023
Delivery Units,Childrens Family Services,Cleaning and domestic material,1030010901,Herts FullStop,51.44,12/10/2023
Delivery Units,Childrens Family Services,Other Services,1029969001,Norse Commercial Services Ltd,17.00,11/10/2023
Delivery Units,Childrens Family Services,Cleaning and domestic material,1029975501,Norse Commercial Services Ltd,527.87,10/10/2023
Delivery Units,Childrens Family Services,Other Services,1029969701,Norse Commercial Services Ltd,30.42,11/10/2023
Delivery Units,Childrens Family Services,Cleaning and domestic material,1029971501,Norse Commercial Services Ltd,705.28,11/10/2023
Delivery Units,Childrens Family Services,Rates,1029925501,Wilks Head and Eve LLP,227.50,09/10/2023
Delivery Units,Childrens Family Services,Cleaning and domestic material,1029968401,Norse Commercial Services Ltd,528.42,11/10/2023
Delivery Units,Childrens Family Services,Other Services,1029975001,Norse Commercial Services Ltd,21.25,10/10/2023
Delivery Units,Childrens Family Services,Other Services,1029924201,Norse Commercial Services Ltd,25.92,09/10/2023
Delivery Units,Childrens Family Services,Cleaning and domestic material,1029927301,Norse Commercial Services Ltd,703.90,09/10/2023
Delivery Units,Childrens Family Services,Gas,1030388902,KENT COUNTY COUNCIL (KCS),33.90,20/10/2023
Delivery Units,Childrens Family Services,Books-CDs-Audio-Video,1030287101,ASKEWS & HOLTS LIBRARY SERVICES LTD,447.49,19/10/2023
Delivery Units,Childrens Family Services,Books-CDs-Audio-Video,1030287301,ASKEWS & HOLTS LIBRARY SERVICES LTD,10.10,18/10/2023
Delivery Units,Childrens Family Services,Books-CDs-Audio-Video,1030287801,ASKEWS & HOLTS LIBRARY SERVICES LTD,371.32,18/10/2023
Delivery Units,Childrens Family Services,Books-CDs-Audio-Video,1030287901,ASKEWS & HOLTS LIBRARY SERVICES LTD,233.10,18/10/2023
Delivery Units,Childrens Family Services,Books-CDs-Audio-Video,1030288802,ASKEWS & HOLTS LIBRARY SERVICES LTD,42.66,18/10/2023
Delivery Units,Childrens Family Services,Books-CDs-Audio-Video,1030337501,ASKEWS & HOLTS LIBRARY SERVICES LTD,8.91,19/10/2023
Delivery Units,Strategy and Resources,Advertising,1029554102,GOOD IMPRESSIONS (LONDON) LIMITED,270.00,03/10/2023
Delivery Units,Strategy and Resources,Publications,1030391302,Southern Sports Ltd,57.95,23/10/2023
Delivery Units,Assurance,Postage,1029686301,ROYAL MAIL GROUP LIMITED,99.90,03/10/2023
Delivery Units,Assurance,Equipment and Materials Purcha,1030185002,ATLANTIS OFFICE LIMITED,202.94,17/10/2023
Delivery Units,Assurance,Clothing - Uniforms,1030231601,Clothes2Order,223.44,17/10/2023
Delivery Units,Assurance,Other Services,1030281601,Civica Election Services Limit,38.15,18/10/2023
Delivery Units,Assurance,Postage,1030282001,ROYAL MAIL GROUP LIMITED,102.66,18/10/2023
Delivery Units,Assurance,Other Services,1030282201,Civica Election Services Limit,515.00,18/10/2023
Delivery Units,Assurance,Training,1030282301,Democracy Counts Limited,645.00,18/10/2023
Delivery Units,Assurance,Other Services,1030282501,Civica Election Services Limit,111.29,18/10/2023
Delivery Units,Assurance,Other Services,1030282701,Civica Election Services Limit,"44,501.01",18/10/2023
Delivery Units,Assurance,Other Services,1030283201,Democracy Counts Limited,"1,336.45",18/10/2023
Delivery Units,Assurance,Training,1030180801,ASSOCIATION OF ELECTORAL ADMINISTRA,47.50,16/10/2023
Delivery Units,Assurance,Training,1030629601,ASSOCIATION OF ELECTORAL ADMINISTRA,"1,350.00",27/10/2023
Delivery Units,Assurance,Subscriptions,1029691401,Association of Democratic Services Offic,467.50,03/10/2023
Delivery Units,Assurance,Equipment and Materials Purcha,1030343002,Auditel Systems,"2,085.00",20/10/2023
Delivery Units,Assurance,Grounds maintenance,1030709501,D & R SIMMONS LIMITED,360.00,31/10/2023
Delivery Units,Assurance,Miscellaneous Expenses,0080070287,London Mayors' Association,121.00,06/10/2023
Delivery Units,Assurance,Training,1030628601,Link Support Services (UK) Ltd,"1,675.00",27/10/2023
Delivery Units,Childrens Family Services,Legal and Court Fees,0070197191,GT Stewart Limited,350.00,09/10/2023
Delivery Units,Customer and Place,Professional Services,1030342202,LONDON COUNCILS,"3,500.00",19/10/2023
Delivery Units,Customer and Place,Equipment and Materials Purcha,1029763302,Solo Protect Ltd,"1,361.04",12/10/2023
Delivery Units,Customer and Place,Equipment and Materials Purcha,1029649202,STORM ENVIRONMENTAL LTD,73.80,05/10/2023
Delivery Units,Customer and Place,Equipment and Materials Purcha,1030659701,STORM ENVIRONMENTAL LTD,"2,025.00",30/10/2023
Delivery Units,Customer and Place,Equipment and Materials Purcha,1030662901,STORM ENVIRONMENTAL LTD,"3,375.00",30/10/2023
Delivery Units,Customer and Place,Equipment and Materials Purcha,1030227001,KB Extruders,"8,889.46",17/10/2023
Delivery Units,Customer and Place,Haz waste Collections,1030482401,CITY OF LONDON,"26,273.26",24/10/2023
Delivery Units,Customer and Place,Clothing - Protective Clothing,1029552902,SMI INT Group Ltd,987.50,02/10/2023
Delivery Units,Customer and Place,Clothing - Protective Clothing,1029553702,SMI INT Group Ltd,90.20,02/10/2023
Delivery Units,Customer and Place,CSG Services Contract Payment,1030231902,Agile Applications Ltd,"8,975.00",18/10/2023
Delivery Units,Customer and Place,Training,1030339402,SKILLS TRAINING CENTRE LTD,240.00,20/10/2023
Delivery Units,Customer and Place,Training,1030342402,SKILLS TRAINING CENTRE LTD,"4,640.00",20/10/2023
Delivery Units,Customer and Place,Training,1030344102,SKILLS TRAINING CENTRE LTD,650.00,24/10/2023
Delivery Units,Customer and Place,Training,1030388702,SKILLS TRAINING CENTRE LTD,"2,413.00",23/10/2023
Delivery Units,Customer and Place,General Office Expenses,1030598001,ATLANTIS OFFICE LIMITED,73.99,26/10/2023
Delivery Units,Customer and Place,Clothing - Protective Clothing,1030661501,SMI INT Group Ltd,322.60,31/10/2023
Delivery Units,Customer and Place,Equipment and Materials Purcha,1030339201,Austen Group Ltd,470.00,19/10/2023
Delivery Units,Customer and Place,Equipment and Materials Purcha,1030483801,Austen Group Ltd,470.00,24/10/2023
Delivery Units,Adults and Health,Other Agencies - Third Party P,1029592202,THE BARNETGROUP LIMITED,306.12,02/10/2023
Delivery Units,Adults and Health,Software Licences & Support,1029886401,Access UK Ltd,"1,389.75",06/10/2023
Delivery Units,Adults and Health,Ttl IT & Comms,1029888001,Access UK Ltd,"9,067.50",06/10/2023
Delivery Units,Adults and Health,Other Services,1026901602,BARNET EDUCATION AND LEARNING,469.24,03/10/2023
Delivery Units,Adults and Health,Other Services,1029820702,M A Education Ltd,"3,600.00",06/10/2023
Delivery Units,Adults and Health,Consultants Fees,1029975101,PPL (Private Public Ltd) Consulting,"23,985.00",10/10/2023
Delivery Units,Adults and Health,Consultants Fees,1029977501,PPL (Private Public Ltd) Consulting,"88,909.00",10/10/2023
Delivery Units,Public Health,Health authorities - Third Par,1030277502,Central & North West London NHS FT,"3,103.30",18/10/2023
Delivery Units,Public Health,Health authorities - Third Par,1030278402,Central & North West London NHS FT,"11,500.00",19/10/2023
Delivery Units,Public Health,Health authorities - Third Par,1030278802,Central & North West London NHS FT,"489,438.75",19/10/2023
Delivery Units,Public Health,Health authorities - Third Par,1030626802,Central & North West London NHS FT,"2,529.21",27/10/2023
Delivery Units,Public Health,Health authorities - Third Par,1024731003,University Hospitals Birmingham,343.04,24/10/2023
Delivery Units,Public Health,Health authorities - Third Par,1026595003,London North West Healthcare NHS Trust,"2,517.19",17/10/2023
Delivery Units,Public Health,Health authorities - Third Par,1028548603,University Hospitals Birmingham,150.00,24/10/2023
Delivery Units,Public Health,Health authorities - Third Par,1029465602,The Royal Wolverhampton NHS Trust,137.00,02/10/2023
Delivery Units,Public Health,Health authorities - Third Par,1029647002,Guy's and St Thomas' NHS FT,"5,079.00",02/10/2023
Delivery Units,Public Health,Health authorities - Third Par,1029647302,London North West Healthcare NHS Trust,"5,870.10",02/10/2023
Delivery Units,Public Health,Health authorities - Third Par,1029647902,CENTRAL LONDONCOMMUNITY HEALTHCARE,384.06,02/10/2023
Delivery Units,Public Health,Health authorities - Third Par,1029648202,CENTRAL LONDONCOMMUNITY HEALTHCARE,962.00,02/10/2023
Delivery Units,Public Health,Health authorities - Third Par,1030277902,Barts Health NHS Trust,"2,691.00",18/10/2023
Delivery Units,Public Health,Health authorities - Third Par,1030278202,Homerton University Hospital,6.08,19/10/2023
Delivery Units,Public Health,Health authorities - Third Par,1030278302,Barts Health NHS Trust,"2,691.00",18/10/2023
Delivery Units,Public Health,Health authorities - Third Par,1030278702,Barts Health NHS Trust,"2,691.00",18/10/2023
Delivery Units,Public Health,Health authorities - Third Par,1030486002,Homerton University Hospital,"1,645.50",24/10/2023
Delivery Units,Public Health,Health authorities - Third Par,1030489302,CENTRAL LONDONCOMMUNITY HEALTHCARE,"1,228.00",24/10/2023
Delivery Units,Public Health,Health authorities - Third Par,1030540702,Royal Berkshire NHS Foundation Trust,131.00,25/10/2023
Delivery Units,Public Health,Health authorities - Third Par,1030704102,CENTRAL LONDONCOMMUNITY HEALTHCARE,"2,292.00",31/10/2023
Delivery Units,Public Health,Health authorities - Third Par,1030062402,Change Grow Live Services Ltd,"1,174,699.68",12/10/2023
Delivery Units,Public Health,Health authorities - Third Par,1030011101,Change Grow Live Services Ltd,"49,885.12",11/10/2023
Delivery Units,Adults and Health,Professional Services,1029549803,Recruitment Team Nine Limited,"1,475.00",23/10/2023
Delivery Units,Adults and Health,Professional Services,1029590802,AMIN ENTERPRISE LTD,175.00,02/10/2023
Delivery Units,Adults and Health,Professional Services,1029592302,AMIN ENTERPRISE LTD,175.00,02/10/2023
Delivery Units,Adults and Health,Professional Services,1029593602,AMIN ENTERPRISE LTD,175.00,02/10/2023
Delivery Units,Adults and Health,Professional Services,1029886701,Recruitment Team Nine Limited,"1,180.00",06/10/2023
Delivery Units,Adults and Health,Translation Exp / Interpret,1029923201,Thebigword Group Ltd,82.43,09/10/2023
Delivery Units,Adults and Health,Professional Services,1030177602,Recruitment Team Nine Limited,885.00,19/10/2023
Delivery Units,Adults and Health,Professional Services,1030233802,AMIN ENTERPRISE LTD,190.30,17/10/2023
Delivery Units,Adults and Health,Professional Services,1030233902,AMIN ENTERPRISE LTD,175.00,17/10/2023
Delivery Units,Adults and Health,Professional Services,1030234102,Aisa Medical Ltd,"5,425.00",17/10/2023
Delivery Units,Adults and Health,Professional Services,1030234302,AMIN ENTERPRISE LTD,175.00,17/10/2023
Delivery Units,Adults and Health,Professional Services,1030235302,AMIN ENTERPRISE LTD,190.00,17/10/2023
Delivery Units,Adults and Health,Professional Services,1030391102,Recruitment Team Nine Limited,"1,180.00",20/10/2023
Delivery Units,Adults and Health,Professional Services,1030391802,AMIN ENTERPRISE LTD,192.10,20/10/2023
Delivery Units,Adults and Health,Professional Services,1030393202,POhWER,197.87,20/10/2023
Delivery Units,Adults and Health,Professional Services,1030393602,CMG Consultants Limited,"1,400.00",26/10/2023
Delivery Units,Adults and Health,Professional Services,1030393802,CMG Consultants Limited,"7,000.00",20/10/2023
Delivery Units,Adults and Health,Professional Services,1030393902,POhWER,184.49,20/10/2023
Delivery Units,Adults and Health,Professional Services,1030394102,POhWER,183.08,20/10/2023
Delivery Units,Adults and Health,Professional Services,1030394301,Kabe Limited,"1,066.65",20/10/2023
Delivery Units,Adults and Health,Professional Services,1030394601,Kabe Limited,"1,400.00",20/10/2023
Delivery Units,Adults and Health,Professional Services,1030394902,Peaceable Habitation Ltd,640.00,23/10/2023
Delivery Units,Adults and Health,Professional Services,1030431201,Eduhez Ltd,"3,150.00",23/10/2023
Delivery Units,Adults and Health,Professional Services,1030487702,AMIN ENTERPRISE LTD,190.30,24/10/2023
Delivery Units,Adults and Health,Professional Services,1030488002,KMCA Consultancy Services Ltd,"3,900.00",24/10/2023
Delivery Units,Adults and Health,Professional Services,1030600502,Recruitment Team Nine Limited,295.00,27/10/2023
Delivery Units,Adults and Health,Professional Services,1030700101,Action First Assessment Ltd,"1,340.00",31/10/2023
Delivery Units,Adults and Health,Other Services,1029921201,Thebigword Group Ltd,199.52,09/10/2023
Delivery Units,Adults and Health,Other Services,1029928302,Banner Group Limited,55.00,13/10/2023
Delivery Units,Adults and Health,Other Services,1029929601,Thebigword Group Ltd,42.52,09/10/2023
Delivery Units,Adults and Health,Other Services,1030485002,Banner Group Limited,12.22,27/10/2023
Delivery Units,Adults and Health,Ttl IT & Comms,1030286001,MEDEQUIP ASSISTIVE TECHNOLOGY,"203,610.24",19/10/2023
Delivery Units,Adults and Health,Other Agencies - Third Party P,0090637234,ASPEN VILLAGES LTD,"6,000.00",02/10/2023
Delivery Units,Adults and Health,Other Agencies - Third Party P,0090642706,CARLTON COURT (TLC GROUP),"4,363.24",17/10/2023
Delivery Units,Adults and Health,Other Agencies - Third Party P,0090642798,CARLTON COURT (TLC GROUP),"7,000.00",17/10/2023
Delivery Units,Adults and Health,Other Agencies - Third Party P,0090642799,CARLTON COURT (TLC GROUP),"7,000.00",17/10/2023
Delivery Units,Adults and Health,Other Agencies - Third Party P,0090643000,CARLTON COURT (TLC GROUP),"4,363.24",17/10/2023
Delivery Units,Adults and Health,Other Agencies - Third Party P,0090643022,CARLTON COURT (TLC GROUP),"6,600.00",17/10/2023
Delivery Units,Adults and Health,Other Agencies - Third Party P,0090643051,CARLTON COURT (TLC GROUP),"67,462.13",17/10/2023
Delivery Units,Adults and Health,Other Agencies - Third Party P,0090646352,BENSLOW MANAGEMENT COMPANY LIMITED,"4,262.06",26/10/2023
Delivery Units,Adults and Health,Other Agencies - Third Party P,0090646842,ASPEN VILLAGES LTD,"6,200.00",26/10/2023
Delivery Units,Adults and Health,Other Agencies - Third Party P,0090649111,AUTUMN GARDENS,"3,656.00",31/10/2023
Delivery Units,Adults and Health,Other Agencies - Third Party P,0090649112,AUTUMN GARDENS,"4,800.00",31/10/2023
Delivery Units,Adults and Health,Other Agencies - Third Party P,0090649114,AUTUMN GARDENS,"-2,057.14",31/10/2023
Delivery Units,Adults and Health,Other Agencies - Third Party P,0090639120,AGUDAS ISRAEL HOUSING ASSCTN LTD,"2,648.57",09/10/2023
Delivery Units,Adults and Health,Other Agencies - Third Party P,0090639124,AGUDAS ISRAEL HOUSING ASSCTN LTD,"5,785.71",09/10/2023
Delivery Units,Adults and Health,Other Agencies - Third Party P,0090637208,FERNBANK NURSING HOME.,"16,501.50",02/10/2023
Delivery Units,Adults and Health,Other Agencies - Third Party P,0090637211,FERNBANK NURSING HOME.,"5,785.50",02/10/2023
Delivery Units,Adults and Health,Other Agencies - Third Party P,0090637212,FERNBANK NURSING HOME.,"4,928.40",02/10/2023
Delivery Units,Adults and Health,Other Agencies - Third Party P,0090637214,WILSMERE HOUSE CARE CENTRE,"4,818.73",02/10/2023
Delivery Units,Adults and Health,Other Agencies - Third Party P,0090637215,Milford Lodge Residential Home,"4,071.43",02/10/2023
Delivery Units,Adults and Health,Other Agencies - Third Party P,0090637489,WESTMINSTER HEALTH CARE LTD,"4,707.17",04/10/2023
Delivery Units,Adults and Health,Other Agencies - Third Party P,0090637497,WESTMINSTER HEALTH CARE LTD,"2,294.44",04/10/2023
Delivery Units,Adults and Health,Other Agencies - Third Party P,0090637498,WESTMINSTER HEALTH CARE LTD,"4,708.50",04/10/2023
Delivery Units,Adults and Health,Other Agencies - Third Party P,0090637499,WESTMINSTER HEALTH CARE LTD,"2,785.71",04/10/2023
Delivery Units,Adults and Health,Other Agencies - Third Party P,0090637500,WESTMINSTER HEALTH CARE LTD,"4,767.43",04/10/2023
Delivery Units,Adults and Health,Other Agencies - Third Party P,0090637501,WESTMINSTER HEALTH CARE LTD,"5,103.47",04/10/2023
Delivery Units,Adults and Health,Other Agencies - Third Party P,0090637502,WESTMINSTER HEALTH CARE LTD,"5,103.47",04/10/2023
Delivery Units,Adults and Health,Other Agencies - Third Party P,0090637503,WESTMINSTER HEALTH CARE LTD,"8,571.43",04/10/2023
Delivery Units,Adults and Health,Other Agencies - Third Party P,0090637752,HUSKARDS NEW CARE LTD,"2,366.70",04/10/2023
Delivery Units,Adults and Health,Other Agencies - Third Party P,0090637755,Barchester Healthcare,"6,857.14",04/10/2023
Delivery Units,Adults and Health,Other Agencies - Third Party P,0090637757,GCH (HATFIELD) Limited,"2,324.76",04/10/2023
Delivery Units,Adults and Health,Other Agencies - Third Party P,0090637768,Barchester Healthcare,"6,000.00",04/10/2023
Delivery Units,Adults and Health,Other Agencies - Third Party P,0090637770,Barchester Healthcare,"4,629.82",04/10/2023
Delivery Units,Adults and Health,Other Agencies - Third Party P,0090637771,Barchester Healthcare,"6,000.00",04/10/2023
Delivery Units,Adults and Health,Other Agencies - Third Party P,0090639114,The Orders of St John Care Trust,"4,534.86",09/10/2023
Delivery Units,Adults and Health,Other Agencies - Third Party P,0090639132,Topcare Ltd,"5,314.29",09/10/2023
Delivery Units,Adults and Health,Other Agencies - Third Party P,0090639133,Topcare Ltd,"5,142.86",09/10/2023
Delivery Units,Adults and Health,Other Agencies - Third Party P,0090640848,Oakland Primecare Ltd t/a Elsyng House,"7,865.14",13/10/2023
Delivery Units,Adults and Health,Other Agencies - Third Party P,0090641075,FERNBANK NURSING HOME.,"71,814.43",13/10/2023
Delivery Units,Adults and Health,Other Agencies - Third Party P,0090641901,HC-One Oval LTD,"3,783.99",16/10/2023
Delivery Units,Adults and Health,Other Agencies - Third Party P,0090641902,HC-One Oval LTD,"3,661.93",16/10/2023
Delivery Units,Adults and Health,Other Agencies - Third Party P,0090642409,MEERA NURSING HOME LIMITED,"4,088.57",17/10/2023
Delivery Units,Adults and Health,Other Agencies - Third Party P,0090642481,LIFESTYLE CARE PLC,"3,590.73",17/10/2023
Delivery Units,Adults and Health,Other Agencies - Third Party P,0090642484,FOUR SEASONS HEALTH CARE,"3,127.07",17/10/2023
Delivery Units,Adults and Health,Other Agencies - Third Party P,0090642485,JEWISH CARE,"3,212.00",17/10/2023
Delivery Units,Adults and Health,Other Agencies - Third Party P,0090642487,SONESTA NURSING HOME LTD.,"2,716.68",17/10/2023
Delivery Units,Adults and Health,Other Agencies - Third Party P,0090642489,SAGE NURSING HOME,"4,400.00",17/10/2023
Delivery Units,Adults and Health,Other Agencies - Third Party P,0090642493,ELEANOR PALMER TRUST NO 2 A/C.,"4,400.00",17/10/2023
Delivery Units,Adults and Health,Other Agencies - Third Party P,0090642495,ABBEY RAVENSCROFT PARK NURSING HOME,"3,968.00",17/10/2023
Delivery Units,Adults and Health,Other Agencies - Third Party P,0090642498,JEWISH CARE,"9,938.48",17/10/2023
Delivery Units,Adults and Health,Other Agencies - Third Party P,0090642503,CEDARS NURSING HOME,"3,756.00",17/10/2023
Delivery Units,Adults and Health,Other Agencies - Third Party P,0090642505,BUPA NURSING HOMES LTD - ARKLEY,"10,762.76",17/10/2023
Delivery Units,Adults and Health,Other Agencies - Third Party P,0090642506,APPLE TREE COURT CARE HOME,0.04,17/10/2023
Delivery Units,Adults and Health,Other Agencies - Third Party P,0090642507,APPLE TREE COURT CARE HOME,"-10,331.85",17/10/2023
Delivery Units,Adults and Health,Other Agencies - Third Party P,0090642508,FOUR SEASONS HEALTH CARE,"-4,011.11",17/10/2023
Delivery Units,Adults and Health,Other Agencies - Third Party P,0090642509,FOUR SEASONS HEALTH CARE,-501.61,17/10/2023
Delivery Units,Adults and Health,Other Agencies - Third Party P,0090642510,APPLE TREE COURT CARE HOME,"-4,572.10",17/10/2023
Delivery Units,Adults and Health,Other Agencies - Third Party P,0090642511,BUPA CARE HOMES,"4,261.81",17/10/2023
Delivery Units,Adults and Health,Other Agencies - Third Party P,0090642516,SONESTA NURSING HOME LTD.,"2,716.68",17/10/2023
Delivery Units,Adults and Health,Other Agencies - Third Party P,0090642517,JEWISH CARE,"2,911.32",17/10/2023
Delivery Units,Adults and Health,Other Agencies - Third Party P,0090642521,APPLE TREE COURT CARE HOME,"5,506.09",17/10/2023
Delivery Units,Adults and Health,Other Agencies - Third Party P,0090642527,FOUR SEASONS HEALTH CARE,"3,127.07",17/10/2023
Delivery Units,Adults and Health,Other Agencies - Third Party P,0090642528,LIFESTYLE CARE PLC,"4,105.44",17/10/2023
Delivery Units,Adults and Health,Other Agencies - Third Party P,0090642529,JEWISH CARE,"3,140.00",17/10/2023
Delivery Units,Adults and Health,Other Agencies - Third Party P,0090642530,LIFESTYLE CARE PLC,"4,105.44",17/10/2023
Delivery Units,Adults and Health,Other Agencies - Third Party P,0090642534,APPLE TREE COURT CARE HOME,"4,200.00",17/10/2023
Delivery Units,Adults and Health,Other Agencies - Third Party P,0090642541,CEDARS NURSING HOME,"4,016.00",17/10/2023
Delivery Units,Adults and Health,Other Agencies - Third Party P,0090642561,ABBEY RAVENSCROFT PARK NURSING HOME,"3,752.00",17/10/2023
Delivery Units,Adults and Health,Other Agencies - Third Party P,0090642562,JEWISH CARE,"3,140.00",17/10/2023
Delivery Units,Adults and Health,Other Agencies - Third Party P,0090642564,BUPA CARE HOMES,"3,123.40",17/10/2023
Delivery Units,Adults and Health,Other Agencies - Third Party P,0090642565,LIFESTYLE CARE PLC,"-19,843.99",17/10/2023
Delivery Units,Adults and Health,Other Agencies - Third Party P,0090642567,FOUR SEASONS HEALTH CARE,-436.88,17/10/2023
Delivery Units,Adults and Health,Other Agencies - Third Party P,0090642568,FOUR SEASONS HEALTH CARE,"3,127.07",17/10/2023
Delivery Units,Adults and Health,Other Agencies - Third Party P,0090642573,LIFESTYLE CARE PLC,"3,590.73",17/10/2023
Delivery Units,Adults and Health,Other Agencies - Third Party P,0090642576,SONESTA NURSING HOME LTD.,"2,716.68",17/10/2023
Delivery Units,Adults and Health,Other Agencies - Third Party P,0090642587,APPLE TREE COURT CARE HOME,463.92,17/10/2023
Delivery Units,Adults and Health,Other Agencies - Third Party P,0090642588,ABBEY RAVENSCROFT PARK NURSING HOME,"3,968.00",17/10/2023
Delivery Units,Adults and Health,Other Agencies - Third Party P,0090642589,LIFESTYLE CARE PLC,"4,105.44",17/10/2023
Delivery Units,Adults and Health,Other Agencies - Third Party P,0090642597,JEWISH CARE,"3,212.00",17/10/2023
Delivery Units,Adults and Health,Other Agencies - Third Party P,0090642601,BUPA CARE HOMES,"4,261.81",17/10/2023
Delivery Units,Adults and Health,Other Agencies - Third Party P,0090642604,SONESTA NURSING HOME LTD.,"2,716.68",17/10/2023
Delivery Units,Adults and Health,Other Agencies - Third Party P,0090642605,APPLE TREE COURT CARE HOME,"5,934.94",17/10/2023
Delivery Units,Adults and Health,Other Agencies - Third Party P,0090642606,Aarandale Manor Care Home,"4,200.00",17/10/2023
Delivery Units,Adults and Health,Other Agencies - Third Party P,0090642609,JEWISH CARE,"3,140.00",17/10/2023
Delivery Units,Adults and Health,Other Agencies - Third Party P,0090642614,BUPA CARE HOMES,513.32,17/10/2023
Delivery Units,Adults and Health,Other Agencies - Third Party P,0090642615,APPLE TREE COURT CARE HOME,"4,400.00",17/10/2023
Delivery Units,Adults and Health,Other Agencies - Third Party P,0090642617,BUPA CARE HOMES,"4,261.81",17/10/2023
Delivery Units,Adults and Health,Other Agencies - Third Party P,0090642618,BUPA NURSING HOMES LTD - ARKLEY,"4,016.00",17/10/2023
Delivery Units,Adults and Health,Other Agencies - Third Party P,0090642625,SONESTA NURSING HOME LTD.,"2,716.68",17/10/2023
Delivery Units,Adults and Health,Other Agencies - Third Party P,0090642627,APPLE TREE COURT CARE HOME,"5,400.00",17/10/2023
Delivery Units,Adults and Health,Other Agencies - Third Party P,0090642628,New Century Care (Finchley),"5,208.00",17/10/2023
Delivery Units,Adults and Health,Other Agencies - Third Party P,0090642629,CEDARS NURSING HOME,"5,200.00",17/10/2023
Delivery Units,Adults and Health,Other Agencies - Third Party P,0090642632,FOUR SEASONS HEALTH CARE,"3,684.00",17/10/2023
Delivery Units,Adults and Health,Other Agencies - Third Party P,0090642633,FOUR SEASONS HEALTH CARE,"3,632.73",17/10/2023
Delivery Units,Adults and Health,Other Agencies - Third Party P,0090642634,BUPA CARE HOMES,"4,261.81",17/10/2023
Delivery Units,Adults and Health,Other Agencies - Third Party P,0090642635,APPLE TREE COURT CARE HOME,"5,506.09",17/10/2023
Delivery Units,Adults and Health,Other Agencies - Third Party P,0090642639,ABBEY RAVENSCROFT PARK NURSING HOME,"4,200.00",17/10/2023
Delivery Units,Adults and Health,Other Agencies - Third Party P,0090642641,New Century Care (Finchley),"5,208.00",17/10/2023
Delivery Units,Adults and Health,Other Agencies - Third Party P,0090642642,CEDARS NURSING HOME,"5,200.00",17/10/2023
Delivery Units,Adults and Health,Other Agencies - Third Party P,0090642643,CARE UK COMMUNITY PARTNERSHIPS,"4,363.24",17/10/2023
Delivery Units,Adults and Health,Other Agencies - Third Party P,0090642644,APPLE TREE COURT CARE HOME,"3,969.20",17/10/2023
Delivery Units,Adults and Health,Other Agencies - Third Party P,0090642645,LIFESTYLE CARE PLC,172.96,17/10/2023
Delivery Units,Adults and Health,Other Agencies - Third Party P,0090642646,ABBEY RAVENSCROFT PARK NURSING HOME,"4,800.00",17/10/2023
Delivery Units,Adults and Health,Other Agencies - Third Party P,0090642647,Aarandale Manor Care Home,"3,963.24",17/10/2023
Delivery Units,Adults and Health,Other Agencies - Third Party P,0090642649,ABBEY RAVENSCROFT PARK NURSING HOME,"4,800.00",17/10/2023
Delivery Units,Adults and Health,Other Agencies - Third Party P,0090642650,APPLE TREE COURT CARE HOME,"1,000.00",17/10/2023
Delivery Units,Adults and Health,Other Agencies - Third Party P,0090642653,APPLE TREE COURT CARE HOME,"4,016.00",17/10/2023
Delivery Units,Adults and Health,Other Agencies - Third Party P,0090642660,JEWISH CARE,"3,140.00",17/10/2023
Delivery Units,Adults and Health,Other Agencies - Third Party P,0090642662,Aarandale Manor Care Home,"4,200.00",17/10/2023
Delivery Units,Adults and Health,Other Agencies - Third Party P,0090642669,CEDARS NURSING HOME,"4,800.00",17/10/2023
Delivery Units,Adults and Health,Other Agencies - Third Party P,0090642672,Lancam Care Services Limited,"4,116.00",17/10/2023
Delivery Units,Adults and Health,Other Agencies - Third Party P,0090642674,SAGE NURSING HOME,"4,952.00",17/10/2023
Delivery Units,Adults and Health,Other Agencies - Third Party P,0090642677,ELEANOR PALMER TRUST NO 2 A/C.,"4,400.00",17/10/2023
Delivery Units,Adults and Health,Other Agencies - Third Party P,0090642679,JEWISH CARE,"3,212.00",17/10/2023
Delivery Units,Adults and Health,Other Agencies - Third Party P,0090642680,CEDARS NURSING HOME,"4,800.00",17/10/2023
Delivery Units,Adults and Health,Other Agencies - Third Party P,0090642686,LIFESTYLE CARE PLC,"4,105.44",17/10/2023
Delivery Units,Adults and Health,Other Agencies - Third Party P,0090642687,SONESTA NURSING HOME LTD.,"2,716.68",17/10/2023
Delivery Units,Adults and Health,Other Agencies - Third Party P,0090642689,ABBEY RAVENSCROFT PARK NURSING HOME,"4,200.00",17/10/2023
Delivery Units,Adults and Health,Other Agencies - Third Party P,0090642692,FOUR SEASONS HEALTH CARE,"3,127.07",17/10/2023
Delivery Units,Adults and Health,Other Agencies - Third Party P,0090642693,CARE UK COMMUNITY PARTNERSHIPS,"3,417.76",17/10/2023
Delivery Units,Adults and Health,Other Agencies - Third Party P,0090642694,ABBEY RAVENSCROFT PARK NURSING HOME,"4,800.00",17/10/2023
Delivery Units,Adults and Health,Other Agencies - Third Party P,0090642695,ELEANOR PALMER TRUST NO 2 A/C.,"4,400.00",17/10/2023
Delivery Units,Adults and Health,Other Agencies - Third Party P,0090642700,New Century Care (Finchley),"5,425.00",17/10/2023
Delivery Units,Adults and Health,Other Agencies - Third Party P,0090642708,CARE UK COMMUNITY PARTNERSHIPS,"4,363.24",17/10/2023
Delivery Units,Adults and Health,Other Agencies - Third Party P,0090642721,JEWISH CARE,"3,140.00",17/10/2023
Delivery Units,Adults and Health,Other Agencies - Third Party P,0090642722,CEDARS NURSING HOME,"4,000.00",17/10/2023
Delivery Units,Adults and Health,Other Agencies - Third Party P,0090642730,SONESTA NURSING HOME LTD.,"18,652.56",17/10/2023
Delivery Units,Adults and Health,Other Agencies - Third Party P,0090642733,JEWISH CARE,"3,140.00",17/10/2023
Delivery Units,Adults and Health,Other Agencies - Third Party P,0090642734,SONESTA NURSING HOME LTD.,"2,716.68",17/10/2023
Delivery Units,Adults and Health,Other Agencies - Third Party P,0090642737,APPLE TREE COURT CARE HOME,"4,821.34",17/10/2023
Delivery Units,Adults and Health,Other Agencies - Third Party P,0090642740,CEDARS NURSING HOME,"4,800.00",17/10/2023
Delivery Units,Adults and Health,Other Agencies - Third Party P,0090642748,BUPA NURSING HOMES LTD - ARKLEY,"5,401.81",17/10/2023
Delivery Units,Adults and Health,Other Agencies - Third Party P,0090642751,JEWISH CARE,"3,140.00",17/10/2023
Delivery Units,Adults and Health,Other Agencies - Third Party P,0090642752,JEWISH CARE,"3,212.00",17/10/2023
Delivery Units,Adults and Health,Other Agencies - Third Party P,0090642757,FOUR SEASONS HEALTH CARE,"3,127.07",17/10/2023
Delivery Units,Adults and Health,Other Agencies - Third Party P,0090642759,Aarandale Manor Care Home,"6,400.00",17/10/2023
Delivery Units,Adults and Health,Other Agencies - Third Party P,0090642760,APPLE TREE COURT CARE HOME,"4,821.34",17/10/2023
Delivery Units,Adults and Health,Other Agencies - Third Party P,0090642765,LIFESTYLE CARE PLC,"4,105.44",17/10/2023
Delivery Units,Adults and Health,Other Agencies - Third Party P,0090642766,ABBEY RAVENSCROFT PARK NURSING HOME,"3,968.00",17/10/2023
Delivery Units,Adults and Health,Other Agencies - Third Party P,0090642770,ELEANOR PALMER TRUST NO 2 A/C.,"4,400.00",17/10/2023
Delivery Units,Adults and Health,Other Agencies - Third Party P,0090642772,JEWISH CARE,"3,212.00",17/10/2023
Delivery Units,Adults and Health,Other Agencies - Third Party P,0090642775,APPLE TREE COURT CARE HOME,551.32,17/10/2023
Delivery Units,Adults and Health,Other Agencies - Third Party P,0090642776,LIFESTYLE CARE PLC,172.96,17/10/2023
Delivery Units,Adults and Health,Other Agencies - Third Party P,0090642778,ABBEY RAVENSCROFT PARK NURSING HOME,"4,800.00",17/10/2023
Delivery Units,Adults and Health,Other Agencies - Third Party P,0090642780,JEWISH CARE,"4,122.23",17/10/2023
Delivery Units,Adults and Health,Other Agencies - Third Party P,0090642781,SONESTA NURSING HOME LTD.,"3,400.00",17/10/2023
Delivery Units,Adults and Health,Other Agencies - Third Party P,0090642784,JEWISH CARE,"4,050.23",17/10/2023
Delivery Units,Adults and Health,Other Agencies - Third Party P,0090642791,BUPA NURSING HOMES LTD - ARKLEY,"4,116.00",17/10/2023
Delivery Units,Adults and Health,Other Agencies - Third Party P,0090642792,New Century Care (Finchley),"10,528.84",17/10/2023
Delivery Units,Adults and Health,Other Agencies - Third Party P,0090642793,JEWISH CARE,"3,140.00",17/10/2023
Delivery Units,Adults and Health,Other Agencies - Third Party P,0090642794,JEWISH CARE,"3,212.00",17/10/2023
Delivery Units,Adults and Health,Other Agencies - Third Party P,0090642795,SONESTA NURSING HOME LTD.,"3,216.00",17/10/2023
Delivery Units,Adults and Health,Other Agencies - Third Party P,0090642796,FOUR SEASONS HEALTH CARE,"4,400.00",17/10/2023
Delivery Units,Adults and Health,Other Agencies - Third Party P,0090642800,APPLE TREE COURT CARE HOME,203.12,17/10/2023
Delivery Units,Adults and Health,Other Agencies - Third Party P,0090642801,LIFESTYLE CARE PLC,"5,521.16",17/10/2023
Delivery Units,Adults and Health,Other Agencies - Third Party P,0090642803,ABBEY RAVENSCROFT PARK NURSING HOME,"4,400.00",17/10/2023
Delivery Units,Adults and Health,Other Agencies - Third Party P,0090642814,APPLE TREE COURT CARE HOME,203.12,17/10/2023
Delivery Units,Adults and Health,Other Agencies - Third Party P,0090642817,FOUR SEASONS HEALTH CARE,"3,800.00",17/10/2023
Delivery Units,Adults and Health,Other Agencies - Third Party P,0090642821,BUPA CARE HOMES,"3,981.19",17/10/2023
Delivery Units,Adults and Health,Other Agencies - Third Party P,0090642824,HENRY NIHILL HOUSE,"3,900.00",17/10/2023
Delivery Units,Adults and Health,Other Agencies - Third Party P,0090642828,ABBEY RAVENSCROFT PARK NURSING HOME,"2,057.14",17/10/2023
Delivery Units,Adults and Health,Other Agencies - Third Party P,0090642830,SONESTA NURSING HOME LTD.,"12,021.43",17/10/2023
Delivery Units,Adults and Health,Other Agencies - Third Party P,0090642831,JEWISH CARE,"30,278.57",17/10/2023
Delivery Units,Adults and Health,Other Agencies - Third Party P,0090642833,APPLE TREE COURT CARE HOME,"10,775.19",17/10/2023
Delivery Units,Adults and Health,Other Agencies - Third Party P,0090642834,ELEANOR PALMER TRUST NO 2 A/C.,"9,742.86",17/10/2023
Delivery Units,Adults and Health,Other Agencies - Third Party P,0090642835,CARE UK COMMUNITY PARTNERSHIPS,"4,475.49",17/10/2023
Delivery Units,Adults and Health,Other Agencies - Third Party P,0090642836,LIFESTYLE CARE PLC,"4,105.44",17/10/2023
Delivery Units,Adults and Health,Other Agencies - Third Party P,0090642837,APPLE TREE COURT CARE HOME,304.68,17/10/2023
Delivery Units,Adults and Health,Other Agencies - Third Party P,0090642840,Aarandale Manor Care Home,"4,200.00",17/10/2023
Delivery Units,Adults and Health,Other Agencies - Third Party P,0090642842,BUPA NURSING HOMES LTD - ARKLEY,444.88,17/10/2023
Delivery Units,Adults and Health,Other Agencies - Third Party P,0090642846,SAGE NURSING HOME,"4,400.00",17/10/2023
Delivery Units,Adults and Health,Other Agencies - Third Party P,0090642854,CARE UK COMMUNITY PARTNERSHIPS,"-6,994.29",17/10/2023
Delivery Units,Adults and Health,Other Agencies - Third Party P,0090642855,New Century Care (Finchley),"5,208.00",17/10/2023
Delivery Units,Adults and Health,Other Agencies - Third Party P,0090642856,LIFESTYLE CARE PLC,"4,105.44",17/10/2023
Delivery Units,Adults and Health,Other Agencies - Third Party P,0090642860,ABBEY RAVENSCROFT PARK NURSING HOME,"4,800.00",17/10/2023
Delivery Units,Adults and Health,Other Agencies - Third Party P,0090642862,JEWISH CARE,"3,212.00",17/10/2023
Delivery Units,Adults and Health,Other Agencies - Third Party P,0090642864,ELEANOR PALMER TRUST NO 2 A/C.,"4,400.00",17/10/2023
Delivery Units,Adults and Health,Other Agencies - Third Party P,0090642866,HENRY NIHILL HOUSE,"3,816.00",17/10/2023
Delivery Units,Adults and Health,Other Agencies - Third Party P,0090642867,SONESTA NURSING HOME LTD.,"3,216.00",17/10/2023
Delivery Units,Adults and Health,Other Agencies - Third Party P,0090642868,BUPA CARE HOMES,266.93,17/10/2023
Delivery Units,Adults and Health,Other Agencies - Third Party P,0090642869,HENRY NIHILL HOUSE,"3,816.00",17/10/2023
Delivery Units,Adults and Health,Other Agencies - Third Party P,0090642870,HENRY NIHILL HOUSE,"3,816.00",17/10/2023
Delivery Units,Adults and Health,Other Agencies - Third Party P,0090642871,APPLE TREE COURT CARE HOME,65.28,17/10/2023
Delivery Units,Adults and Health,Other Agencies - Third Party P,0090642877,Aarandale Manor Care Home,"5,200.00",17/10/2023
Delivery Units,Adults and Health,Other Agencies - Third Party P,0090642879,BUPA NURSING HOMES LTD - ARKLEY,"3,800.00",17/10/2023
Delivery Units,Adults and Health,Other Agencies - Third Party P,0090642880,ABBEY RAVENSCROFT PARK NURSING HOME,"4,800.00",17/10/2023
Delivery Units,Adults and Health,Other Agencies - Third Party P,0090642884,New Century Care (Finchley),"5,200.00",17/10/2023
Delivery Units,Adults and Health,Other Agencies - Third Party P,0090642886,FOUR SEASONS HEALTH CARE,147.56,17/10/2023
Delivery Units,Adults and Health,Other Agencies - Third Party P,0090642890,APPLE TREE COURT CARE HOME,"4,574.70",17/10/2023
Delivery Units,Adults and Health,Other Agencies - Third Party P,0090642891,BUPA CARE HOMES,"3,748.49",17/10/2023
Delivery Units,Adults and Health,Other Agencies - Third Party P,0090642892,BUPA NURSING HOMES LTD - ARKLEY,"4,261.81",17/10/2023
Delivery Units,Adults and Health,Other Agencies - Third Party P,0090642903,APPLE TREE COURT CARE HOME,"2,709.08",17/10/2023
Delivery Units,Adults and Health,Other Agencies - Third Party P,0090642909,ELEANOR PALMER TRUST NO 2 A/C.,"4,400.00",17/10/2023
Delivery Units,Adults and Health,Other Agencies - Third Party P,0090642916,ELEANOR PALMER TRUST NO 2 A/C.,"4,400.00",17/10/2023
Delivery Units,Adults and Health,Other Agencies - Third Party P,0090642922,APPLE TREE COURT CARE HOME,"3,980.00",17/10/2023
Delivery Units,Adults and Health,Other Agencies - Third Party P,0090642925,APPLE TREE COURT CARE HOME,"4,216.88",17/10/2023
Delivery Units,Adults and Health,Other Agencies - Third Party P,0090642926,APPLE TREE COURT CARE HOME,"4,216.88",17/10/2023
Delivery Units,Adults and Health,Other Agencies - Third Party P,0090642935,LIFESTYLE CARE PLC,"4,105.44",17/10/2023
Delivery Units,Adults and Health,Other Agencies - Third Party P,0090642937,FOUR SEASONS HEALTH CARE,"3,127.07",17/10/2023
Delivery Units,Adults and Health,Other Agencies - Third Party P,0090642945,APPLE TREE COURT CARE HOME,"4,821.34",17/10/2023
Delivery Units,Adults and Health,Other Agencies - Third Party P,0090642946,ABBEY RAVENSCROFT PARK NURSING HOME,"3,968.00",17/10/2023
Delivery Units,Adults and Health,Other Agencies - Third Party P,0090642947,JEWISH CARE,"3,212.00",17/10/2023
Delivery Units,Adults and Health,Other Agencies - Third Party P,0090642952,ABBEY RAVENSCROFT PARK NURSING HOME,"3,968.00",17/10/2023
Delivery Units,Adults and Health,Other Agencies - Third Party P,0090642955,BUPA NURSING HOMES LTD - ARKLEY,"4,261.81",17/10/2023
Delivery Units,Adults and Health,Other Agencies - Third Party P,0090642957,ELEANOR PALMER TRUST NO 2 A/C.,"4,400.00",17/10/2023
Delivery Units,Adults and Health,Other Agencies - Third Party P,0090642963,Aarandale Manor Care Home,"4,200.00",17/10/2023
Delivery Units,Adults and Health,Other Agencies - Third Party P,0090642964,LIFESTYLE CARE PLC,"4,105.44",17/10/2023
Delivery Units,Adults and Health,Other Agencies - Third Party P,0090642965,ELEANOR PALMER TRUST NO 2 A/C.,"2,022.86",17/10/2023
Delivery Units,Adults and Health,Other Agencies - Third Party P,0090642968,JEWISH CARE,"3,212.00",17/10/2023
Delivery Units,Adults and Health,Other Agencies - Third Party P,0090642969,ELEANOR PALMER TRUST NO 2 A/C.,"4,400.00",17/10/2023
Delivery Units,Adults and Health,Other Agencies - Third Party P,0090642970,Lancam Care Services Limited,"3,916.00",17/10/2023
Delivery Units,Adults and Health,Other Agencies - Third Party P,0090642973,LIFESTYLE CARE PLC,"4,105.44",17/10/2023
Delivery Units,Adults and Health,Other Agencies - Third Party P,0090642976,SAGE NURSING HOME,"3,256.00",17/10/2023
Delivery Units,Adults and Health,Other Agencies - Third Party P,0090642977,BUPA NURSING HOMES LTD - ARKLEY,533.86,17/10/2023
Delivery Units,Adults and Health,Other Agencies - Third Party P,0090642978,JEWISH CARE,"8,479.92",17/10/2023
Delivery Units,Adults and Health,Other Agencies - Third Party P,0090642979,Lancam Care Services Limited,"4,196.00",17/10/2023
Delivery Units,Adults and Health,Other Agencies - Third Party P,0090642981,FOUR SEASONS HEALTH CARE,"3,127.07",17/10/2023
Delivery Units,Adults and Health,Other Agencies - Third Party P,0090642982,Lancam Care Services Limited,"4,196.00",17/10/2023
Delivery Units,Adults and Health,Other Agencies - Third Party P,0090642983,BUPA CARE HOMES,396.97,17/10/2023
Delivery Units,Adults and Health,Other Agencies - Third Party P,0090642987,JEWISH CARE,"4,892.00",17/10/2023
Delivery Units,Adults and Health,Other Agencies - Third Party P,0090642988,JEWISH CARE,"3,140.00",17/10/2023
Delivery Units,Adults and Health,Other Agencies - Third Party P,0090642989,APPLE TREE COURT CARE HOME,"4,763.24",17/10/2023
Delivery Units,Adults and Health,Other Agencies - Third Party P,0090642991,New Century Care (Finchley),"4,774.00",17/10/2023
Delivery Units,Adults and Health,Other Agencies - Third Party P,0090642992,BUPA CARE HOMES,636.52,17/10/2023
Delivery Units,Adults and Health,Other Agencies - Third Party P,0090642993,ABBEY RAVENSCROFT PARK NURSING HOME,"4,400.00",17/10/2023
Delivery Units,Adults and Health,Other Agencies - Third Party P,0090642994,FOUR SEASONS HEALTH CARE,"3,632.73",17/10/2023
Delivery Units,Adults and Health,Other Agencies - Third Party P,0090642995,LIFESTYLE CARE PLC,"4,105.44",17/10/2023
Delivery Units,Adults and Health,Other Agencies - Third Party P,0090642996,ABBEY RAVENSCROFT PARK NURSING HOME,"4,800.00",17/10/2023
Delivery Units,Adults and Health,Other Agencies - Third Party P,0090642997,BUPA NURSING HOMES LTD - ARKLEY,"3,616.00",17/10/2023
Delivery Units,Adults and Health,Other Agencies - Third Party P,0090643001,APPLE TREE COURT CARE HOME,"4,763.24",17/10/2023
Delivery Units,Adults and Health,Other Agencies - Third Party P,0090643003,BUPA NURSING HOMES LTD - ARKLEY,"4,116.00",17/10/2023
Delivery Units,Adults and Health,Other Agencies - Third Party P,0090643004,SAGE NURSING HOME,"4,400.00",17/10/2023
Delivery Units,Adults and Health,Other Agencies - Third Party P,0090643007,ABBEY RAVENSCROFT PARK NURSING HOME,"4,800.00",17/10/2023
Delivery Units,Adults and Health,Other Agencies - Third Party P,0090643008,FOUR SEASONS HEALTH CARE,"3,632.73",17/10/2023
Delivery Units,Adults and Health,Other Agencies - Third Party P,0090643009,FOUR SEASONS HEALTH CARE,221.34,17/10/2023
Delivery Units,Adults and Health,Other Agencies - Third Party P,0090643010,CEDARS NURSING HOME,"5,600.00",17/10/2023
Delivery Units,Adults and Health,Other Agencies - Third Party P,0090643012,APPLE TREE COURT CARE HOME,"4,851.63",17/10/2023
Delivery Units,Adults and Health,Other Agencies - Third Party P,0090643016,BUPA CARE HOMES,"3,864.84",17/10/2023
Delivery Units,Adults and Health,Other Agencies - Third Party P,0090643018,BUPA NURSING HOMES LTD - ARKLEY,"3,529.47",17/10/2023
Delivery Units,Adults and Health,Other Agencies - Third Party P,0090643020,CEDARS NURSING HOME,"5,600.00",17/10/2023
Delivery Units,Adults and Health,Other Agencies - Third Party P,0090643021,ABBEY RAVENSCROFT PARK NURSING HOME,"5,200.00",17/10/2023
Delivery Units,Adults and Health,Other Agencies - Third Party P,0090643029,SONESTA NURSING HOME LTD.,"-3,892.92",17/10/2023
Delivery Units,Adults and Health,Other Agencies - Third Party P,0090643030,LIFESTYLE CARE PLC,"3,642.14",17/10/2023
Delivery Units,Adults and Health,Other Agencies - Third Party P,0090643031,APPLE TREE COURT CARE HOME,203.12,17/10/2023
Delivery Units,Adults and Health,Other Agencies - Third Party P,0090643033,ABBEY RAVENSCROFT PARK NURSING HOME,"3,528.57",17/10/2023
Delivery Units,Adults and Health,Other Agencies - Third Party P,0090643034,ABBEY RAVENSCROFT PARK NURSING HOME,"4,800.00",17/10/2023
Delivery Units,Adults and Health,Other Agencies - Third Party P,0090643039,ABBEY RAVENSCROFT PARK NURSING HOME,"7,028.57",17/10/2023
Delivery Units,Adults and Health,Other Agencies - Third Party P,0090643040,APPLE TREE COURT CARE HOME,"4,588.12",17/10/2023
Delivery Units,Adults and Health,Other Agencies - Third Party P,0090643042,ABBEY RAVENSCROFT PARK NURSING HOME,"10,000.00",17/10/2023
Delivery Units,Adults and Health,Other Agencies - Third Party P,0090643046,APPLE TREE COURT CARE HOME,"18,878.97",17/10/2023
Delivery Units,Adults and Health,Other Agencies - Third Party P,0090643047,APPLE TREE COURT CARE HOME,-336.06,17/10/2023
Delivery Units,Adults and Health,Other Agencies - Third Party P,0090643049,ABBEY RAVENSCROFT PARK NURSING HOME,"10,200.00",17/10/2023
Delivery Units,Adults and Health,Other Agencies - Third Party P,0090644818,Stamford Nursing Centre,"4,178.57",20/10/2023
Delivery Units,Adults and Health,Other Agencies - Third Party P,0090646019,FERNBANK NURSING HOME.,"5,142.60",24/10/2023
Delivery Units,Adults and Health,Other Agencies - Third Party P,0090646020,FERNBANK NURSING HOME.,"5,314.02",24/10/2023
Delivery Units,Adults and Health,Other Agencies - Third Party P,0090646021,FERNBANK NURSING HOME.,"17,051.55",24/10/2023
Delivery Units,Adults and Health,Other Agencies - Third Party P,0090646024,FERNBANK NURSING HOME.,"5,978.35",24/10/2023
Delivery Units,Adults and Health,Other Agencies - Third Party P,0090646025,FERNBANK NURSING HOME.,"5,092.68",24/10/2023
Delivery Units,Adults and Health,Other Agencies - Third Party P,0090646026,Topcare Ltd,"5,314.29",24/10/2023
Delivery Units,Adults and Health,Other Agencies - Third Party P,0090646334,MEERA NURSING HOME LIMITED,"3,985.71",26/10/2023
Delivery Units,Adults and Health,Other Agencies - Third Party P,0090646815,Barchester Healthcare,"7,085.71",26/10/2023
Delivery Units,Adults and Health,Other Agencies - Third Party P,0090646816,Barchester Healthcare,"6,200.00",26/10/2023
Delivery Units,Adults and Health,Other Agencies - Third Party P,0090646817,Barchester Healthcare,"4,784.14",26/10/2023
Delivery Units,Adults and Health,Other Agencies - Third Party P,0090646857,St Matthews Limited,"3,843.69",26/10/2023
Delivery Units,Adults and Health,Other Agencies - Third Party P,0090647741,WESTMINSTER HEALTH CARE LTD,"4,864.08",31/10/2023
Delivery Units,Adults and Health,Other Agencies - Third Party P,0090647769,COOPERSCROFT CARE HOME,"6,642.86",31/10/2023
Delivery Units,Adults and Health,Other Agencies - Third Party P,0090647770,COOPERSCROFT CARE HOME,"1,285.71",31/10/2023
Delivery Units,Adults and Health,Other Agencies - Third Party P,0090647771,COOPERSCROFT CARE HOME,"6,642.86",31/10/2023
Delivery Units,Adults and Health,Other Agencies - Third Party P,0090648184,Barchester Healthcare,"6,200.00",31/10/2023
Delivery Units,Adults and Health,Other Agencies - Third Party P,0090637475,TENTERDEN HOUSE,"4,142.19",04/10/2023
Delivery Units,Adults and Health,Other Agencies - Third Party P,0090637481,SYDMAR LODGE,"5,357.14",04/10/2023
Delivery Units,Adults and Health,Other Agencies - Third Party P,0090637482,SYDMAR LODGE,"4,212.86",04/10/2023
Delivery Units,Adults and Health,Other Agencies - Third Party P,0090637483,SYDMAR LODGE,"5,357.14",04/10/2023
Delivery Units,Adults and Health,Other Agencies - Third Party P,0090637484,SYDMAR LODGE,"5,357.14",04/10/2023
Delivery Units,Adults and Health,Other Agencies - Third Party P,0090637486,SYDMAR LODGE,"5,682.86",04/10/2023
Delivery Units,Adults and Health,Other Agencies - Third Party P,0090637749,Shenleybury House Ltd,"3,985.71",04/10/2023
Delivery Units,Adults and Health,Other Agencies - Third Party P,0090637778,Shenleybury House Ltd,"3,857.14",04/10/2023
Delivery Units,Adults and Health,Other Agencies - Third Party P,0090638705,TBG Mosaic,"2,540.00",09/10/2023
Delivery Units,Adults and Health,Other Agencies - Third Party P,0090638706,TBG Mosaic,"13,863.20",09/10/2023
Delivery Units,Adults and Health,Other Agencies - Third Party P,0090638707,TBG Mosaic,"4,612.00",09/10/2023
Delivery Units,Adults and Health,Other Agencies - Third Party P,0090638708,TBG Mosaic,"8,314.51",09/10/2023
Delivery Units,Adults and Health,Other Agencies - Third Party P,0090638709,TBG Mosaic,"9,673.20",09/10/2023
Delivery Units,Adults and Health,Other Agencies - Third Party P,0090638710,TBG Mosaic,"2,676.00",09/10/2023
Delivery Units,Adults and Health,Other Agencies - Third Party P,0090638711,TBG Mosaic,"2,540.00",09/10/2023
Delivery Units,Adults and Health,Other Agencies - Third Party P,0090638712,TBG Mosaic,"2,540.00",09/10/2023
Delivery Units,Adults and Health,Other Agencies - Third Party P,0090638713,TBG Mosaic,"2,540.00",09/10/2023
Delivery Units,Adults and Health,Other Agencies - Third Party P,0090638714,TBG Mosaic,"2,676.00",09/10/2023
Delivery Units,Adults and Health,Other Agencies - Third Party P,0090638715,TBG Mosaic,"2,676.00",09/10/2023
Delivery Units,Adults and Health,Other Agencies - Third Party P,0090638716,TBG Mosaic,"2,540.00",09/10/2023
Delivery Units,Adults and Health,Other Agencies - Third Party P,0090638717,TBG Mosaic,"2,676.00",09/10/2023
Delivery Units,Adults and Health,Other Agencies - Third Party P,0090638718,TBG Mosaic,"2,676.00",09/10/2023
Delivery Units,Adults and Health,Other Agencies - Third Party P,0090638719,TBG Mosaic,"2,540.00",09/10/2023
Delivery Units,Adults and Health,Other Agencies - Third Party P,0090638720,TBG Mosaic,"2,676.00",09/10/2023
Delivery Units,Adults and Health,Other Agencies - Third Party P,0090638721,TBG Mosaic,"6,803.57",09/10/2023
Delivery Units,Adults and Health,Other Agencies - Third Party P,0090638722,TBG Mosaic,"2,540.00",09/10/2023
Delivery Units,Adults and Health,Other Agencies - Third Party P,0090638723,TBG Mosaic,"2,540.00",09/10/2023
Delivery Units,Adults and Health,Other Agencies - Third Party P,0090638724,TBG Mosaic,"2,540.00",09/10/2023
Delivery Units,Adults and Health,Other Agencies - Third Party P,0090638726,TBG Mosaic,"2,676.00",09/10/2023
Delivery Units,Adults and Health,Other Agencies - Third Party P,0090638727,TBG Mosaic,"4,850.95",09/10/2023
Delivery Units,Adults and Health,Other Agencies - Third Party P,0090638728,TBG Mosaic,"2,676.00",09/10/2023
Delivery Units,Adults and Health,Other Agencies - Third Party P,0090638729,TBG Mosaic,"2,540.00",09/10/2023
Delivery Units,Adults and Health,Other Agencies - Third Party P,0090638730,TBG Mosaic,"2,540.00",09/10/2023
Delivery Units,Adults and Health,Other Agencies - Third Party P,0090638731,TBG Mosaic,"2,540.00",09/10/2023
Delivery Units,Adults and Health,Other Agencies - Third Party P,0090638733,TBG Mosaic,"2,676.00",09/10/2023
Delivery Units,Adults and Health,Other Agencies - Third Party P,0090638734,TBG Mosaic,"2,676.00",09/10/2023
Delivery Units,Adults and Health,Other Agencies - Third Party P,0090638736,TBG Mosaic,"2,540.00",09/10/2023
Delivery Units,Adults and Health,Other Agencies - Third Party P,0090638738,TBG Mosaic,"2,540.00",09/10/2023
Delivery Units,Adults and Health,Other Agencies - Third Party P,0090638739,TBG Mosaic,"2,540.00",09/10/2023
Delivery Units,Adults and Health,Other Agencies - Third Party P,0090638740,TBG Mosaic,"2,540.00",09/10/2023
Delivery Units,Adults and Health,Other Agencies - Third Party P,0090638741,TBG Mosaic,"2,676.00",09/10/2023
Delivery Units,Adults and Health,Other Agencies - Third Party P,0090638742,TBG Mosaic,"2,540.00",09/10/2023
Delivery Units,Adults and Health,Other Agencies - Third Party P,0090638743,TBG Mosaic,"2,540.00",09/10/2023
Delivery Units,Adults and Health,Other Agencies - Third Party P,0090638744,TBG Mosaic,"2,676.00",09/10/2023
Delivery Units,Adults and Health,Other Agencies - Third Party P,0090638745,TBG Mosaic,"2,540.00",09/10/2023
Delivery Units,Adults and Health,Other Agencies - Third Party P,0090638746,TBG Mosaic,"2,676.00",09/10/2023
Delivery Units,Adults and Health,Other Agencies - Third Party P,0090638747,TBG Mosaic,"2,540.00",09/10/2023
Delivery Units,Adults and Health,Other Agencies - Third Party P,0090638748,TBG Mosaic,"2,676.00",09/10/2023
Delivery Units,Adults and Health,Other Agencies - Third Party P,0090638749,TBG Mosaic,"2,857.92",09/10/2023
Delivery Units,Adults and Health,Other Agencies - Third Party P,0090638750,TBG Mosaic,"2,540.00",09/10/2023
Delivery Units,Adults and Health,Other Agencies - Third Party P,0090638751,TBG Mosaic,"2,676.00",09/10/2023
Delivery Units,Adults and Health,Other Agencies - Third Party P,0090638752,TBG Mosaic,"2,540.00",09/10/2023
Delivery Units,Adults and Health,Other Agencies - Third Party P,0090638753,TBG Mosaic,"2,676.00",09/10/2023
Delivery Units,Adults and Health,Other Agencies - Third Party P,0090638754,TBG Mosaic,"2,676.00",09/10/2023
Delivery Units,Adults and Health,Other Agencies - Third Party P,0090638755,TBG Mosaic,"2,676.00",09/10/2023
Delivery Units,Adults and Health,Other Agencies - Third Party P,0090640800,GCH (North London) t/a The Tudors,"2,346.00",12/10/2023
Delivery Units,Adults and Health,Other Agencies - Third Party P,0090640835,FINBOND LIMITED,"3,642.86",13/10/2023
Delivery Units,Adults and Health,Other Agencies - Third Party P,0090640836,FINBOND LIMITED,"3,660.00",13/10/2023
Delivery Units,Adults and Health,Other Agencies - Third Party P,0090640837,FINBOND LIMITED,"3,764.29",13/10/2023
Delivery Units,Adults and Health,Other Agencies - Third Party P,0090640838,FINBOND LIMITED,"3,764.29",13/10/2023
Delivery Units,Adults and Health,Other Agencies - Third Party P,0090640839,FINBOND LIMITED,"3,642.86",13/10/2023
Delivery Units,Adults and Health,Other Agencies - Third Party P,0090640840,FINBOND LIMITED,"1,092.86",13/10/2023
Delivery Units,Adults and Health,Other Agencies - Third Party P,0090641903,LANCASTER COURT,"3,026.11",16/10/2023
Delivery Units,Adults and Health,Other Agencies - Third Party P,0090642552,ROSEACRES CARE HOME LIMITED,"3,336.00",17/10/2023
Delivery Units,Adults and Health,Other Agencies - Third Party P,0090642572,CATHERINE LODGE,"3,580.00",17/10/2023
Delivery Units,Adults and Health,Other Agencies - Third Party P,0090642574,CARLTON COURT (TLC GROUP),"5,800.00",17/10/2023
Delivery Units,Adults and Health,Other Agencies - Third Party P,0090642580,CARLTON COURT (TLC GROUP),"5,400.00",17/10/2023
Delivery Units,Adults and Health,Other Agencies - Third Party P,0090642586,ROSEACRES CARE HOME LIMITED,"3,416.00",17/10/2023
Delivery Units,Adults and Health,Other Agencies - Third Party P,0090642598,CATHERINE LODGE,"3,200.00",17/10/2023
Delivery Units,Adults and Health,Other Agencies - Third Party P,0090642610,ROSEACRES CARE HOME LIMITED,"-7,339.14",17/10/2023
Delivery Units,Adults and Health,Other Agencies - Third Party P,0090642616,ROSEACRES CARE HOME LIMITED,99.43,17/10/2023
Delivery Units,Adults and Health,Other Agencies - Third Party P,0090642621,CATHERINE LODGE,"3,800.00",17/10/2023
Delivery Units,Adults and Health,Other Agencies - Third Party P,0090642636,CARLTON COURT (TLC GROUP),"5,200.00",17/10/2023
Delivery Units,Adults and Health,Other Agencies - Third Party P,0090642658,CATHERINE LODGE,"3,800.00",17/10/2023
Delivery Units,Adults and Health,Other Agencies - Third Party P,0090642664,ROSEACRES CARE HOME LIMITED,"5,068.78",17/10/2023
Delivery Units,Adults and Health,Other Agencies - Third Party P,0090642682,ROSEACRES CARE HOME LIMITED,"3,616.00",17/10/2023
Delivery Units,Adults and Health,Other Agencies - Third Party P,0090642690,CATHERINE LODGE,"3,800.00",17/10/2023
Delivery Units,Adults and Health,Other Agencies - Third Party P,0090642711,ROSEACRES CARE HOME LIMITED,"1,050.21",17/10/2023
Delivery Units,Adults and Health,Other Agencies - Third Party P,0090642719,CATHERINE LODGE,"3,000.00",17/10/2023
Delivery Units,Adults and Health,Other Agencies - Third Party P,0090642723,CARLTON COURT (TLC GROUP),"6,376.16",17/10/2023
Delivery Units,Adults and Health,Other Agencies - Third Party P,0090642727,ROSEACRES CARE HOME LIMITED,"3,336.00",17/10/2023
Delivery Units,Adults and Health,Other Agencies - Third Party P,0090642754,ROSEACRES CARE HOME LIMITED,"3,616.00",17/10/2023
Delivery Units,Adults and Health,Other Agencies - Third Party P,0090642761,CATHERINE LODGE,"3,200.00",17/10/2023
Delivery Units,Adults and Health,Other Agencies - Third Party P,0090642769,ROSEACRES CARE HOME LIMITED,"5,068.78",17/10/2023
Delivery Units,Adults and Health,Other Agencies - Third Party P,0090642782,CARLTON COURT (TLC GROUP),"10,250.00",17/10/2023
Delivery Units,Adults and Health,Other Agencies - Third Party P,0090642783,ROSEACRES CARE HOME LIMITED,"7,192.85",17/10/2023
Delivery Units,Adults and Health,Other Agencies - Third Party P,0090642785,ROSEACRES CARE HOME LIMITED,"16,814.28",17/10/2023
Delivery Units,Adults and Health,Other Agencies - Third Party P,0090642807,CATHERINE LODGE,"3,800.00",17/10/2023
Delivery Units,Adults and Health,Other Agencies - Third Party P,0090642818,CATHERINE LODGE,"3,800.00",17/10/2023
Delivery Units,Adults and Health,Other Agencies - Third Party P,0090642826,ROSEACRES CARE HOME LIMITED,"3,800.00",17/10/2023
Delivery Units,Adults and Health,Other Agencies - Third Party P,0090642829,ROSEACRES CARE HOME LIMITED,"7,267.86",17/10/2023
Delivery Units,Adults and Health,Other Agencies - Third Party P,0090642845,ROSEACRES CARE HOME LIMITED,"5,568.78",17/10/2023
Delivery Units,Adults and Health,Other Agencies - Third Party P,0090642853,ROSEACRES CARE HOME LIMITED,"3,620.00",17/10/2023
Delivery Units,Adults and Health,Other Agencies - Third Party P,0090642857,ROSEACRES CARE HOME LIMITED,"5,819.65",17/10/2023
Delivery Units,Adults and Health,Other Agencies - Third Party P,0090642858,ROSEACRES CARE HOME LIMITED,"3,800.00",17/10/2023
Delivery Units,Adults and Health,Other Agencies - Third Party P,0090642889,CATHERINE LODGE,"3,800.00",17/10/2023
Delivery Units,Adults and Health,Other Agencies - Third Party P,0090642924,ROSEACRES CARE HOME LIMITED,"3,616.00",17/10/2023
Delivery Units,Adults and Health,Other Agencies - Third Party P,0090642959,ROSEACRES CARE HOME LIMITED,"3,416.00",17/10/2023
Delivery Units,Adults and Health,Other Agencies - Third Party P,0090642984,ROSEACRES CARE HOME LIMITED,"-7,232.00",17/10/2023
Delivery Units,Adults and Health,Other Agencies - Third Party P,0090643032,ROSEACRES CARE HOME LIMITED,192.65,17/10/2023
Delivery Units,Adults and Health,Other Agencies - Third Party P,0090643048,CATHERINE LODGE,"1,628.57",17/10/2023
Delivery Units,Adults and Health,Other Agencies - Third Party P,0090643520,FINBOND LIMITED,470.57,20/10/2023
Delivery Units,Adults and Health,Other Agencies - Third Party P,0090646349,TENTERDEN HOUSE,"4,280.26",26/10/2023
Delivery Units,Adults and Health,Other Agencies - Third Party P,0090637754,VILLA SCALABRINI,"4,285.71",04/10/2023
Delivery Units,Adults and Health,Other Agencies - Third Party P,0090641889,LIVABILITY,"3,528.28",16/10/2023
Delivery Units,Adults and Health,Other Agencies - Third Party P,0090641891,LIVABILITY,"3,740.44",16/10/2023
Delivery Units,Adults and Health,Other Agencies - Third Party P,0090641894,LIVABILITY,"4,720.12",16/10/2023
Delivery Units,Adults and Health,Other Agencies - Third Party P,0090642985,WOODFIELD HOUSE,"14,081.60",17/10/2023
Delivery Units,Adults and Health,Other Agencies - Third Party P,0090639122,AGUDAS ISRAEL HOUSING ASSCTN LTD,"4,285.71",09/10/2023
Delivery Units,Adults and Health,Other Agencies - Third Party P,0090639123,AGUDAS ISRAEL HOUSING ASSCTN LTD,"12,090.00",09/10/2023
Delivery Units,Adults and Health,Other Agencies - Third Party P,0090637213,B & M CARE,"3,642.86",02/10/2023
Delivery Units,Adults and Health,Other Agencies - Third Party P,0090637472,Karuna Manor,"6,428.57",04/10/2023
Delivery Units,Adults and Health,Other Agencies - Third Party P,0090637474,Newgrange of Cheshunt Ltd,"3,634.29",04/10/2023
Delivery Units,Adults and Health,Other Agencies - Third Party P,0090637750,Hillyfield Rest Home Limited,"4,714.20",04/10/2023
Delivery Units,Adults and Health,Other Agencies - Third Party P,0090637756,B & M CARE,"4,071.43",04/10/2023
Delivery Units,Adults and Health,Other Agencies - Third Party P,0090637760,Westbourne Care Home,"7,662.86",04/10/2023
Delivery Units,Adults and Health,Other Agencies - Third Party P,0090637769,Barchester Healthcare,"5,280.00",04/10/2023
Delivery Units,Adults and Health,Other Agencies - Third Party P,0090637777,Alexandra House (Runwood Homes),"2,680.71",04/10/2023
Delivery Units,Adults and Health,Other Agencies - Third Party P,0090639115,MEERA NURSING HOME LIMITED,"3,874.29",09/10/2023
Delivery Units,Adults and Health,Other Agencies - Third Party P,0090639130,Hillyfield Rest Home Limited,"4,714.20",09/10/2023
Delivery Units,Adults and Health,Other Agencies - Third Party P,0090639131,Friends of The Elderly (Retired Nurses,"5,185.50",09/10/2023
Delivery Units,Adults and Health,Other Agencies - Third Party P,0090639144,Brownlow Enterprises Ltd,"3,441.43",09/10/2023
Delivery Units,Adults and Health,Other Agencies - Third Party P,0090639145,TORRINGTON HOMES,"4,885.72",09/10/2023
Delivery Units,Adults and Health,Other Agencies - Third Party P,0090639146,Brownlow Enterprises Ltd,"3,462.86",09/10/2023
Delivery Units,Adults and Health,Other Agencies - Third Party P,0090639147,Brownlow Enterprises Ltd,"3,707.14",09/10/2023
Delivery Units,Adults and Health,Other Agencies - Third Party P,0090639148,Brownlow Enterprises Ltd,"3,227.14",09/10/2023
Delivery Units,Adults and Health,Other Agencies - Third Party P,0090639149,Brownlow Enterprises Ltd,"3,441.43",09/10/2023
Delivery Units,Adults and Health,Other Agencies - Third Party P,0090639388,QUANTUM CARE LIMITED,"4,071.43",09/10/2023
Delivery Units,Adults and Health,Other Agencies - Third Party P,0090639394,Brownlow Enterprises Ltd,"3,462.86",09/10/2023
Delivery Units,Adults and Health,Other Agencies - Third Party P,0090639395,Brownlow Enterprises Ltd,"3,441.43",09/10/2023
Delivery Units,Adults and Health,Other Agencies - Third Party P,0090639396,Brownlow Enterprises Ltd,"3,707.14",09/10/2023
Delivery Units,Adults and Health,Other Agencies - Third Party P,0090639398,Brownlow Enterprises Ltd,"3,707.14",09/10/2023
Delivery Units,Adults and Health,Other Agencies - Third Party P,0090640341,Enviro Medical Limited - Coniston House,"3,500.00",12/10/2023
Delivery Units,Adults and Health,Other Agencies - Third Party P,0090641078,Boughton Lodge Care Home,"3,100.00",13/10/2023
Delivery Units,Adults and Health,Other Agencies - Third Party P,0090641080,TORRINGTON HOMES,814.29,13/10/2023
Delivery Units,Adults and Health,Other Agencies - Third Party P,0090641879,EASTSIDE HOUSE CARE HOME,"3,800.00",16/10/2023
Delivery Units,Adults and Health,Other Agencies - Third Party P,0090641880,EASTSIDE HOUSE CARE HOME,"3,720.00",16/10/2023
Delivery Units,Adults and Health,Other Agencies - Third Party P,0090641885,THE WOODSIDE HOME,"3,200.00",16/10/2023
Delivery Units,Adults and Health,Other Agencies - Third Party P,0090641886,THE WOODSIDE HOME,"2,800.00",16/10/2023
Delivery Units,Adults and Health,Other Agencies - Third Party P,0090641887,THE WOODSIDE HOME,"2,676.00",16/10/2023
Delivery Units,Adults and Health,Other Agencies - Third Party P,0090641888,THE WOODSIDE HOME,"2,540.00",16/10/2023
Delivery Units,Adults and Health,Other Agencies - Third Party P,0090641897,THE WOODSIDE HOME,"1,371.48",16/10/2023
Delivery Units,Adults and Health,Other Agencies - Third Party P,0090641899,TORRINGTON HOMES,"2,714.29",16/10/2023
Delivery Units,Adults and Health,Other Agencies - Third Party P,0090641900,TORRINGTON HOMES,"4,071.43",16/10/2023
Delivery Units,Adults and Health,Other Agencies - Third Party P,0090641907,TORRINGTON HOMES,"4,071.43",16/10/2023
Delivery Units,Adults and Health,Other Agencies - Third Party P,0090641908,TORRINGTON HOMES,"5,700.00",16/10/2023
Delivery Units,Adults and Health,Other Agencies - Third Party P,0090642407,MEERA NURSING HOME LIMITED,"3,874.28",17/10/2023
Delivery Units,Adults and Health,Other Agencies - Third Party P,0090642408,MEERA NURSING HOME LIMITED,"3,634.28",17/10/2023
Delivery Units,Adults and Health,Other Agencies - Third Party P,0090642410,Brownlow Enterprises Ltd,"3,857.14",17/10/2023
Delivery Units,Adults and Health,Other Agencies - Third Party P,0090642411,Brownlow Enterprises Ltd,"3,857.14",17/10/2023
Delivery Units,Adults and Health,Other Agencies - Third Party P,0090642412,Brownlow Enterprises Ltd,"3,985.67",17/10/2023
Delivery Units,Adults and Health,Other Agencies - Third Party P,0090642413,Brownlow Enterprises Ltd,"3,985.67",17/10/2023
Delivery Units,Adults and Health,Other Agencies - Third Party P,0090642414,Brownlow Enterprises Ltd,"3,857.14",17/10/2023
Delivery Units,Adults and Health,Other Agencies - Third Party P,0090642488,NAZARETH HOUSE,"2,740.00",17/10/2023
Delivery Units,Adults and Health,Other Agencies - Third Party P,0090642490,ELM PARK LODGE,"3,384.92",17/10/2023
Delivery Units,Adults and Health,Other Agencies - Third Party P,0090642492,JEWISH CARE,"3,056.00",17/10/2023
Delivery Units,Adults and Health,Other Agencies - Third Party P,0090642504,THE LIMES RESIDENTIAL HOME,"3,376.00",17/10/2023
Delivery Units,Adults and Health,Other Agencies - Third Party P,0090642513,JEWISH CARE,"3,056.00",17/10/2023
Delivery Units,Adults and Health,Other Agencies - Third Party P,0090642514,JEWISH CARE,"3,056.00",17/10/2023
Delivery Units,Adults and Health,Other Agencies - Third Party P,0090642515,JEWISH CARE,"3,056.00",17/10/2023
Delivery Units,Adults and Health,Other Agencies - Third Party P,0090642518,THE LIMES RESIDENTIAL HOME,"3,336.00",17/10/2023
Delivery Units,Adults and Health,Other Agencies - Third Party P,0090642519,JEWISH CARE,"2,896.00",17/10/2023
Delivery Units,Adults and Health,Other Agencies - Third Party P,0090642523,JEWISH CARE,"2,896.00",17/10/2023
Delivery Units,Adults and Health,Other Agencies - Third Party P,0090642524,ELEANOR PALMER TRUST NO 2 A/C.,"5,344.00",17/10/2023
Delivery Units,Adults and Health,Other Agencies - Third Party P,0090642525,ELEANOR PALMER TRUST NO 2 A/C.,"5,344.00",17/10/2023
Delivery Units,Adults and Health,Other Agencies - Third Party P,0090642533,Aarandale Manor Care Home,"5,000.00",17/10/2023
Delivery Units,Adults and Health,Other Agencies - Third Party P,0090642537,BUPA CARE HOMES,"2,732.00",17/10/2023
Delivery Units,Adults and Health,Other Agencies - Third Party P,0090642543,ELEANOR PALMER TRUST NO 2 A/C.,"4,000.00",17/10/2023
Delivery Units,Adults and Health,Other Agencies - Third Party P,0090642546,JEWISH CARE,"4,481.48",17/10/2023
Delivery Units,Adults and Health,Other Agencies - Third Party P,0090642549,JEWISH CARE,"3,056.00",17/10/2023
Delivery Units,Adults and Health,Other Agencies - Third Party P,0090642551,JEWISH CARE,"3,056.00",17/10/2023
Delivery Units,Adults and Health,Other Agencies - Third Party P,0090642563,JEWISH CARE,"3,056.00",17/10/2023
Delivery Units,Adults and Health,Other Agencies - Third Party P,0090642575,JEWISH CARE,"3,056.00",17/10/2023
Delivery Units,Adults and Health,Other Agencies - Third Party P,0090642579,JEWISH CARE,"5,286.40",17/10/2023
Delivery Units,Adults and Health,Other Agencies - Third Party P,0090642583,LIFESTYLE CARE PLC,"3,200.00",17/10/2023
Delivery Units,Adults and Health,Other Agencies - Third Party P,0090642584,ELMHURST RESIDENTIAL HOME,"3,800.00",17/10/2023
Delivery Units,Adults and Health,Other Agencies - Third Party P,0090642585,JEWISH CARE,"3,056.00",17/10/2023
Delivery Units,Adults and Health,Other Agencies - Third Party P,0090642591,NAZARETH HOUSE,"2,890.08",17/10/2023
Delivery Units,Adults and Health,Other Agencies - Third Party P,0090642592,JEWISH CARE,"2,896.00",17/10/2023
Delivery Units,Adults and Health,Other Agencies - Third Party P,0090642594,JEWISH CARE,"3,720.36",17/10/2023
Delivery Units,Adults and Health,Other Agencies - Third Party P,0090642595,JEWISH CARE,"3,056.00",17/10/2023
Delivery Units,Adults and Health,Other Agencies - Third Party P,0090642596,NAZARETH HOUSE,"2,890.08",17/10/2023
Delivery Units,Adults and Health,Other Agencies - Third Party P,0090642600,BUPA NURSING HOMES LTD - ARKLEY,"6,485.69",17/10/2023
Delivery Units,Adults and Health,Other Agencies - Third Party P,0090642607,NAZARETH HOUSE,"2,740.00",17/10/2023
Delivery Units,Adults and Health,Other Agencies - Third Party P,0090642608,JEWISH CARE,"7,874.40",17/10/2023
Delivery Units,Adults and Health,Other Agencies - Third Party P,0090642611,ELMHURST RESIDENTIAL HOME,"4,000.00",17/10/2023
Delivery Units,Adults and Health,Other Agencies - Third Party P,0090642612,APPLE TREE COURT CARE HOME,"4,842.57",17/10/2023
Delivery Units,Adults and Health,Other Agencies - Third Party P,0090642624,NAZARETH HOUSE,"4,828.88",17/10/2023
Delivery Units,Adults and Health,Other Agencies - Third Party P,0090642631,JEWISH CARE,"3,056.00",17/10/2023
Delivery Units,Adults and Health,Other Agencies - Third Party P,0090642638,CEDARS NURSING HOME,"5,200.00",17/10/2023
Delivery Units,Adults and Health,Other Agencies - Third Party P,0090642640,CARE UK COMMUNITY PARTNERSHIPS,"5,130.00",17/10/2023
Delivery Units,Adults and Health,Other Agencies - Third Party P,0090642652,CARE UK COMMUNITY PARTNERSHIPS,"7,907.58",17/10/2023
Delivery Units,Adults and Health,Other Agencies - Third Party P,0090642657,CEDARS NURSING HOME,"4,800.00",17/10/2023
Delivery Units,Adults and Health,Other Agencies - Third Party P,0090642659,JEWISH CARE,"3,056.00",17/10/2023
Delivery Units,Adults and Health,Other Agencies - Third Party P,0090642663,BUPA CARE HOMES,"3,577.92",17/10/2023
Delivery Units,Adults and Health,Other Agencies - Third Party P,0090642665,SAGE NURSING HOME,"3,620.00",17/10/2023
Delivery Units,Adults and Health,Other Agencies - Third Party P,0090642667,ELEANOR PALMER TRUST NO 2 A/C.,"4,800.01",17/10/2023
Delivery Units,Adults and Health,Other Agencies - Third Party P,0090642668,JEWISH CARE,"3,056.00",17/10/2023
Delivery Units,Adults and Health,Other Agencies - Third Party P,0090642670,NAZARETH HOUSE,"2,890.08",17/10/2023
Delivery Units,Adults and Health,Other Agencies - Third Party P,0090642676,ELMHURST RESIDENTIAL HOME,"3,600.00",17/10/2023
Delivery Units,Adults and Health,Other Agencies - Third Party P,0090642678,NAZARETH HOUSE,"2,740.00",17/10/2023
Delivery Units,Adults and Health,Other Agencies - Third Party P,0090642684,APPLE TREE COURT CARE HOME,"4,842.57",17/10/2023
Delivery Units,Adults and Health,Other Agencies - Third Party P,0090642685,APPLE TREE COURT CARE HOME,"4,842.57",17/10/2023
Delivery Units,Adults and Health,Other Agencies - Third Party P,0090642697,THE LIMES RESIDENTIAL HOME,"3,620.00",17/10/2023
Delivery Units,Adults and Health,Other Agencies - Third Party P,0090642701,JEWISH CARE,"2,896.00",17/10/2023
Delivery Units,Adults and Health,Other Agencies - Third Party P,0090642703,APPLE TREE COURT CARE HOME,"5,794.57",17/10/2023
Delivery Units,Adults and Health,Other Agencies - Third Party P,0090642707,LIFESTYLE CARE PLC,"4,842.57",17/10/2023
Delivery Units,Adults and Health,Other Agencies - Third Party P,0090642709,Aarandale Manor Care Home,"5,200.00",17/10/2023
Delivery Units,Adults and Health,Other Agencies - Third Party P,0090642716,SAGE NURSING HOME,"2,856.00",17/10/2023
Delivery Units,Adults and Health,Other Agencies - Third Party P,0090642720,THE LIMES RESIDENTIAL HOME,"2,892.00",17/10/2023
Delivery Units,Adults and Health,Other Agencies - Third Party P,0090642724,NAZARETH HOUSE,"2,740.00",17/10/2023
Delivery Units,Adults and Health,Other Agencies - Third Party P,0090642726,THE LIMES RESIDENTIAL HOME,"2,892.00",17/10/2023
Delivery Units,Adults and Health,Other Agencies - Third Party P,0090642732,ELEANOR PALMER TRUST NO 2 A/C.,"5,344.00",17/10/2023
Delivery Units,Adults and Health,Other Agencies - Third Party P,0090642736,ELEANOR PALMER TRUST NO 2 A/C.,"4,000.00",17/10/2023
Delivery Units,Adults and Health,Other Agencies - Third Party P,0090642738,JEWISH CARE,"2,896.00",17/10/2023
Delivery Units,Adults and Health,Other Agencies - Third Party P,0090642739,JEWISH CARE,"3,056.00",17/10/2023
Delivery Units,Adults and Health,Other Agencies - Third Party P,0090642743,APPLE TREE COURT CARE HOME,"4,400.00",17/10/2023
Delivery Units,Adults and Health,Other Agencies - Third Party P,0090642744,JEWISH CARE,"3,056.00",17/10/2023
Delivery Units,Adults and Health,Other Agencies - Third Party P,0090642745,ABBEY RAVENSCROFT PARK NURSING HOME,"4,032.20",17/10/2023
Delivery Units,Adults and Health,Other Agencies - Third Party P,0090642746,JEWISH CARE,"2,896.00",17/10/2023
Delivery Units,Adults and Health,Other Agencies - Third Party P,0090642749,JEWISH CARE,"3,056.00",17/10/2023
Delivery Units,Adults and Health,Other Agencies - Third Party P,0090642750,JEWISH CARE,"3,056.00",17/10/2023
Delivery Units,Adults and Health,Other Agencies - Third Party P,0090642753,ELEANOR PALMER TRUST NO 2 A/C.,"5,344.00",17/10/2023
Delivery Units,Adults and Health,Other Agencies - Third Party P,0090642755,BUPA CARE HOMES,"2,976.00",17/10/2023
Delivery Units,Adults and Health,Other Agencies - Third Party P,0090642756,LIFESTYLE CARE PLC,"3,600.00",17/10/2023
Delivery Units,Adults and Health,Other Agencies - Third Party P,0090642758,NAZARETH HOUSE,"2,890.08",17/10/2023
Delivery Units,Adults and Health,Other Agencies - Third Party P,0090642762,BUPA CARE HOMES,"4,880.69",17/10/2023
Delivery Units,Adults and Health,Other Agencies - Third Party P,0090642763,JEWISH CARE,"2,896.00",17/10/2023
Delivery Units,Adults and Health,Other Agencies - Third Party P,0090642771,SAGE NURSING HOME,"3,256.00",17/10/2023
Delivery Units,Adults and Health,Other Agencies - Third Party P,0090642774,JEWISH CARE,"3,052.00",17/10/2023
Delivery Units,Adults and Health,Other Agencies - Third Party P,0090642779,NAZARETH HOUSE,"7,071.43",17/10/2023
Delivery Units,Adults and Health,Other Agencies - Third Party P,0090642786,NAZARETH HOUSE,"3,140.00",17/10/2023
Delivery Units,Adults and Health,Other Agencies - Third Party P,0090642789,LIFESTYLE CARE PLC,"35,811.71",17/10/2023
Delivery Units,Adults and Health,Other Agencies - Third Party P,0090642797,CARE UK COMMUNITY PARTNERSHIPS,135.00,17/10/2023
Delivery Units,Adults and Health,Other Agencies - Third Party P,0090642802,NAZARETH HOUSE,"3,019.68",17/10/2023
Delivery Units,Adults and Health,Other Agencies - Third Party P,0090642805,CARE UK COMMUNITY PARTNERSHIPS,"4,959.00",17/10/2023
Delivery Units,Adults and Health,Other Agencies - Third Party P,0090642806,APPLE TREE COURT CARE HOME,"5,124.00",17/10/2023
Delivery Units,Adults and Health,Other Agencies - Third Party P,0090642808,NAZARETH HOUSE,"3,019.68",17/10/2023
Delivery Units,Adults and Health,Other Agencies - Third Party P,0090642809,NAZARETH HOUSE,"3,019.68",17/10/2023
Delivery Units,Adults and Health,Other Agencies - Third Party P,0090642810,Aarandale Manor Care Home,"5,000.00",17/10/2023
Delivery Units,Adults and Health,Other Agencies - Third Party P,0090642811,CARE UK COMMUNITY PARTNERSHIPS,252.00,17/10/2023
Delivery Units,Adults and Health,Other Agencies - Third Party P,0090642813,THE LIMES RESIDENTIAL HOME,"3,400.00",17/10/2023
Delivery Units,Adults and Health,Other Agencies - Third Party P,0090642816,NAZARETH HOUSE,"2,890.08",17/10/2023
Delivery Units,Adults and Health,Other Agencies - Third Party P,0090642819,BUPA CARE HOMES,"4,880.69",17/10/2023
Delivery Units,Adults and Health,Other Agencies - Third Party P,0090642820,CEDARS NURSING HOME,"5,200.00",17/10/2023
Delivery Units,Adults and Health,Other Agencies - Third Party P,0090642832,NAZARETH HOUSE,"3,140.00",17/10/2023
Delivery Units,Adults and Health,Other Agencies - Third Party P,0090642838,ELEANOR PALMER TRUST NO 2 A/C.,"4,000.00",17/10/2023
Delivery Units,Adults and Health,Other Agencies - Third Party P,0090642841,APPLE TREE COURT CARE HOME,"3,800.00",17/10/2023
Delivery Units,Adults and Health,Other Agencies - Third Party P,0090642843,LIFESTYLE CARE PLC,"4,842.57",17/10/2023
Delivery Units,Adults and Health,Other Agencies - Third Party P,0090642844,THE LIMES RESIDENTIAL HOME,"3,416.00",17/10/2023
Delivery Units,Adults and Health,Other Agencies - Third Party P,0090642850,ELEANOR PALMER TRUST NO 2 A/C.,"4,383.99",17/10/2023
Delivery Units,Adults and Health,Other Agencies - Third Party P,0090642859,JEWISH CARE,"3,056.00",17/10/2023
Delivery Units,Adults and Health,Other Agencies - Third Party P,0090642863,BUPA CARE HOMES,"4,000.00",17/10/2023
Delivery Units,Adults and Health,Other Agencies - Third Party P,0090642874,JEWISH CARE,"3,056.00",17/10/2023
Delivery Units,Adults and Health,Other Agencies - Third Party P,0090642875,CARE UK COMMUNITY PARTNERSHIPS,171.00,17/10/2023
Delivery Units,Adults and Health,Other Agencies - Third Party P,0090642876,BUPA NURSING HOMES LTD - ARKLEY,"3,900.00",17/10/2023
Delivery Units,Adults and Health,Other Agencies - Third Party P,0090642881,JEWISH CARE,"3,212.00",17/10/2023
Delivery Units,Adults and Health,Other Agencies - Third Party P,0090642882,JEWISH CARE,"3,056.00",17/10/2023
Delivery Units,Adults and Health,Other Agencies - Third Party P,0090642887,CARE UK COMMUNITY PARTNERSHIPS,252.00,17/10/2023
Delivery Units,Adults and Health,Other Agencies - Third Party P,0090642910,CEDARS NURSING HOME,"4,000.00",17/10/2023
Delivery Units,Adults and Health,Other Agencies - Third Party P,0090642915,ELMHURST RESIDENTIAL HOME,"2,357.14",17/10/2023
Delivery Units,Adults and Health,Other Agencies - Third Party P,0090642917,ELEANOR PALMER TRUST NO 2 A/C.,"3,301.14",17/10/2023
Delivery Units,Adults and Health,Other Agencies - Third Party P,0090642923,JEWISH CARE,"3,056.00",17/10/2023
Delivery Units,Adults and Health,Other Agencies - Third Party P,0090642927,THE LIMES RESIDENTIAL HOME,"3,336.00",17/10/2023
Delivery Units,Adults and Health,Other Agencies - Third Party P,0090642929,NAZARETH HOUSE,"2,890.08",17/10/2023
Delivery Units,Adults and Health,Other Agencies - Third Party P,0090642932,NAZARETH HOUSE,"4,104.00",17/10/2023
Delivery Units,Adults and Health,Other Agencies - Third Party P,0090642933,JEWISH CARE,"3,056.00",17/10/2023
Delivery Units,Adults and Health,Other Agencies - Third Party P,0090642936,JEWISH CARE,"2,896.00",17/10/2023
Delivery Units,Adults and Health,Other Agencies - Third Party P,0090642938,NAZARETH HOUSE,"2,740.00",17/10/2023
Delivery Units,Adults and Health,Other Agencies - Third Party P,0090642940,THE LIMES RESIDENTIAL HOME,"3,336.00",17/10/2023
Delivery Units,Adults and Health,Other Agencies - Third Party P,0090642941,NAZARETH HOUSE,"2,890.08",17/10/2023
Delivery Units,Adults and Health,Other Agencies - Third Party P,0090642943,JEWISH CARE,"3,056.00",17/10/2023
Delivery Units,Adults and Health,Other Agencies - Third Party P,0090642948,NAZARETH HOUSE,"2,740.00",17/10/2023
Delivery Units,Adults and Health,Other Agencies - Third Party P,0090642949,ELEANOR PALMER TRUST NO 2 A/C.,"2,358.29",17/10/2023
Delivery Units,Adults and Health,Other Agencies - Third Party P,0090642950,NAZARETH HOUSE,"2,890.08",17/10/2023
Delivery Units,Adults and Health,Other Agencies - Third Party P,0090642954,THE LIMES RESIDENTIAL HOME,"3,436.00",17/10/2023
Delivery Units,Adults and Health,Other Agencies - Third Party P,0090642961,NAZARETH HOUSE,"2,890.08",17/10/2023
Delivery Units,Adults and Health,Other Agencies - Third Party P,0090642962,JEWISH CARE,"3,056.00",17/10/2023
Delivery Units,Adults and Health,Other Agencies - Third Party P,0090642966,ELMHURST RESIDENTIAL HOME,"3,664.29",17/10/2023
Delivery Units,Adults and Health,Other Agencies - Third Party P,0090642967,NAZARETH HOUSE,"2,890.08",17/10/2023
Delivery Units,Adults and Health,Other Agencies - Third Party P,0090642971,ELEANOR PALMER TRUST NO 2 A/C.,"4,799.99",17/10/2023
Delivery Units,Adults and Health,Other Agencies - Third Party P,0090642986,JEWISH CARE,"3,212.00",17/10/2023
Delivery Units,Adults and Health,Other Agencies - Third Party P,0090642990,APPLE TREE COURT CARE HOME,"5,124.00",17/10/2023
Delivery Units,Adults and Health,Other Agencies - Third Party P,0090643005,THE LIMES RESIDENTIAL HOME,"3,620.00",17/10/2023
Delivery Units,Adults and Health,Other Agencies - Third Party P,0090643013,CARE UK COMMUNITY PARTNERSHIPS,"4,950.00",17/10/2023
Delivery Units,Adults and Health,Other Agencies - Third Party P,0090643015,JEWISH CARE,"3,017.80",17/10/2023
Delivery Units,Adults and Health,Other Agencies - Third Party P,0090643019,LIFESTYLE CARE PLC,492.86,17/10/2023
Delivery Units,Adults and Health,Other Agencies - Third Party P,0090643025,JEWISH CARE,"4,142.00",17/10/2023
Delivery Units,Adults and Health,Other Agencies - Third Party P,0090643027,CARE UK COMMUNITY PARTNERSHIPS,"6,053.15",17/10/2023
Delivery Units,Adults and Health,Other Agencies - Third Party P,0090643028,ELM PARK LODGE,"2,792.86",17/10/2023
Delivery Units,Adults and Health,Other Agencies - Third Party P,0090643035,JEWISH CARE,"5,784.57",17/10/2023
Delivery Units,Adults and Health,Other Agencies - Third Party P,0090643036,NAZARETH HOUSE,"3,140.00",17/10/2023
Delivery Units,Adults and Health,Other Agencies - Third Party P,0090643037,NAZARETH HOUSE,"3,140.00",17/10/2023
Delivery Units,Adults and Health,Other Agencies - Third Party P,0090643038,CARE UK COMMUNITY PARTNERSHIPS,"3,852.00",17/10/2023
Delivery Units,Adults and Health,Other Agencies - Third Party P,0090643041,NAZARETH HOUSE,"2,803.57",17/10/2023
Delivery Units,Adults and Health,Other Agencies - Third Party P,0090643044,NAZARETH HOUSE,"3,027.86",17/10/2023
Delivery Units,Adults and Health,Other Agencies - Third Party P,0090643045,NAZARETH HOUSE,"3,027.86",17/10/2023
Delivery Units,Adults and Health,Other Agencies - Third Party P,0090643050,ELM PARK LODGE,"53,295.00",17/10/2023
Delivery Units,Adults and Health,Other Agencies - Third Party P,0090643054,JEWISH CARE,"1,485.71",17/10/2023
Delivery Units,Adults and Health,Other Agencies - Third Party P,0090643398,EASTSIDE HOUSE CARE HOME,"3,800.00",18/10/2023
Delivery Units,Adults and Health,Other Agencies - Third Party P,0090643399,EASTSIDE HOUSE CARE HOME,"3,800.00",18/10/2023
Delivery Units,Adults and Health,Other Agencies - Third Party P,0090643400,EASTSIDE HOUSE CARE HOME,"3,800.00",18/10/2023
Delivery Units,Adults and Health,Other Agencies - Third Party P,0090644815,3A Care (London) Ltd,"11,894.29",20/10/2023
Delivery Units,Adults and Health,Other Agencies - Third Party P,0090644816,3A Care (London) Ltd,"1,564.29",20/10/2023
Delivery Units,Adults and Health,Other Agencies - Third Party P,0090644971,Green Trees Care Home,"4,384.33",23/10/2023
Delivery Units,Adults and Health,Other Agencies - Third Party P,0090644979,THE CHRISTIAN CARE TRUST,"4,317.68",23/10/2023
Delivery Units,Adults and Health,Other Agencies - Third Party P,0090644984,TORRINGTON HOMES,"4,207.14",23/10/2023
Delivery Units,Adults and Health,Other Agencies - Third Party P,0090644985,TORRINGTON HOMES,"4,207.14",23/10/2023
Delivery Units,Adults and Health,Other Agencies - Third Party P,0090646000,Hillyfield Rest Home Limited,"4,871.34",24/10/2023
Delivery Units,Adults and Health,Other Agencies - Third Party P,0090646004,Hillyfield Rest Home Limited,"4,871.34",24/10/2023
Delivery Units,Adults and Health,Other Agencies - Third Party P,0090646017,Alexandra House (Runwood Homes),"2,770.07",24/10/2023
Delivery Units,Adults and Health,Other Agencies - Third Party P,0090646332,MEERA NURSING HOME LIMITED,"4,003.42",26/10/2023
Delivery Units,Adults and Health,Other Agencies - Third Party P,0090646333,MEERA NURSING HOME LIMITED,"4,003.42",26/10/2023
Delivery Units,Adults and Health,Other Agencies - Third Party P,0090646335,MEERA NURSING HOME LIMITED,"3,755.83",26/10/2023
Delivery Units,Adults and Health,Other Agencies - Third Party P,0090646353,B & M CARE,"3,764.29",26/10/2023
Delivery Units,Adults and Health,Other Agencies - Third Party P,0090646818,Barchester Healthcare,"5,456.00",26/10/2023
Delivery Units,Adults and Health,Other Agencies - Third Party P,0090646822,Westbourne Care Home,"7,918.29",26/10/2023
Delivery Units,Adults and Health,Other Agencies - Third Party P,0090646834,Newgrange of Cheshunt Ltd,"3,755.43",26/10/2023
Delivery Units,Adults and Health,Other Agencies - Third Party P,0090646845,TORRINGTON HOMES,"19,828.56",26/10/2023
Delivery Units,Adults and Health,Other Agencies - Third Party P,0090646846,TORRINGTON HOMES,"14,871.42",26/10/2023
Delivery Units,Adults and Health,Other Agencies - Third Party P,0090646847,TORRINGTON HOMES,"15,367.13",26/10/2023
Delivery Units,Adults and Health,Other Agencies - Third Party P,0090646848,TORRINGTON HOMES,"14,375.71",26/10/2023
Delivery Units,Adults and Health,Other Agencies - Third Party P,0090647745,B & M CARE,"4,207.14",31/10/2023
Delivery Units,Adults and Health,Other Agencies - Third Party P,0090647746,B & M CARE,"4,085.71",31/10/2023
Delivery Units,Adults and Health,Other Agencies - Third Party P,0090647747,B & M CARE,"4,295.71",31/10/2023
Delivery Units,Adults and Health,Other Agencies - Third Party P,0090647749,B & M CARE,"5,314.29",31/10/2023
Delivery Units,Adults and Health,Other Agencies - Third Party P,0090647765,Brownlow Enterprises Ltd,"3,830.71",31/10/2023
Delivery Units,Adults and Health,Other Agencies - Third Party P,0090647772,NIGHTINGALE HOUSE,"20,597.15",31/10/2023
Delivery Units,Adults and Health,Other Agencies - Third Party P,0090648185,Karuna Manor,"6,642.86",31/10/2023
Delivery Units,Adults and Health,Other Agencies - Third Party P,0090648187,Barchester Healthcare,"13,028.57",31/10/2023
Delivery Units,Adults and Health,Other Agencies - Third Party P,0090649109,ANASTASIA LODGE,"3,620.00",31/10/2023
Delivery Units,Adults and Health,Other Agencies - Third Party P,0090649121,Boughton Lodge Care Home,"3,100.00",31/10/2023
Delivery Units,Adults and Health,Other Agencies - Third Party P,0090636968,Eleanor Nursing & Social Care Ltd,166.69,02/10/2023
Delivery Units,Adults and Health,Other Agencies - Third Party P,0090636970,Eleanor Nursing & Social Care Ltd,400.05,02/10/2023
Delivery Units,Adults and Health,Other Agencies - Third Party P,0090636971,Eleanor Nursing & Social Care Ltd,466.73,02/10/2023
Delivery Units,Adults and Health,Other Agencies - Third Party P,0090636972,Eleanor Nursing & Social Care Ltd,100.01,02/10/2023
Delivery Units,Adults and Health,Other Agencies - Third Party P,0090636973,Eleanor Nursing & Social Care Ltd,66.68,02/10/2023
Delivery Units,Adults and Health,Other Agencies - Third Party P,0090636974,Eleanor Nursing & Social Care Ltd,285.75,02/10/2023
Delivery Units,Adults and Health,Other Agencies - Third Party P,0090636976,Eleanor Nursing & Social Care Ltd,28.58,02/10/2023
Delivery Units,Adults and Health,Other Agencies - Third Party P,0090636978,Eleanor Nursing & Social Care Ltd,266.70,02/10/2023
Delivery Units,Adults and Health,Other Agencies - Third Party P,0090636979,Eleanor Nursing & Social Care Ltd,166.69,02/10/2023
Delivery Units,Adults and Health,Other Agencies - Third Party P,0090636980,Eleanor Nursing & Social Care Ltd,66.67,02/10/2023
Delivery Units,Adults and Health,Other Agencies - Third Party P,0090636981,Eleanor Nursing & Social Care Ltd,19.05,02/10/2023
Delivery Units,Adults and Health,Other Agencies - Third Party P,0090636983,Eleanor Nursing & Social Care Ltd,166.69,02/10/2023
Delivery Units,Adults and Health,Other Agencies - Third Party P,0090636984,Eleanor Nursing & Social Care Ltd,233.36,02/10/2023
Delivery Units,Adults and Health,Other Agencies - Third Party P,0090636985,Eleanor Nursing & Social Care Ltd,57.15,02/10/2023
Delivery Units,Adults and Health,Other Agencies - Third Party P,0090636987,Eleanor Nursing & Social Care Ltd,133.35,02/10/2023
Delivery Units,Adults and Health,Other Agencies - Third Party P,0090636988,Eleanor Nursing & Social Care Ltd,738.19,02/10/2023
Delivery Units,Adults and Health,Other Agencies - Third Party P,0090636992,Eleanor Nursing & Social Care Ltd,219.08,02/10/2023
Delivery Units,Adults and Health,Other Agencies - Third Party P,0090636993,Eleanor Nursing & Social Care Ltd,228.60,02/10/2023
Delivery Units,Adults and Health,Other Agencies - Third Party P,0090636994,Eleanor Nursing & Social Care Ltd,66.67,02/10/2023
Delivery Units,Adults and Health,Other Agencies - Third Party P,0090636995,Eleanor Nursing & Social Care Ltd,19.05,02/10/2023
Delivery Units,Adults and Health,Other Agencies - Third Party P,0090636996,Eleanor Nursing & Social Care Ltd,166.69,02/10/2023
Delivery Units,Adults and Health,Other Agencies - Third Party P,0090636997,Eleanor Nursing & Social Care Ltd,100.01,02/10/2023
Delivery Units,Adults and Health,Other Agencies - Third Party P,0090636999,Eleanor Nursing & Social Care Ltd,600.08,02/10/2023
Delivery Units,Adults and Health,Other Agencies - Third Party P,0090637000,Eleanor Nursing & Social Care Ltd,304.80,02/10/2023
Delivery Units,Adults and Health,Other Agencies - Third Party P,0090637001,Eleanor Nursing & Social Care Ltd,300.04,02/10/2023
Delivery Units,Adults and Health,Other Agencies - Third Party P,0090637002,Eleanor Nursing & Social Care Ltd,133.35,02/10/2023
Delivery Units,Adults and Health,Other Agencies - Third Party P,0090637003,Eleanor Nursing & Social Care Ltd,28.58,02/10/2023
Delivery Units,Adults and Health,Other Agencies - Third Party P,0090637005,Eleanor Nursing & Social Care Ltd,133.35,02/10/2023
Delivery Units,Adults and Health,Other Agencies - Third Party P,0090637006,Eleanor Nursing & Social Care Ltd,66.68,02/10/2023
Delivery Units,Adults and Health,Other Agencies - Third Party P,0090637007,Eleanor Nursing & Social Care Ltd,114.30,02/10/2023
Delivery Units,Adults and Health,Other Agencies - Third Party P,0090637008,Eleanor Nursing & Social Care Ltd,100.01,02/10/2023
Delivery Units,Adults and Health,Other Agencies - Third Party P,0090637010,Eleanor Nursing & Social Care Ltd,28.58,02/10/2023
Delivery Units,Adults and Health,Other Agencies - Third Party P,0090637011,Eleanor Nursing & Social Care Ltd,"1,600.20",02/10/2023
Delivery Units,Adults and Health,Other Agencies - Third Party P,0090637012,Eleanor Nursing & Social Care Ltd,171.45,02/10/2023
Delivery Units,Adults and Health,Other Agencies - Third Party P,0090637013,Eleanor Nursing & Social Care Ltd,280.99,02/10/2023
Delivery Units,Adults and Health,Other Agencies - Third Party P,0090637021,Eleanor Nursing & Social Care Ltd,271.46,02/10/2023
Delivery Units,Adults and Health,Other Agencies - Third Party P,0090637022,Eleanor Nursing & Social Care Ltd,"1,200.15",02/10/2023
Delivery Units,Adults and Health,Other Agencies - Third Party P,0090637023,Eleanor Nursing & Social Care Ltd,200.03,02/10/2023
Delivery Units,Adults and Health,Other Agencies - Third Party P,0090637028,Eleanor Nursing & Social Care Ltd,166.69,02/10/2023
Delivery Units,Adults and Health,Other Agencies - Third Party P,0090637030,Eleanor Nursing & Social Care Ltd,400.05,02/10/2023
Delivery Units,Adults and Health,Other Agencies - Third Party P,0090637031,Eleanor Nursing & Social Care Ltd,466.73,02/10/2023
Delivery Units,Adults and Health,Other Agencies - Third Party P,0090637032,Eleanor Nursing & Social Care Ltd,100.01,02/10/2023
Delivery Units,Adults and Health,Other Agencies - Third Party P,0090637033,Eleanor Nursing & Social Care Ltd,66.68,02/10/2023
Delivery Units,Adults and Health,Other Agencies - Third Party P,0090637034,Eleanor Nursing & Social Care Ltd,285.75,02/10/2023
Delivery Units,Adults and Health,Other Agencies - Third Party P,0090637036,Eleanor Nursing & Social Care Ltd,28.58,02/10/2023
Delivery Units,Adults and Health,Other Agencies - Third Party P,0090637038,Eleanor Nursing & Social Care Ltd,266.70,02/10/2023
Delivery Units,Adults and Health,Other Agencies - Third Party P,0090637039,Eleanor Nursing & Social Care Ltd,166.69,02/10/2023
Delivery Units,Adults and Health,Other Agencies - Third Party P,0090637040,Eleanor Nursing & Social Care Ltd,66.67,02/10/2023
Delivery Units,Adults and Health,Other Agencies - Third Party P,0090637041,Eleanor Nursing & Social Care Ltd,19.05,02/10/2023
Delivery Units,Adults and Health,Other Agencies - Third Party P,0090637043,Eleanor Nursing & Social Care Ltd,166.69,02/10/2023
Delivery Units,Adults and Health,Other Agencies - Third Party P,0090637044,Eleanor Nursing & Social Care Ltd,233.36,02/10/2023
Delivery Units,Adults and Health,Other Agencies - Third Party P,0090637046,Eleanor Nursing & Social Care Ltd,133.35,02/10/2023
Delivery Units,Adults and Health,Other Agencies - Third Party P,0090637047,Eleanor Nursing & Social Care Ltd,738.19,02/10/2023
Delivery Units,Adults and Health,Other Agencies - Third Party P,0090637050,Eleanor Nursing & Social Care Ltd,219.08,02/10/2023
Delivery Units,Adults and Health,Other Agencies - Third Party P,0090637051,Eleanor Nursing & Social Care Ltd,228.60,02/10/2023
Delivery Units,Adults and Health,Other Agencies - Third Party P,0090637052,Eleanor Nursing & Social Care Ltd,66.67,02/10/2023
Delivery Units,Adults and Health,Other Agencies - Third Party P,0090637053,Eleanor Nursing & Social Care Ltd,19.05,02/10/2023
Delivery Units,Adults and Health,Other Agencies - Third Party P,0090637054,Eleanor Nursing & Social Care Ltd,166.69,02/10/2023
Delivery Units,Adults and Health,Other Agencies - Third Party P,0090637055,Eleanor Nursing & Social Care Ltd,100.01,02/10/2023
Delivery Units,Adults and Health,Other Agencies - Third Party P,0090637057,Eleanor Nursing & Social Care Ltd,600.08,02/10/2023
Delivery Units,Adults and Health,Other Agencies - Third Party P,0090637058,Eleanor Nursing & Social Care Ltd,133.35,02/10/2023
Delivery Units,Adults and Health,Other Agencies - Third Party P,0090637059,Eleanor Nursing & Social Care Ltd,300.04,02/10/2023
Delivery Units,Adults and Health,Other Agencies - Third Party P,0090637060,Eleanor Nursing & Social Care Ltd,133.35,02/10/2023
Delivery Units,Adults and Health,Other Agencies - Third Party P,0090637061,Eleanor Nursing & Social Care Ltd,28.58,02/10/2023
Delivery Units,Adults and Health,Other Agencies - Third Party P,0090637063,Eleanor Nursing & Social Care Ltd,133.35,02/10/2023
Delivery Units,Adults and Health,Other Agencies - Third Party P,0090637064,Eleanor Nursing & Social Care Ltd,66.68,02/10/2023
Delivery Units,Adults and Health,Other Agencies - Third Party P,0090637065,Eleanor Nursing & Social Care Ltd,100.01,02/10/2023
Delivery Units,Adults and Health,Other Agencies - Third Party P,0090637067,Eleanor Nursing & Social Care Ltd,"1,600.20",02/10/2023
Delivery Units,Adults and Health,Other Agencies - Third Party P,0090637068,Eleanor Nursing & Social Care Ltd,171.45,02/10/2023
Delivery Units,Adults and Health,Other Agencies - Third Party P,0090637069,Eleanor Nursing & Social Care Ltd,300.04,02/10/2023
Delivery Units,Adults and Health,Other Agencies - Third Party P,0090637077,Eleanor Nursing & Social Care Ltd,271.46,02/10/2023
Delivery Units,Adults and Health,Other Agencies - Third Party P,0090637078,Eleanor Nursing & Social Care Ltd,"1,200.15",02/10/2023
Delivery Units,Adults and Health,Other Agencies - Third Party P,0090637079,Eleanor Nursing & Social Care Ltd,166.69,02/10/2023
Delivery Units,Adults and Health,Other Agencies - Third Party P,0090637080,Eleanor Nursing & Social Care Ltd,200.03,02/10/2023
Delivery Units,Adults and Health,Other Agencies - Third Party P,0090637081,Eleanor Nursing & Social Care Ltd,42.86,02/10/2023
Delivery Units,Adults and Health,Other Agencies - Third Party P,0090637085,Eleanor Nursing & Social Care Ltd,166.69,02/10/2023
Delivery Units,Adults and Health,Other Agencies - Third Party P,0090637087,Eleanor Nursing & Social Care Ltd,400.05,02/10/2023
Delivery Units,Adults and Health,Other Agencies - Third Party P,0090637088,Eleanor Nursing & Social Care Ltd,466.73,02/10/2023
Delivery Units,Adults and Health,Other Agencies - Third Party P,0090637089,Eleanor Nursing & Social Care Ltd,100.01,02/10/2023
Delivery Units,Adults and Health,Other Agencies - Third Party P,0090637090,Eleanor Nursing & Social Care Ltd,66.68,02/10/2023
Delivery Units,Adults and Health,Other Agencies - Third Party P,0090637091,Eleanor Nursing & Social Care Ltd,285.75,02/10/2023
Delivery Units,Adults and Health,Other Agencies - Third Party P,0090637093,Eleanor Nursing & Social Care Ltd,28.58,02/10/2023
Delivery Units,Adults and Health,Other Agencies - Third Party P,0090637095,Eleanor Nursing & Social Care Ltd,266.70,02/10/2023
Delivery Units,Adults and Health,Other Agencies - Third Party P,0090637096,Eleanor Nursing & Social Care Ltd,166.69,02/10/2023
Delivery Units,Adults and Health,Other Agencies - Third Party P,0090637097,Eleanor Nursing & Social Care Ltd,66.67,02/10/2023
Delivery Units,Adults and Health,Other Agencies - Third Party P,0090637098,Eleanor Nursing & Social Care Ltd,19.05,02/10/2023
Delivery Units,Adults and Health,Other Agencies - Third Party P,0090637100,Eleanor Nursing & Social Care Ltd,166.69,02/10/2023
Delivery Units,Adults and Health,Other Agencies - Third Party P,0090637102,Eleanor Nursing & Social Care Ltd,233.36,02/10/2023
Delivery Units,Adults and Health,Other Agencies - Third Party P,0090637103,Eleanor Nursing & Social Care Ltd,71.44,02/10/2023
Delivery Units,Adults and Health,Other Agencies - Third Party P,0090637105,Eleanor Nursing & Social Care Ltd,133.35,02/10/2023
Delivery Units,Adults and Health,Other Agencies - Third Party P,0090637106,Eleanor Nursing & Social Care Ltd,"1,481.14",02/10/2023
Delivery Units,Adults and Health,Other Agencies - Third Party P,0090637107,Eleanor Nursing & Social Care Ltd,476.25,02/10/2023
Delivery Units,Adults and Health,Other Agencies - Third Party P,0090637110,Eleanor Nursing & Social Care Ltd,219.08,02/10/2023
Delivery Units,Adults and Health,Other Agencies - Third Party P,0090637111,Eleanor Nursing & Social Care Ltd,228.60,02/10/2023
Delivery Units,Adults and Health,Other Agencies - Third Party P,0090637112,Eleanor Nursing & Social Care Ltd,66.67,02/10/2023
Delivery Units,Adults and Health,Other Agencies - Third Party P,0090637113,Eleanor Nursing & Social Care Ltd,19.05,02/10/2023
Delivery Units,Adults and Health,Other Agencies - Third Party P,0090637114,Eleanor Nursing & Social Care Ltd,100.01,02/10/2023
Delivery Units,Adults and Health,Other Agencies - Third Party P,0090637116,Eleanor Nursing & Social Care Ltd,600.08,02/10/2023
Delivery Units,Adults and Health,Other Agencies - Third Party P,0090637117,Eleanor Nursing & Social Care Ltd,142.88,02/10/2023
Delivery Units,Adults and Health,Other Agencies - Third Party P,0090637118,Eleanor Nursing & Social Care Ltd,133.35,02/10/2023
Delivery Units,Adults and Health,Other Agencies - Third Party P,0090637119,Eleanor Nursing & Social Care Ltd,28.58,02/10/2023
Delivery Units,Adults and Health,Other Agencies - Third Party P,0090637121,Eleanor Nursing & Social Care Ltd,95.25,02/10/2023
Delivery Units,Adults and Health,Other Agencies - Third Party P,0090637122,Eleanor Nursing & Social Care Ltd,66.68,02/10/2023
Delivery Units,Adults and Health,Other Agencies - Third Party P,0090637123,Eleanor Nursing & Social Care Ltd,100.01,02/10/2023
Delivery Units,Adults and Health,Other Agencies - Third Party P,0090637125,Eleanor Nursing & Social Care Ltd,"1,600.20",02/10/2023
Delivery Units,Adults and Health,Other Agencies - Third Party P,0090637126,Eleanor Nursing & Social Care Ltd,171.45,02/10/2023
Delivery Units,Adults and Health,Other Agencies - Third Party P,0090637127,Eleanor Nursing & Social Care Ltd,280.99,02/10/2023
Delivery Units,Adults and Health,Other Agencies - Third Party P,0090637135,Eleanor Nursing & Social Care Ltd,271.46,02/10/2023
Delivery Units,Adults and Health,Other Agencies - Third Party P,0090637136,Eleanor Nursing & Social Care Ltd,"1,200.15",02/10/2023
Delivery Units,Adults and Health,Other Agencies - Third Party P,0090637137,Eleanor Nursing & Social Care Ltd,66.68,02/10/2023
Delivery Units,Adults and Health,Other Agencies - Third Party P,0090637138,Eleanor Nursing & Social Care Ltd,200.03,02/10/2023
Delivery Units,Adults and Health,Other Agencies - Third Party P,0090637139,Eleanor Nursing & Social Care Ltd,42.86,02/10/2023
Delivery Units,Adults and Health,Other Agencies - Third Party P,0090637142,Eleanor Nursing & Social Care Ltd,66.68,02/10/2023
Delivery Units,Adults and Health,Other Agencies - Third Party P,0090637146,Eleanor Nursing & Social Care Ltd,166.69,02/10/2023
Delivery Units,Adults and Health,Other Agencies - Third Party P,0090637148,Eleanor Nursing & Social Care Ltd,400.05,02/10/2023
Delivery Units,Adults and Health,Other Agencies - Third Party P,0090637149,Eleanor Nursing & Social Care Ltd,466.73,02/10/2023
Delivery Units,Adults and Health,Other Agencies - Third Party P,0090637150,Eleanor Nursing & Social Care Ltd,100.01,02/10/2023
Delivery Units,Adults and Health,Other Agencies - Third Party P,0090637151,Eleanor Nursing & Social Care Ltd,66.68,02/10/2023
Delivery Units,Adults and Health,Other Agencies - Third Party P,0090637152,Eleanor Nursing & Social Care Ltd,285.75,02/10/2023
Delivery Units,Adults and Health,Other Agencies - Third Party P,0090637154,Eleanor Nursing & Social Care Ltd,28.58,02/10/2023
Delivery Units,Adults and Health,Other Agencies - Third Party P,0090637156,Eleanor Nursing & Social Care Ltd,266.70,02/10/2023
Delivery Units,Adults and Health,Other Agencies - Third Party P,0090637157,Eleanor Nursing & Social Care Ltd,166.69,02/10/2023
Delivery Units,Adults and Health,Other Agencies - Third Party P,0090637158,Eleanor Nursing & Social Care Ltd,66.67,02/10/2023
Delivery Units,Adults and Health,Other Agencies - Third Party P,0090637159,Eleanor Nursing & Social Care Ltd,19.05,02/10/2023
Delivery Units,Adults and Health,Other Agencies - Third Party P,0090637161,Eleanor Nursing & Social Care Ltd,166.69,02/10/2023
Delivery Units,Adults and Health,Other Agencies - Third Party P,0090637163,Eleanor Nursing & Social Care Ltd,233.36,02/10/2023
Delivery Units,Adults and Health,Other Agencies - Third Party P,0090637164,Eleanor Nursing & Social Care Ltd,71.44,02/10/2023
Delivery Units,Adults and Health,Other Agencies - Third Party P,0090637166,Eleanor Nursing & Social Care Ltd,133.35,02/10/2023
Delivery Units,Adults and Health,Other Agencies - Third Party P,0090637167,Eleanor Nursing & Social Care Ltd,738.19,02/10/2023
Delivery Units,Adults and Health,Other Agencies - Third Party P,0090637168,Eleanor Nursing & Social Care Ltd,476.25,02/10/2023
Delivery Units,Adults and Health,Other Agencies - Third Party P,0090637171,Eleanor Nursing & Social Care Ltd,219.08,02/10/2023
Delivery Units,Adults and Health,Other Agencies - Third Party P,0090637172,Eleanor Nursing & Social Care Ltd,228.60,02/10/2023
Delivery Units,Adults and Health,Other Agencies - Third Party P,0090637173,Eleanor Nursing & Social Care Ltd,66.67,02/10/2023
Delivery Units,Adults and Health,Other Agencies - Third Party P,0090637174,Eleanor Nursing & Social Care Ltd,19.05,02/10/2023
Delivery Units,Adults and Health,Other Agencies - Third Party P,0090637175,Eleanor Nursing & Social Care Ltd,180.98,02/10/2023
Delivery Units,Adults and Health,Other Agencies - Third Party P,0090637176,Eleanor Nursing & Social Care Ltd,100.01,02/10/2023
Delivery Units,Adults and Health,Other Agencies - Third Party P,0090637178,Eleanor Nursing & Social Care Ltd,600.08,02/10/2023
Delivery Units,Adults and Health,Other Agencies - Third Party P,0090637179,Eleanor Nursing & Social Care Ltd,133.35,02/10/2023
Delivery Units,Adults and Health,Other Agencies - Third Party P,0090637180,Eleanor Nursing & Social Care Ltd,28.58,02/10/2023
Delivery Units,Adults and Health,Other Agencies - Third Party P,0090637182,Eleanor Nursing & Social Care Ltd,133.35,02/10/2023
Delivery Units,Adults and Health,Other Agencies - Third Party P,0090637183,Eleanor Nursing & Social Care Ltd,66.68,02/10/2023
Delivery Units,Adults and Health,Other Agencies - Third Party P,0090637184,Eleanor Nursing & Social Care Ltd,100.01,02/10/2023
Delivery Units,Adults and Health,Other Agencies - Third Party P,0090637186,Eleanor Nursing & Social Care Ltd,"1,600.20",02/10/2023
Delivery Units,Adults and Health,Other Agencies - Third Party P,0090637187,Eleanor Nursing & Social Care Ltd,171.45,02/10/2023
Delivery Units,Adults and Health,Other Agencies - Third Party P,0090637188,Eleanor Nursing & Social Care Ltd,280.99,02/10/2023
Delivery Units,Adults and Health,Other Agencies - Third Party P,0090637195,Eleanor Nursing & Social Care Ltd,271.46,02/10/2023
Delivery Units,Adults and Health,Other Agencies - Third Party P,0090637196,Eleanor Nursing & Social Care Ltd,"1,200.15",02/10/2023
Delivery Units,Adults and Health,Other Agencies - Third Party P,0090637197,Eleanor Nursing & Social Care Ltd,200.03,02/10/2023
Delivery Units,Adults and Health,Other Agencies - Third Party P,0090637198,Eleanor Nursing & Social Care Ltd,42.86,02/10/2023
Delivery Units,Adults and Health,Other Agencies - Third Party P,0090637200,Eleanor Nursing & Social Care Ltd,66.68,02/10/2023
Delivery Units,Adults and Health,Other Agencies - Third Party P,0090637204,Eleanor Nursing & Social Care Ltd,76.20,02/10/2023
Delivery Units,Adults and Health,Other Agencies - Third Party P,0090637246,Social Care Consortium Limited,330.30,02/10/2023
Delivery Units,Adults and Health,Other Agencies - Third Party P,0090637248,Social Care Consortium Limited,82.58,02/10/2023
Delivery Units,Adults and Health,Other Agencies - Third Party P,0090637250,Social Care Consortium Limited,231.21,02/10/2023
Delivery Units,Adults and Health,Other Agencies - Third Party P,0090637254,Social Care Consortium Limited,154.14,02/10/2023
Delivery Units,Adults and Health,Other Agencies - Third Party P,0090637256,Social Care Consortium Limited,132.12,02/10/2023
Delivery Units,Adults and Health,Other Agencies - Third Party P,0090637257,Social Care Consortium Limited,"1,001.91",02/10/2023
Delivery Units,Adults and Health,Other Agencies - Third Party P,0090637259,Social Care Consortium Limited,561.51,02/10/2023
Delivery Units,Adults and Health,Other Agencies - Third Party P,0090637260,Social Care Consortium Limited,423.88,02/10/2023
Delivery Units,Adults and Health,Other Agencies - Third Party P,0090637261,Social Care Consortium Limited,82.58,02/10/2023
Delivery Units,Adults and Health,Other Agencies - Third Party P,0090637262,Social Care Consortium Limited,121.11,02/10/2023
Delivery Units,Adults and Health,Other Agencies - Third Party P,0090637264,Social Care Consortium Limited,231.21,02/10/2023
Delivery Units,Adults and Health,Other Agencies - Third Party P,0090637266,Social Care Consortium Limited,847.77,02/10/2023
Delivery Units,Adults and Health,Other Agencies - Third Party P,0090637267,Social Care Consortium Limited,655.09,02/10/2023
Delivery Units,Adults and Health,Other Agencies - Third Party P,0090637268,Social Care Consortium Limited,869.79,02/10/2023
Delivery Units,Adults and Health,Other Agencies - Third Party P,0090637269,Social Care Consortium Limited,792.72,02/10/2023
Delivery Units,Adults and Health,Other Agencies - Third Party P,0090637271,Social Care Consortium Limited,198.18,02/10/2023
Delivery Units,Adults and Health,Other Agencies - Third Party P,0090637276,Social Care Consortium Limited,330.30,02/10/2023
Delivery Units,Adults and Health,Other Agencies - Third Party P,0090637278,Social Care Consortium Limited,82.58,02/10/2023
Delivery Units,Adults and Health,Other Agencies - Third Party P,0090637280,Social Care Consortium Limited,231.21,02/10/2023
Delivery Units,Adults and Health,Other Agencies - Third Party P,0090637284,Social Care Consortium Limited,154.14,02/10/2023
Delivery Units,Adults and Health,Other Agencies - Third Party P,0090637286,Social Care Consortium Limited,88.08,02/10/2023
Delivery Units,Adults and Health,Other Agencies - Third Party P,0090637287,Social Care Consortium Limited,"1,001.91",02/10/2023
Delivery Units,Adults and Health,Other Agencies - Third Party P,0090637289,Social Care Consortium Limited,561.51,02/10/2023
Delivery Units,Adults and Health,Other Agencies - Third Party P,0090637290,Social Care Consortium Limited,423.89,02/10/2023
Delivery Units,Adults and Health,Other Agencies - Third Party P,0090637291,Social Care Consortium Limited,82.58,02/10/2023
Delivery Units,Adults and Health,Other Agencies - Third Party P,0090637292,Social Care Consortium Limited,121.11,02/10/2023
Delivery Units,Adults and Health,Other Agencies - Third Party P,0090637294,Social Care Consortium Limited,231.21,02/10/2023
Delivery Units,Adults and Health,Other Agencies - Third Party P,0090637296,Social Care Consortium Limited,847.77,02/10/2023
Delivery Units,Adults and Health,Other Agencies - Third Party P,0090637297,Social Care Consortium Limited,655.10,02/10/2023
Delivery Units,Adults and Health,Other Agencies - Third Party P,0090637298,Social Care Consortium Limited,869.79,02/10/2023
Delivery Units,Adults and Health,Other Agencies - Third Party P,0090637299,Social Care Consortium Limited,792.72,02/10/2023
Delivery Units,Adults and Health,Other Agencies - Third Party P,0090637300,Social Care Consortium Limited,198.18,02/10/2023
Delivery Units,Adults and Health,Other Agencies - Third Party P,0090637327,MI HOMECARE LIMITED,60.30,02/10/2023
Delivery Units,Adults and Health,Other Agencies - Third Party P,0090637328,MI HOMECARE LIMITED,190.95,02/10/2023
Delivery Units,Adults and Health,Other Agencies - Third Party P,0090637330,MI HOMECARE LIMITED,"1,618.05",02/10/2023
Delivery Units,Adults and Health,Other Agencies - Third Party P,0090637331,MI HOMECARE LIMITED,266.33,02/10/2023
Delivery Units,Adults and Health,Other Agencies - Third Party P,0090637333,MI HOMECARE LIMITED,"3,381.83",02/10/2023
Delivery Units,Adults and Health,Other Agencies - Third Party P,0090637334,MI HOMECARE LIMITED,296.48,02/10/2023
Delivery Units,Adults and Health,Other Agencies - Third Party P,0090637335,MI HOMECARE LIMITED,75.38,02/10/2023
Delivery Units,Adults and Health,Other Agencies - Third Party P,0090637336,MI HOMECARE LIMITED,311.55,02/10/2023
Delivery Units,Adults and Health,Other Agencies - Third Party P,0090637339,MI HOMECARE LIMITED,190.95,02/10/2023
Delivery Units,Adults and Health,Other Agencies - Third Party P,0090637340,MI HOMECARE LIMITED,261.30,02/10/2023
Delivery Units,Adults and Health,Other Agencies - Third Party P,0090637342,MI HOMECARE LIMITED,"1,075.35",02/10/2023
Delivery Units,Adults and Health,Other Agencies - Third Party P,0090637343,MI HOMECARE LIMITED,311.55,02/10/2023
Delivery Units,Adults and Health,Other Agencies - Third Party P,0090637344,MI HOMECARE LIMITED,140.70,02/10/2023
Delivery Units,Adults and Health,Other Agencies - Third Party P,0090637345,MI HOMECARE LIMITED,316.58,02/10/2023
Delivery Units,Adults and Health,Other Agencies - Third Party P,0090637348,MI HOMECARE LIMITED,311.55,02/10/2023
Delivery Units,Adults and Health,Other Agencies - Third Party P,0090637349,MI HOMECARE LIMITED,"1,904.48",02/10/2023
Delivery Units,Adults and Health,Other Agencies - Third Party P,0090637350,MI HOMECARE LIMITED,266.33,02/10/2023
Delivery Units,Adults and Health,Other Agencies - Third Party P,0090637351,MI HOMECARE LIMITED,30.15,02/10/2023
Delivery Units,Adults and Health,Other Agencies - Third Party P,0090637352,MI HOMECARE LIMITED,517.58,02/10/2023
Delivery Units,Adults and Health,Other Agencies - Third Party P,0090637353,MI HOMECARE LIMITED,301.50,02/10/2023
Delivery Units,Adults and Health,Other Agencies - Third Party P,0090637355,MI HOMECARE LIMITED,60.30,02/10/2023
Delivery Units,Adults and Health,Other Agencies - Third Party P,0090637356,MI HOMECARE LIMITED,236.18,02/10/2023
Delivery Units,Adults and Health,Other Agencies - Third Party P,0090637357,MI HOMECARE LIMITED,70.35,02/10/2023
Delivery Units,Adults and Health,Other Agencies - Third Party P,0090637359,MI HOMECARE LIMITED,376.88,02/10/2023
Delivery Units,Adults and Health,Other Agencies - Third Party P,0090637361,MI HOMECARE LIMITED,90.45,02/10/2023
Delivery Units,Adults and Health,Other Agencies - Third Party P,0090637364,MI HOMECARE LIMITED,226.13,02/10/2023
Delivery Units,Adults and Health,Other Agencies - Third Party P,0090637365,MI HOMECARE LIMITED,211.05,02/10/2023
Delivery Units,Adults and Health,Other Agencies - Third Party P,0090637367,MI HOMECARE LIMITED,140.70,02/10/2023
Delivery Units,Adults and Health,Other Agencies - Third Party P,0090637369,MI HOMECARE LIMITED,211.05,02/10/2023
Delivery Units,Adults and Health,Other Agencies - Third Party P,0090637370,MI HOMECARE LIMITED,296.48,02/10/2023
Delivery Units,Adults and Health,Other Agencies - Third Party P,0090637372,MI HOMECARE LIMITED,376.88,02/10/2023
Delivery Units,Adults and Health,Other Agencies - Third Party P,0090637373,MI HOMECARE LIMITED,492.45,02/10/2023
Delivery Units,Adults and Health,Other Agencies - Third Party P,0090637374,MI HOMECARE LIMITED,316.58,02/10/2023
Delivery Units,Adults and Health,Other Agencies - Third Party P,0090637375,MI HOMECARE LIMITED,718.58,02/10/2023
Delivery Units,Adults and Health,Other Agencies - Third Party P,0090637378,MI HOMECARE LIMITED,100.50,02/10/2023
Delivery Units,Adults and Health,Other Agencies - Third Party P,0090637380,MI HOMECARE LIMITED,70.35,02/10/2023
Delivery Units,Adults and Health,Other Agencies - Third Party P,0090637381,MI HOMECARE LIMITED,246.23,02/10/2023
Delivery Units,Adults and Health,Other Agencies - Third Party P,0090637384,MI HOMECARE LIMITED,326.63,02/10/2023
Delivery Units,Adults and Health,Other Agencies - Third Party P,0090637386,MI HOMECARE LIMITED,316.58,02/10/2023
Delivery Units,Adults and Health,Other Agencies - Third Party P,0090637387,MI HOMECARE LIMITED,175.88,02/10/2023
Delivery Units,Adults and Health,Other Agencies - Third Party P,0090637390,MI HOMECARE LIMITED,120.60,02/10/2023
Delivery Units,Adults and Health,Other Agencies - Third Party P,0090637392,MI HOMECARE LIMITED,120.60,02/10/2023
Delivery Units,Adults and Health,Other Agencies - Third Party P,0090637394,MI HOMECARE LIMITED,276.38,02/10/2023
Delivery Units,Adults and Health,Other Agencies - Third Party P,0090637395,MI HOMECARE LIMITED,140.70,02/10/2023
Delivery Units,Adults and Health,Other Agencies - Third Party P,0090637396,MI HOMECARE LIMITED,195.98,02/10/2023
Delivery Units,Adults and Health,Other Agencies - Third Party P,0090637397,MI HOMECARE LIMITED,"1,909.50",02/10/2023
Delivery Units,Adults and Health,Other Agencies - Third Party P,0090637398,MI HOMECARE LIMITED,140.70,02/10/2023
Delivery Units,Adults and Health,Other Agencies - Third Party P,0090637400,MI HOMECARE LIMITED,346.73,02/10/2023
Delivery Units,Adults and Health,Other Agencies - Third Party P,0090637401,MI HOMECARE LIMITED,452.25,02/10/2023
Delivery Units,Adults and Health,Other Agencies - Third Party P,0090637403,MI HOMECARE LIMITED,75.38,02/10/2023
Delivery Units,Adults and Health,Other Agencies - Third Party P,0090637404,MI HOMECARE LIMITED,311.55,02/10/2023
Delivery Units,Adults and Health,Other Agencies - Third Party P,0090637405,MI HOMECARE LIMITED,105.53,02/10/2023
Delivery Units,Adults and Health,Other Agencies - Third Party P,0090637408,MI HOMECARE LIMITED,90.45,02/10/2023
Delivery Units,Adults and Health,Other Agencies - Third Party P,0090637409,MI HOMECARE LIMITED,30.15,02/10/2023
Delivery Units,Adults and Health,Other Agencies - Third Party P,0090637411,MI HOMECARE LIMITED,140.70,02/10/2023
Delivery Units,Adults and Health,Other Agencies - Third Party P,0090637413,MI HOMECARE LIMITED,120.60,02/10/2023
Delivery Units,Adults and Health,Other Agencies - Third Party P,0090637414,MI HOMECARE LIMITED,40.20,02/10/2023
Delivery Units,Adults and Health,Other Agencies - Third Party P,0090637415,MI HOMECARE LIMITED,281.40,02/10/2023
Delivery Units,Adults and Health,Other Agencies - Third Party P,0090637418,MI HOMECARE LIMITED,326.63,02/10/2023
Delivery Units,Adults and Health,Other Agencies - Third Party P,0090637419,MI HOMECARE LIMITED,804.00,02/10/2023
Delivery Units,Adults and Health,Other Agencies - Third Party P,0090637423,MI HOMECARE LIMITED,80.40,02/10/2023
Delivery Units,Adults and Health,Other Agencies - Third Party P,0090637426,MI HOMECARE LIMITED,266.33,02/10/2023
Delivery Units,Adults and Health,Other Agencies - Third Party P,0090637427,MI HOMECARE LIMITED,326.63,02/10/2023
Delivery Units,Adults and Health,Other Agencies - Third Party P,0090637429,MI HOMECARE LIMITED,276.38,02/10/2023
Delivery Units,Adults and Health,Other Agencies - Third Party P,0090637430,MI HOMECARE LIMITED,40.20,02/10/2023
Delivery Units,Adults and Health,Other Agencies - Third Party P,0090637431,MI HOMECARE LIMITED,40.20,02/10/2023
Delivery Units,Adults and Health,Other Agencies - Third Party P,0090637433,MI HOMECARE LIMITED,"1,512.53",02/10/2023
Delivery Units,Adults and Health,Other Agencies - Third Party P,0090637434,MI HOMECARE LIMITED,246.23,02/10/2023
Delivery Units,Adults and Health,Other Agencies - Third Party P,0090637435,MI HOMECARE LIMITED,70.35,02/10/2023
Delivery Units,Adults and Health,Other Agencies - Third Party P,0090637436,MI HOMECARE LIMITED,386.93,02/10/2023
Delivery Units,Adults and Health,Other Agencies - Third Party P,0090637437,MI HOMECARE LIMITED,281.40,02/10/2023
Delivery Units,Adults and Health,Other Agencies - Third Party P,0090637438,MI HOMECARE LIMITED,231.15,02/10/2023
Delivery Units,Adults and Health,Other Agencies - Third Party P,0090637440,MI HOMECARE LIMITED,361.80,02/10/2023
Delivery Units,Adults and Health,Other Agencies - Third Party P,0090637442,MI HOMECARE LIMITED,261.30,02/10/2023
Delivery Units,Adults and Health,Other Agencies - Third Party P,0090637443,MI HOMECARE LIMITED,432.15,02/10/2023
Delivery Units,Adults and Health,Other Agencies - Third Party P,0090637444,MI HOMECARE LIMITED,150.75,02/10/2023
Delivery Units,Adults and Health,Other Agencies - Third Party P,0090637445,MI HOMECARE LIMITED,211.05,02/10/2023
Delivery Units,Adults and Health,Other Agencies - Third Party P,0090637448,MI HOMECARE LIMITED,40.20,02/10/2023
Delivery Units,Adults and Health,Other Agencies - Third Party P,0090637451,MI HOMECARE LIMITED,"3,376.80",02/10/2023
Delivery Units,Adults and Health,Other Agencies - Third Party P,0090637453,MI HOMECARE LIMITED,743.70,02/10/2023
Delivery Units,Adults and Health,Other Agencies - Third Party P,0090637454,MI HOMECARE LIMITED,221.10,02/10/2023
Delivery Units,Adults and Health,Other Agencies - Third Party P,0090637457,MI HOMECARE LIMITED,140.70,02/10/2023
Delivery Units,Adults and Health,Other Agencies - Third Party P,0090637459,Concept Care Solutions Ltd,324.73,02/10/2023
Delivery Units,Adults and Health,Other Agencies - Third Party P,0090637463,Concept Care Solutions Ltd,195.89,02/10/2023
Delivery Units,Adults and Health,Other Agencies - Third Party P,0090637465,Concept Care Solutions Ltd,469.00,02/10/2023
Delivery Units,Adults and Health,Other Agencies - Third Party P,0090637466,Concept Care Solutions Ltd,185.58,02/10/2023
Delivery Units,Adults and Health,Other Agencies - Third Party P,0090637512,Navarros Care Ltd,107.10,04/10/2023
Delivery Units,Adults and Health,Other Agencies - Third Party P,0090637517,Concept Care Solutions Ltd,195.89,04/10/2023
Delivery Units,Adults and Health,Other Agencies - Third Party P,0090637519,Concept Care Solutions Ltd,469.00,04/10/2023
Delivery Units,Adults and Health,Other Agencies - Third Party P,0090637520,Concept Care Solutions Ltd,185.58,04/10/2023
Delivery Units,Adults and Health,Other Agencies - Third Party P,0090637523,Concept Care Solutions Ltd,324.73,04/10/2023
Delivery Units,Adults and Health,Other Agencies - Third Party P,0090637524,The Cedars Home Care,135.80,04/10/2023
Delivery Units,Adults and Health,Other Agencies - Third Party P,0090637525,The Cedars Home Care,368.60,04/10/2023
Delivery Units,Adults and Health,Other Agencies - Third Party P,0090637527,The Cedars Home Care,557.75,04/10/2023
Delivery Units,Adults and Health,Other Agencies - Third Party P,0090637529,The Cedars Home Care,237.65,04/10/2023
Delivery Units,Adults and Health,Other Agencies - Third Party P,0090637530,The Cedars Home Care,303.03,04/10/2023
Delivery Units,Adults and Health,Other Agencies - Third Party P,0090637531,The Cedars Home Care,892.40,04/10/2023
Delivery Units,Adults and Health,Other Agencies - Third Party P,0090637532,The Cedars Home Care,67.90,04/10/2023
Delivery Units,Adults and Health,Other Agencies - Third Party P,0090637533,The Cedars Home Care,101.46,04/10/2023
Delivery Units,Adults and Health,Other Agencies - Third Party P,0090637534,The Cedars Home Care,130.37,04/10/2023
Delivery Units,Adults and Health,Other Agencies - Third Party P,0090637535,The Cedars Home Care,19.40,04/10/2023
Delivery Units,Adults and Health,Other Agencies - Third Party P,0090637536,The Cedars Home Care,"3,189.94",04/10/2023
Delivery Units,Adults and Health,Other Agencies - Third Party P,0090637537,The Cedars Home Care,209.52,04/10/2023
Delivery Units,Adults and Health,Other Agencies - Third Party P,0090637538,The Cedars Home Care,133.28,04/10/2023
Delivery Units,Adults and Health,Other Agencies - Third Party P,0090637540,The Cedars Home Care,322.62,04/10/2023
Delivery Units,Adults and Health,Other Agencies - Third Party P,0090637541,The Cedars Home Care,392.85,04/10/2023
Delivery Units,Adults and Health,Other Agencies - Third Party P,0090637542,The Cedars Home Care,29.10,04/10/2023
Delivery Units,Adults and Health,Other Agencies - Third Party P,0090637544,The Cedars Home Care,14.55,04/10/2023
Delivery Units,Adults and Health,Other Agencies - Third Party P,0090637545,The Cedars Home Care,58.20,04/10/2023
Delivery Units,Adults and Health,Other Agencies - Third Party P,0090637546,The Cedars Home Care,"1,222.20",04/10/2023
Delivery Units,Adults and Health,Other Agencies - Third Party P,0090637548,The Cedars Home Care,737.20,04/10/2023
Delivery Units,Adults and Health,Other Agencies - Third Party P,0090637549,The Cedars Home Care,169.75,04/10/2023
Delivery Units,Adults and Health,Other Agencies - Third Party P,0090637550,The Cedars Home Care,179.45,04/10/2023
Delivery Units,Adults and Health,Other Agencies - Third Party P,0090637552,The Cedars Home Care,32.40,04/10/2023
Delivery Units,Adults and Health,Other Agencies - Third Party P,0090637554,The Cedars Home Care,271.60,04/10/2023
Delivery Units,Adults and Health,Other Agencies - Third Party P,0090637555,The Cedars Home Care,271.60,04/10/2023
Delivery Units,Adults and Health,Other Agencies - Third Party P,0090637556,The Cedars Home Care,95.06,04/10/2023
Delivery Units,Adults and Health,Other Agencies - Third Party P,0090637557,The Cedars Home Care,153.84,04/10/2023
Delivery Units,Adults and Health,Other Agencies - Third Party P,0090637558,The Cedars Home Care,383.15,04/10/2023
Delivery Units,Adults and Health,Other Agencies - Third Party P,0090637559,The Cedars Home Care,389.55,04/10/2023
Delivery Units,Adults and Health,Other Agencies - Third Party P,0090637560,The Cedars Home Care,"1,628.24",04/10/2023
Delivery Units,Adults and Health,Other Agencies - Third Party P,0090637561,The Cedars Home Care,200.21,04/10/2023
Delivery Units,Adults and Health,Other Agencies - Third Party P,0090637563,The Cedars Home Care,71.78,04/10/2023
Delivery Units,Adults and Health,Other Agencies - Third Party P,0090637564,The Cedars Home Care,465.60,04/10/2023
Delivery Units,Adults and Health,Other Agencies - Third Party P,0090637565,The Cedars Home Care,19.40,04/10/2023
Delivery Units,Adults and Health,Other Agencies - Third Party P,0090637566,The Cedars Home Care,318.55,04/10/2023
Delivery Units,Adults and Health,Other Agencies - Third Party P,0090637567,The Cedars Home Care,19.40,04/10/2023
Delivery Units,Adults and Health,Other Agencies - Third Party P,0090637569,The Cedars Home Care,203.70,04/10/2023
Delivery Units,Adults and Health,Other Agencies - Third Party P,0090637570,The Cedars Home Care,232.80,04/10/2023
Delivery Units,Adults and Health,Other Agencies - Third Party P,0090637571,The Cedars Home Care,373.45,04/10/2023
Delivery Units,Adults and Health,Other Agencies - Third Party P,0090637595,The Cedars Home Care,412.25,04/10/2023
Delivery Units,Adults and Health,Other Agencies - Third Party P,0090637596,The Cedars Home Care,223.10,04/10/2023
Delivery Units,Adults and Health,Other Agencies - Third Party P,0090637598,Nwando Domiciliary Care Ltd,210.43,04/10/2023
Delivery Units,Adults and Health,Other Agencies - Third Party P,0090637599,Nwando Domiciliary Care Ltd,200.87,04/10/2023
Delivery Units,Adults and Health,Other Agencies - Third Party P,0090637600,Nwando Domiciliary Care Ltd,669.55,04/10/2023
Delivery Units,Adults and Health,Other Agencies - Third Party P,0090637601,Nwando Domiciliary Care Ltd,133.91,04/10/2023
Delivery Units,Adults and Health,Other Agencies - Third Party P,0090637602,Nwando Domiciliary Care Ltd,138.69,04/10/2023
Delivery Units,Adults and Health,Other Agencies - Third Party P,0090637604,Nwando Domiciliary Care Ltd,306.08,04/10/2023
Delivery Units,Adults and Health,Other Agencies - Third Party P,0090637607,Nwando Domiciliary Care Ltd,38.26,04/10/2023
Delivery Units,Adults and Health,Other Agencies - Third Party P,0090637608,Nwando Domiciliary Care Ltd,286.95,04/10/2023
Delivery Units,Adults and Health,Other Agencies - Third Party P,0090637609,Nwando Domiciliary Care Ltd,669.55,04/10/2023
Delivery Units,Adults and Health,Other Agencies - Third Party P,0090637611,Nwando Domiciliary Care Ltd,334.78,04/10/2023
Delivery Units,Adults and Health,Other Agencies - Third Party P,0090637612,Nwando Domiciliary Care Ltd,267.82,04/10/2023
Delivery Units,Adults and Health,Other Agencies - Third Party P,0090637613,Nwando Domiciliary Care Ltd,"1,941.70",04/10/2023
Delivery Units,Adults and Health,Other Agencies - Third Party P,0090637616,Nwando Domiciliary Care Ltd,334.78,04/10/2023
Delivery Units,Adults and Health,Other Agencies - Third Party P,0090637617,Nwando Domiciliary Care Ltd,607.38,04/10/2023
Delivery Units,Adults and Health,Other Agencies - Third Party P,0090637618,Nwando Domiciliary Care Ltd,66.96,04/10/2023
Delivery Units,Adults and Health,Other Agencies - Third Party P,0090637622,Nwando Domiciliary Care Ltd,200.87,04/10/2023
Delivery Units,Adults and Health,Other Agencies - Third Party P,0090637623,Nwando Domiciliary Care Ltd,669.55,04/10/2023
Delivery Units,Adults and Health,Other Agencies - Third Party P,0090637624,Nwando Domiciliary Care Ltd,133.91,04/10/2023
Delivery Units,Adults and Health,Other Agencies - Third Party P,0090637625,Nwando Domiciliary Care Ltd,138.69,04/10/2023
Delivery Units,Adults and Health,Other Agencies - Third Party P,0090637627,Nwando Domiciliary Care Ltd,306.08,04/10/2023
Delivery Units,Adults and Health,Other Agencies - Third Party P,0090637630,Nwando Domiciliary Care Ltd,286.95,04/10/2023
Delivery Units,Adults and Health,Other Agencies - Third Party P,0090637631,Nwando Domiciliary Care Ltd,669.55,04/10/2023
Delivery Units,Adults and Health,Other Agencies - Third Party P,0090637633,Nwando Domiciliary Care Ltd,334.78,04/10/2023
Delivery Units,Adults and Health,Other Agencies - Third Party P,0090637634,Nwando Domiciliary Care Ltd,267.82,04/10/2023
Delivery Units,Adults and Health,Other Agencies - Third Party P,0090637635,Nwando Domiciliary Care Ltd,"1,941.70",04/10/2023
Delivery Units,Adults and Health,Other Agencies - Third Party P,0090637638,Nwando Domiciliary Care Ltd,334.78,04/10/2023
Delivery Units,Adults and Health,Other Agencies - Third Party P,0090637639,Nwando Domiciliary Care Ltd,607.38,04/10/2023
Delivery Units,Adults and Health,Other Agencies - Third Party P,0090637640,Nwando Domiciliary Care Ltd,81.30,04/10/2023
Delivery Units,Adults and Health,Other Agencies - Third Party P,0090637643,Nwando Domiciliary Care Ltd,110.00,04/10/2023
Delivery Units,Adults and Health,Other Agencies - Third Party P,0090637645,Nwando Domiciliary Care Ltd,200.87,04/10/2023
Delivery Units,Adults and Health,Other Agencies - Third Party P,0090637646,Nwando Domiciliary Care Ltd,669.55,04/10/2023
Delivery Units,Adults and Health,Other Agencies - Third Party P,0090637647,Nwando Domiciliary Care Ltd,133.91,04/10/2023
Delivery Units,Adults and Health,Other Agencies - Third Party P,0090637648,Nwando Domiciliary Care Ltd,138.69,04/10/2023
Delivery Units,Adults and Health,Other Agencies - Third Party P,0090637650,Nwando Domiciliary Care Ltd,248.69,04/10/2023
Delivery Units,Adults and Health,Other Agencies - Third Party P,0090637653,Nwando Domiciliary Care Ltd,286.95,04/10/2023
Delivery Units,Adults and Health,Other Agencies - Third Party P,0090637654,Nwando Domiciliary Care Ltd,669.55,04/10/2023
Delivery Units,Adults and Health,Other Agencies - Third Party P,0090637656,Nwando Domiciliary Care Ltd,334.78,04/10/2023
Delivery Units,Adults and Health,Other Agencies - Third Party P,0090637657,Nwando Domiciliary Care Ltd,267.82,04/10/2023
Delivery Units,Adults and Health,Other Agencies - Third Party P,0090637658,Nwando Domiciliary Care Ltd,"1,941.70",04/10/2023
Delivery Units,Adults and Health,Other Agencies - Third Party P,0090637661,Nwando Domiciliary Care Ltd,239.13,04/10/2023
Delivery Units,Adults and Health,Other Agencies - Third Party P,0090637662,Nwando Domiciliary Care Ltd,607.38,04/10/2023
Delivery Units,Adults and Health,Other Agencies - Third Party P,0090637663,Nwando Domiciliary Care Ltd,66.96,04/10/2023
Delivery Units,Adults and Health,Other Agencies - Third Party P,0090637665,Nwando Domiciliary Care Ltd,353.91,04/10/2023
Delivery Units,Adults and Health,Other Agencies - Third Party P,0090637667,Nwando Domiciliary Care Ltd,200.87,04/10/2023
Delivery Units,Adults and Health,Other Agencies - Third Party P,0090637668,Nwando Domiciliary Care Ltd,669.55,04/10/2023
Delivery Units,Adults and Health,Other Agencies - Third Party P,0090637669,Nwando Domiciliary Care Ltd,133.91,04/10/2023
Delivery Units,Adults and Health,Other Agencies - Third Party P,0090637670,Nwando Domiciliary Care Ltd,138.69,04/10/2023
Delivery Units,Adults and Health,Other Agencies - Third Party P,0090637672,Nwando Domiciliary Care Ltd,306.08,04/10/2023
Delivery Units,Adults and Health,Other Agencies - Third Party P,0090637675,Nwando Domiciliary Care Ltd,"1,415.62",04/10/2023
Delivery Units,Adults and Health,Other Agencies - Third Party P,0090637676,Nwando Domiciliary Care Ltd,286.95,04/10/2023
Delivery Units,Adults and Health,Other Agencies - Third Party P,0090637677,Nwando Domiciliary Care Ltd,659.99,04/10/2023
Delivery Units,Adults and Health,Other Agencies - Third Party P,0090637679,Nwando Domiciliary Care Ltd,334.78,04/10/2023
Delivery Units,Adults and Health,Other Agencies - Third Party P,0090637680,Nwando Domiciliary Care Ltd,286.95,04/10/2023
Delivery Units,Adults and Health,Other Agencies - Third Party P,0090637681,Nwando Domiciliary Care Ltd,"1,941.70",04/10/2023
Delivery Units,Adults and Health,Other Agencies - Third Party P,0090637683,Nwando Domiciliary Care Ltd,607.38,04/10/2023
Delivery Units,Adults and Health,Other Agencies - Third Party P,0090637684,Nwando Domiciliary Care Ltd,66.96,04/10/2023
Delivery Units,Adults and Health,Other Agencies - Third Party P,0090637783,MI HOMECARE LIMITED,60.30,04/10/2023
Delivery Units,Adults and Health,Other Agencies - Third Party P,0090637784,MI HOMECARE LIMITED,195.98,04/10/2023
Delivery Units,Adults and Health,Other Agencies - Third Party P,0090637785,MI HOMECARE LIMITED,"1,618.05",04/10/2023
Delivery Units,Adults and Health,Other Agencies - Third Party P,0090637786,MI HOMECARE LIMITED,266.33,04/10/2023
Delivery Units,Adults and Health,Other Agencies - Third Party P,0090637787,MI HOMECARE LIMITED,"3,381.83",04/10/2023
Delivery Units,Adults and Health,Other Agencies - Third Party P,0090637788,MI HOMECARE LIMITED,301.50,04/10/2023
Delivery Units,Adults and Health,Other Agencies - Third Party P,0090637789,MI HOMECARE LIMITED,75.38,04/10/2023
Delivery Units,Adults and Health,Other Agencies - Third Party P,0090637790,MI HOMECARE LIMITED,316.58,04/10/2023
Delivery Units,Adults and Health,Other Agencies - Third Party P,0090637793,MI HOMECARE LIMITED,130.65,04/10/2023
Delivery Units,Adults and Health,Other Agencies - Third Party P,0090637794,MI HOMECARE LIMITED,261.30,04/10/2023
Delivery Units,Adults and Health,Other Agencies - Third Party P,0090637796,MI HOMECARE LIMITED,"1,035.15",04/10/2023
Delivery Units,Adults and Health,Other Agencies - Third Party P,0090637797,MI HOMECARE LIMITED,331.65,04/10/2023
Delivery Units,Adults and Health,Other Agencies - Third Party P,0090637798,MI HOMECARE LIMITED,140.70,04/10/2023
Delivery Units,Adults and Health,Other Agencies - Third Party P,0090637799,MI HOMECARE LIMITED,316.58,04/10/2023
Delivery Units,Adults and Health,Other Agencies - Third Party P,0090637802,MI HOMECARE LIMITED,311.55,04/10/2023
Delivery Units,Adults and Health,Other Agencies - Third Party P,0090637803,MI HOMECARE LIMITED,"2,010.00",04/10/2023
Delivery Units,Adults and Health,Other Agencies - Third Party P,0090637804,MI HOMECARE LIMITED,15.08,04/10/2023
Delivery Units,Adults and Health,Other Agencies - Third Party P,0090637805,MI HOMECARE LIMITED,256.28,04/10/2023
Delivery Units,Adults and Health,Other Agencies - Third Party P,0090637806,MI HOMECARE LIMITED,50.25,04/10/2023
Delivery Units,Adults and Health,Other Agencies - Third Party P,0090637807,MI HOMECARE LIMITED,507.53,04/10/2023
Delivery Units,Adults and Health,Other Agencies - Third Party P,0090637808,MI HOMECARE LIMITED,316.58,04/10/2023
Delivery Units,Adults and Health,Other Agencies - Third Party P,0090637810,MI HOMECARE LIMITED,105.53,04/10/2023
Delivery Units,Adults and Health,Other Agencies - Third Party P,0090637811,MI HOMECARE LIMITED,281.40,04/10/2023
Delivery Units,Adults and Health,Other Agencies - Third Party P,0090637812,MI HOMECARE LIMITED,70.35,04/10/2023
Delivery Units,Adults and Health,Other Agencies - Third Party P,0090637813,MI HOMECARE LIMITED,356.78,04/10/2023
Delivery Units,Adults and Health,Other Agencies - Third Party P,0090637815,MI HOMECARE LIMITED,90.45,04/10/2023
Delivery Units,Adults and Health,Other Agencies - Third Party P,0090637818,MI HOMECARE LIMITED,226.13,04/10/2023
Delivery Units,Adults and Health,Other Agencies - Third Party P,0090637819,MI HOMECARE LIMITED,195.98,04/10/2023
Delivery Units,Adults and Health,Other Agencies - Third Party P,0090637821,MI HOMECARE LIMITED,140.70,04/10/2023
Delivery Units,Adults and Health,Other Agencies - Third Party P,0090637822,MI HOMECARE LIMITED,211.05,04/10/2023
Delivery Units,Adults and Health,Other Agencies - Third Party P,0090637823,MI HOMECARE LIMITED,296.48,04/10/2023
Delivery Units,Adults and Health,Other Agencies - Third Party P,0090637825,MI HOMECARE LIMITED,376.88,04/10/2023
Delivery Units,Adults and Health,Other Agencies - Third Party P,0090637826,MI HOMECARE LIMITED,492.45,04/10/2023
Delivery Units,Adults and Health,Other Agencies - Third Party P,0090637827,MI HOMECARE LIMITED,316.58,04/10/2023
Delivery Units,Adults and Health,Other Agencies - Third Party P,0090637828,MI HOMECARE LIMITED,733.65,04/10/2023
Delivery Units,Adults and Health,Other Agencies - Third Party P,0090637830,MI HOMECARE LIMITED,100.50,04/10/2023
Delivery Units,Adults and Health,Other Agencies - Third Party P,0090637831,MI HOMECARE LIMITED,70.35,04/10/2023
Delivery Units,Adults and Health,Other Agencies - Third Party P,0090637832,MI HOMECARE LIMITED,251.25,04/10/2023
Delivery Units,Adults and Health,Other Agencies - Third Party P,0090637834,MI HOMECARE LIMITED,351.75,04/10/2023
Delivery Units,Adults and Health,Other Agencies - Third Party P,0090637835,MI HOMECARE LIMITED,316.58,04/10/2023
Delivery Units,Adults and Health,Other Agencies - Third Party P,0090637836,MI HOMECARE LIMITED,175.88,04/10/2023
Delivery Units,Adults and Health,Other Agencies - Third Party P,0090637839,MI HOMECARE LIMITED,160.80,04/10/2023
Delivery Units,Adults and Health,Other Agencies - Third Party P,0090637841,MI HOMECARE LIMITED,125.63,04/10/2023
Delivery Units,Adults and Health,Other Agencies - Third Party P,0090637843,MI HOMECARE LIMITED,276.38,04/10/2023
Delivery Units,Adults and Health,Other Agencies - Third Party P,0090637844,MI HOMECARE LIMITED,140.70,04/10/2023
Delivery Units,Adults and Health,Other Agencies - Third Party P,0090637845,MI HOMECARE LIMITED,95.48,04/10/2023
Delivery Units,Adults and Health,Other Agencies - Third Party P,0090637846,MI HOMECARE LIMITED,"1,904.48",04/10/2023
Delivery Units,Adults and Health,Other Agencies - Third Party P,0090637847,MI HOMECARE LIMITED,135.68,04/10/2023
Delivery Units,Adults and Health,Other Agencies - Third Party P,0090637849,MI HOMECARE LIMITED,351.75,04/10/2023
Delivery Units,Adults and Health,Other Agencies - Third Party P,0090637850,MI HOMECARE LIMITED,422.10,04/10/2023
Delivery Units,Adults and Health,Other Agencies - Third Party P,0090637851,MI HOMECARE LIMITED,145.73,04/10/2023
Delivery Units,Adults and Health,Other Agencies - Third Party P,0090637853,MI HOMECARE LIMITED,75.38,04/10/2023
Delivery Units,Adults and Health,Other Agencies - Third Party P,0090637854,MI HOMECARE LIMITED,316.58,04/10/2023
Delivery Units,Adults and Health,Other Agencies - Third Party P,0090637855,MI HOMECARE LIMITED,105.53,04/10/2023
Delivery Units,Adults and Health,Other Agencies - Third Party P,0090637858,MI HOMECARE LIMITED,90.45,04/10/2023
Delivery Units,Adults and Health,Other Agencies - Third Party P,0090637859,MI HOMECARE LIMITED,70.35,04/10/2023
Delivery Units,Adults and Health,Other Agencies - Third Party P,0090637861,MI HOMECARE LIMITED,140.70,04/10/2023
Delivery Units,Adults and Health,Other Agencies - Third Party P,0090637863,MI HOMECARE LIMITED,120.60,04/10/2023
Delivery Units,Adults and Health,Other Agencies - Third Party P,0090637864,MI HOMECARE LIMITED,100.50,04/10/2023
Delivery Units,Adults and Health,Other Agencies - Third Party P,0090637865,MI HOMECARE LIMITED,286.43,04/10/2023
Delivery Units,Adults and Health,Other Agencies - Third Party P,0090637868,MI HOMECARE LIMITED,351.75,04/10/2023
Delivery Units,Adults and Health,Other Agencies - Third Party P,0090637869,MI HOMECARE LIMITED,804.00,04/10/2023
Delivery Units,Adults and Health,Other Agencies - Third Party P,0090637873,MI HOMECARE LIMITED,80.40,04/10/2023
Delivery Units,Adults and Health,Other Agencies - Third Party P,0090637876,MI HOMECARE LIMITED,256.28,04/10/2023
Delivery Units,Adults and Health,Other Agencies - Third Party P,0090637877,MI HOMECARE LIMITED,336.68,04/10/2023
Delivery Units,Adults and Health,Other Agencies - Third Party P,0090637879,MI HOMECARE LIMITED,281.40,04/10/2023
Delivery Units,Adults and Health,Other Agencies - Third Party P,0090637880,MI HOMECARE LIMITED,10.05,04/10/2023
Delivery Units,Adults and Health,Other Agencies - Third Party P,0090637881,MI HOMECARE LIMITED,40.20,04/10/2023
Delivery Units,Adults and Health,Other Agencies - Third Party P,0090637882,MI HOMECARE LIMITED,386.93,04/10/2023
Delivery Units,Adults and Health,Other Agencies - Third Party P,0090637884,MI HOMECARE LIMITED,"1,512.53",04/10/2023
Delivery Units,Adults and Health,Other Agencies - Third Party P,0090637885,MI HOMECARE LIMITED,251.25,04/10/2023
Delivery Units,Adults and Health,Other Agencies - Third Party P,0090637886,MI HOMECARE LIMITED,85.43,04/10/2023
Delivery Units,Adults and Health,Other Agencies - Third Party P,0090637887,MI HOMECARE LIMITED,386.93,04/10/2023
Delivery Units,Adults and Health,Other Agencies - Third Party P,0090637888,MI HOMECARE LIMITED,281.40,04/10/2023
Delivery Units,Adults and Health,Other Agencies - Third Party P,0090637889,MI HOMECARE LIMITED,231.15,04/10/2023
Delivery Units,Adults and Health,Other Agencies - Third Party P,0090637891,MI HOMECARE LIMITED,361.80,04/10/2023
Delivery Units,Adults and Health,Other Agencies - Third Party P,0090637893,MI HOMECARE LIMITED,542.70,04/10/2023
Delivery Units,Adults and Health,Other Agencies - Third Party P,0090637894,MI HOMECARE LIMITED,492.45,04/10/2023
Delivery Units,Adults and Health,Other Agencies - Third Party P,0090637895,MI HOMECARE LIMITED,140.70,04/10/2023
Delivery Units,Adults and Health,Other Agencies - Third Party P,0090637896,MI HOMECARE LIMITED,105.53,04/10/2023
Delivery Units,Adults and Health,Other Agencies - Third Party P,0090637898,MI HOMECARE LIMITED,40.20,04/10/2023
Delivery Units,Adults and Health,Other Agencies - Third Party P,0090637901,MI HOMECARE LIMITED,"3,130.58",04/10/2023
Delivery Units,Adults and Health,Other Agencies - Third Party P,0090637903,MI HOMECARE LIMITED,733.65,04/10/2023
Delivery Units,Adults and Health,Other Agencies - Third Party P,0090637904,MI HOMECARE LIMITED,20.10,04/10/2023
Delivery Units,Adults and Health,Other Agencies - Third Party P,0090637905,MI HOMECARE LIMITED,221.10,04/10/2023
Delivery Units,Adults and Health,Other Agencies - Third Party P,0090637908,MI HOMECARE LIMITED,140.70,04/10/2023
Delivery Units,Adults and Health,Other Agencies - Third Party P,0090637934,Concept Care Solutions Ltd,185.58,04/10/2023
Delivery Units,Adults and Health,Other Agencies - Third Party P,0090637935,Concept Care Solutions Ltd,469.00,04/10/2023
Delivery Units,Adults and Health,Other Agencies - Third Party P,0090637937,Concept Care Solutions Ltd,195.89,04/10/2023
Delivery Units,Adults and Health,Other Agencies - Third Party P,0090637939,Concept Care Solutions Ltd,324.73,04/10/2023
Delivery Units,Adults and Health,Other Agencies - Third Party P,0090637965,DYNAMIC PEOPLE LTD,352.45,04/10/2023
Delivery Units,Adults and Health,Other Agencies - Third Party P,0090637968,DYNAMIC PEOPLE LTD,90.63,04/10/2023
Delivery Units,Adults and Health,Other Agencies - Third Party P,0090637969,DYNAMIC PEOPLE LTD,422.94,04/10/2023
Delivery Units,Adults and Health,Other Agencies - Third Party P,0090637971,DYNAMIC PEOPLE LTD,281.96,04/10/2023
Delivery Units,Adults and Health,Other Agencies - Third Party P,0090637973,DYNAMIC PEOPLE LTD,775.39,04/10/2023
Delivery Units,Adults and Health,Other Agencies - Third Party P,0090637974,DYNAMIC PEOPLE LTD,70.49,04/10/2023
Delivery Units,Adults and Health,Other Agencies - Third Party P,0090637980,DYNAMIC PEOPLE LTD,236.65,04/10/2023
Delivery Units,Adults and Health,Other Agencies - Third Party P,0090637981,DYNAMIC PEOPLE LTD,246.72,04/10/2023
Delivery Units,Adults and Health,Other Agencies - Third Party P,0090637984,DYNAMIC PEOPLE LTD,75.53,04/10/2023
Delivery Units,Adults and Health,Other Agencies - Third Party P,0090637986,DYNAMIC PEOPLE LTD,140.98,04/10/2023
Delivery Units,Adults and Health,Other Agencies - Third Party P,0090637987,DYNAMIC PEOPLE LTD,75.53,04/10/2023
Delivery Units,Adults and Health,Other Agencies - Third Party P,0090637988,DYNAMIC PEOPLE LTD,281.96,04/10/2023
Delivery Units,Adults and Health,Other Agencies - Third Party P,0090637989,DYNAMIC PEOPLE LTD,246.72,04/10/2023
Delivery Units,Adults and Health,Other Agencies - Third Party P,0090637990,DYNAMIC PEOPLE LTD,90.63,04/10/2023
Delivery Units,Adults and Health,Other Agencies - Third Party P,0090637991,DYNAMIC PEOPLE LTD,75.53,04/10/2023
Delivery Units,Adults and Health,Other Agencies - Third Party P,0090637992,DYNAMIC PEOPLE LTD,573.99,04/10/2023
Delivery Units,Adults and Health,Other Agencies - Third Party P,0090637993,DYNAMIC PEOPLE LTD,276.93,04/10/2023
Delivery Units,Adults and Health,Other Agencies - Third Party P,0090637995,DYNAMIC PEOPLE LTD,105.74,04/10/2023
Delivery Units,Adults and Health,Other Agencies - Third Party P,0090637996,DYNAMIC PEOPLE LTD,100.70,04/10/2023
Delivery Units,Adults and Health,Other Agencies - Third Party P,0090637997,DYNAMIC PEOPLE LTD,246.72,04/10/2023
Delivery Units,Adults and Health,Other Agencies - Third Party P,0090637998,DYNAMIC PEOPLE LTD,181.26,04/10/2023
Delivery Units,Adults and Health,Other Agencies - Third Party P,0090637999,DYNAMIC PEOPLE LTD,307.14,04/10/2023
Delivery Units,Adults and Health,Other Agencies - Third Party P,0090638000,DYNAMIC PEOPLE LTD,654.55,04/10/2023
Delivery Units,Adults and Health,Other Agencies - Third Party P,0090638001,DYNAMIC PEOPLE LTD,251.75,04/10/2023
Delivery Units,Adults and Health,Other Agencies - Third Party P,0090638002,DYNAMIC PEOPLE LTD,241.68,04/10/2023
Delivery Units,Adults and Health,Other Agencies - Third Party P,0090638003,DYNAMIC PEOPLE LTD,352.45,04/10/2023
Delivery Units,Adults and Health,Other Agencies - Third Party P,0090638004,DYNAMIC PEOPLE LTD,"3,383.52",04/10/2023
Delivery Units,Adults and Health,Other Agencies - Third Party P,0090638005,DYNAMIC PEOPLE LTD,271.89,04/10/2023
Delivery Units,Adults and Health,Other Agencies - Third Party P,0090638006,DYNAMIC PEOPLE LTD,176.23,04/10/2023
Delivery Units,Adults and Health,Other Agencies - Third Party P,0090638007,DYNAMIC PEOPLE LTD,30.21,04/10/2023
Delivery Units,Adults and Health,Other Agencies - Third Party P,0090638008,DYNAMIC PEOPLE LTD,246.72,04/10/2023
Delivery Units,Adults and Health,Other Agencies - Third Party P,0090638010,DYNAMIC PEOPLE LTD,130.91,04/10/2023
Delivery Units,Adults and Health,Other Agencies - Third Party P,0090638011,DYNAMIC PEOPLE LTD,151.05,04/10/2023
Delivery Units,Adults and Health,Other Agencies - Third Party P,0090638012,DYNAMIC PEOPLE LTD,105.74,04/10/2023
Delivery Units,Adults and Health,Other Agencies - Third Party P,0090638013,DYNAMIC PEOPLE LTD,246.72,04/10/2023
Delivery Units,Adults and Health,Other Agencies - Third Party P,0090638014,DYNAMIC PEOPLE LTD,422.94,04/10/2023
Delivery Units,Adults and Health,Other Agencies - Third Party P,0090638015,DYNAMIC PEOPLE LTD,281.96,04/10/2023
Delivery Units,Adults and Health,Other Agencies - Third Party P,0090638016,DYNAMIC PEOPLE LTD,135.95,04/10/2023
Delivery Units,Adults and Health,Other Agencies - Third Party P,0090638017,DYNAMIC PEOPLE LTD,40.28,04/10/2023
Delivery Units,Adults and Health,Other Agencies - Third Party P,0090638018,DYNAMIC PEOPLE LTD,161.12,04/10/2023
Delivery Units,Adults and Health,Other Agencies - Third Party P,0090638019,DYNAMIC PEOPLE LTD,75.53,04/10/2023
Delivery Units,Adults and Health,Other Agencies - Third Party P,0090638022,DYNAMIC PEOPLE LTD,312.17,04/10/2023
Delivery Units,Adults and Health,Other Agencies - Third Party P,0090638023,DYNAMIC PEOPLE LTD,105.74,04/10/2023
Delivery Units,Adults and Health,Other Agencies - Third Party P,0090638024,DYNAMIC PEOPLE LTD,367.56,04/10/2023
Delivery Units,Adults and Health,Other Agencies - Third Party P,0090638026,DYNAMIC PEOPLE LTD,312.17,04/10/2023
Delivery Units,Adults and Health,Other Agencies - Third Party P,0090638029,DYNAMIC PEOPLE LTD,292.03,04/10/2023
Delivery Units,Adults and Health,Other Agencies - Third Party P,0090638030,DYNAMIC PEOPLE LTD,281.96,04/10/2023
Delivery Units,Adults and Health,Other Agencies - Third Party P,0090638031,DYNAMIC PEOPLE LTD,176.23,04/10/2023
Delivery Units,Adults and Health,Other Agencies - Third Party P,0090638034,DYNAMIC PEOPLE LTD,120.84,04/10/2023
Delivery Units,Adults and Health,Other Agencies - Third Party P,0090638035,DYNAMIC PEOPLE LTD,105.74,04/10/2023
Delivery Units,Adults and Health,Other Agencies - Third Party P,0090638037,DYNAMIC PEOPLE LTD,60.42,04/10/2023
Delivery Units,Adults and Health,Other Agencies - Third Party P,0090638039,DYNAMIC PEOPLE LTD,281.96,04/10/2023
Delivery Units,Adults and Health,Other Agencies - Third Party P,0090638040,DYNAMIC PEOPLE LTD,231.61,04/10/2023
Delivery Units,Adults and Health,Other Agencies - Third Party P,0090638042,DYNAMIC PEOPLE LTD,"1,691.76",04/10/2023
Delivery Units,Adults and Health,Other Agencies - Third Party P,0090638043,DYNAMIC PEOPLE LTD,181.26,04/10/2023
Delivery Units,Adults and Health,Other Agencies - Third Party P,0090638044,DYNAMIC PEOPLE LTD,90.63,04/10/2023
Delivery Units,Adults and Health,Other Agencies - Third Party P,0090638047,DYNAMIC PEOPLE LTD,140.98,04/10/2023
Delivery Units,Adults and Health,Other Agencies - Third Party P,0090638048,DYNAMIC PEOPLE LTD,45.32,04/10/2023
Delivery Units,Adults and Health,Other Agencies - Third Party P,0090638049,DYNAMIC PEOPLE LTD,302.10,04/10/2023
Delivery Units,Adults and Health,Other Agencies - Third Party P,0090638051,DYNAMIC PEOPLE LTD,266.86,04/10/2023
Delivery Units,Adults and Health,Other Agencies - Third Party P,0090638052,DYNAMIC PEOPLE LTD,312.17,04/10/2023
Delivery Units,Adults and Health,Other Agencies - Third Party P,0090638058,DYNAMIC PEOPLE LTD,140.98,04/10/2023
Delivery Units,Adults and Health,Other Agencies - Third Party P,0090638059,DYNAMIC PEOPLE LTD,302.10,04/10/2023
Delivery Units,Adults and Health,Other Agencies - Third Party P,0090638060,DYNAMIC PEOPLE LTD,302.10,04/10/2023
Delivery Units,Adults and Health,Other Agencies - Third Party P,0090638061,DYNAMIC PEOPLE LTD,161.12,04/10/2023
Delivery Units,Adults and Health,Other Agencies - Third Party P,0090638062,DYNAMIC PEOPLE LTD,30.21,04/10/2023
Delivery Units,Adults and Health,Other Agencies - Third Party P,0090638064,DYNAMIC PEOPLE LTD,50.35,04/10/2023
Delivery Units,Adults and Health,Other Agencies - Third Party P,0090638065,DYNAMIC PEOPLE LTD,50.35,04/10/2023
Delivery Units,Adults and Health,Other Agencies - Third Party P,0090638068,DYNAMIC PEOPLE LTD,156.09,04/10/2023
Delivery Units,Adults and Health,Other Agencies - Third Party P,0090638069,DYNAMIC PEOPLE LTD,458.19,04/10/2023
Delivery Units,Adults and Health,Other Agencies - Third Party P,0090638072,DYNAMIC PEOPLE LTD,176.23,04/10/2023
Delivery Units,Adults and Health,Other Agencies - Third Party P,0090638073,DYNAMIC PEOPLE LTD,226.58,04/10/2023
Delivery Units,Adults and Health,Other Agencies - Third Party P,0090638074,DYNAMIC PEOPLE LTD,151.05,04/10/2023
Delivery Units,Adults and Health,Other Agencies - Third Party P,0090638075,DYNAMIC PEOPLE LTD,337.35,04/10/2023
Delivery Units,Adults and Health,Other Agencies - Third Party P,0090638076,DYNAMIC PEOPLE LTD,140.98,04/10/2023
Delivery Units,Adults and Health,Other Agencies - Third Party P,0090638077,DYNAMIC PEOPLE LTD,176.23,04/10/2023
Delivery Units,Adults and Health,Other Agencies - Third Party P,0090638078,DYNAMIC PEOPLE LTD,"1,727.01",04/10/2023
Delivery Units,Adults and Health,Other Agencies - Third Party P,0090638079,DYNAMIC PEOPLE LTD,140.98,04/10/2023
Delivery Units,Adults and Health,Other Agencies - Third Party P,0090638080,DYNAMIC PEOPLE LTD,166.16,04/10/2023
Delivery Units,Adults and Health,Other Agencies - Third Party P,0090638081,DYNAMIC PEOPLE LTD,221.54,04/10/2023
Delivery Units,Adults and Health,Other Agencies - Third Party P,0090638082,DYNAMIC PEOPLE LTD,352.45,04/10/2023
Delivery Units,Adults and Health,Other Agencies - Third Party P,0090638084,DYNAMIC PEOPLE LTD,337.35,04/10/2023
Delivery Units,Adults and Health,Other Agencies - Third Party P,0090638085,DYNAMIC PEOPLE LTD,40.28,04/10/2023
Delivery Units,Adults and Health,Other Agencies - Third Party P,0090638086,DYNAMIC PEOPLE LTD,352.45,04/10/2023
Delivery Units,Adults and Health,Other Agencies - Third Party P,0090638087,DYNAMIC PEOPLE LTD,130.91,04/10/2023
Delivery Units,Adults and Health,Other Agencies - Third Party P,0090638089,DYNAMIC PEOPLE LTD,120.84,04/10/2023
Delivery Units,Adults and Health,Other Agencies - Third Party P,0090638090,DYNAMIC PEOPLE LTD,140.98,04/10/2023
Delivery Units,Adults and Health,Other Agencies - Third Party P,0090638091,DYNAMIC PEOPLE LTD,115.81,04/10/2023
Delivery Units,Adults and Health,Other Agencies - Third Party P,0090638095,DYNAMIC PEOPLE LTD,387.70,04/10/2023
Delivery Units,Adults and Health,Other Agencies - Third Party P,0090638098,DYNAMIC PEOPLE LTD,211.47,04/10/2023
Delivery Units,Adults and Health,Other Agencies - Third Party P,0090638100,DYNAMIC PEOPLE LTD,161.12,04/10/2023
Delivery Units,Adults and Health,Other Agencies - Third Party P,0090638104,DYNAMIC PEOPLE LTD,211.47,04/10/2023
Delivery Units,Adults and Health,Other Agencies - Third Party P,0090638105,DYNAMIC PEOPLE LTD,15.11,04/10/2023
Delivery Units,Adults and Health,Other Agencies - Third Party P,0090638106,DYNAMIC PEOPLE LTD,246.72,04/10/2023
Delivery Units,Adults and Health,Other Agencies - Third Party P,0090638107,DYNAMIC PEOPLE LTD,45.32,04/10/2023
Delivery Units,Adults and Health,Other Agencies - Third Party P,0090638108,DYNAMIC PEOPLE LTD,70.49,04/10/2023
Delivery Units,Adults and Health,Other Agencies - Third Party P,0090638109,DYNAMIC PEOPLE LTD,231.61,04/10/2023
Delivery Units,Adults and Health,Other Agencies - Third Party P,0090638110,DYNAMIC PEOPLE LTD,246.72,04/10/2023
Delivery Units,Adults and Health,Other Agencies - Third Party P,0090638111,DYNAMIC PEOPLE LTD,30.21,04/10/2023
Delivery Units,Adults and Health,Other Agencies - Third Party P,0090638112,DYNAMIC PEOPLE LTD,181.26,04/10/2023
Delivery Units,Adults and Health,Other Agencies - Third Party P,0090638116,DYNAMIC PEOPLE LTD,387.70,04/10/2023
Delivery Units,Adults and Health,Other Agencies - Third Party P,0090638117,DYNAMIC PEOPLE LTD,211.47,04/10/2023
Delivery Units,Adults and Health,Other Agencies - Third Party P,0090638120,DYNAMIC PEOPLE LTD,75.53,04/10/2023
Delivery Units,Adults and Health,Other Agencies - Third Party P,0090638121,DYNAMIC PEOPLE LTD,120.84,04/10/2023
Delivery Units,Adults and Health,Other Agencies - Third Party P,0090638123,DYNAMIC PEOPLE LTD,211.47,04/10/2023
Delivery Units,Adults and Health,Other Agencies - Third Party P,0090638124,DYNAMIC PEOPLE LTD,755.25,04/10/2023
Delivery Units,Adults and Health,Other Agencies - Third Party P,0090638125,DYNAMIC PEOPLE LTD,80.56,04/10/2023
Delivery Units,Adults and Health,Other Agencies - Third Party P,0090638126,DYNAMIC PEOPLE LTD,40.28,04/10/2023
Delivery Units,Adults and Health,Other Agencies - Third Party P,0090638128,DYNAMIC PEOPLE LTD,"1,112.74",04/10/2023
Delivery Units,Adults and Health,Other Agencies - Third Party P,0090638132,DYNAMIC PEOPLE LTD,50.35,04/10/2023
Delivery Units,Adults and Health,Other Agencies - Third Party P,0090638133,DYNAMIC PEOPLE LTD,352.45,04/10/2023
Delivery Units,Adults and Health,Other Agencies - Third Party P,0090638136,DYNAMIC PEOPLE LTD,90.63,04/10/2023
Delivery Units,Adults and Health,Other Agencies - Third Party P,0090638137,DYNAMIC PEOPLE LTD,422.94,04/10/2023
Delivery Units,Adults and Health,Other Agencies - Third Party P,0090638139,DYNAMIC PEOPLE LTD,281.96,04/10/2023
Delivery Units,Adults and Health,Other Agencies - Third Party P,0090638141,DYNAMIC PEOPLE LTD,775.39,04/10/2023
Delivery Units,Adults and Health,Other Agencies - Third Party P,0090638142,DYNAMIC PEOPLE LTD,70.49,04/10/2023
Delivery Units,Adults and Health,Other Agencies - Third Party P,0090638148,DYNAMIC PEOPLE LTD,236.65,04/10/2023
Delivery Units,Adults and Health,Other Agencies - Third Party P,0090638149,DYNAMIC PEOPLE LTD,246.72,04/10/2023
Delivery Units,Adults and Health,Other Agencies - Third Party P,0090638152,DYNAMIC PEOPLE LTD,75.53,04/10/2023
Delivery Units,Adults and Health,Other Agencies - Third Party P,0090638154,DYNAMIC PEOPLE LTD,140.98,04/10/2023
Delivery Units,Adults and Health,Other Agencies - Third Party P,0090638155,DYNAMIC PEOPLE LTD,75.53,04/10/2023
Delivery Units,Adults and Health,Other Agencies - Third Party P,0090638156,DYNAMIC PEOPLE LTD,281.96,04/10/2023
Delivery Units,Adults and Health,Other Agencies - Third Party P,0090638157,DYNAMIC PEOPLE LTD,246.72,04/10/2023
Delivery Units,Adults and Health,Other Agencies - Third Party P,0090638158,DYNAMIC PEOPLE LTD,90.63,04/10/2023
Delivery Units,Adults and Health,Other Agencies - Third Party P,0090638159,DYNAMIC PEOPLE LTD,75.53,04/10/2023
Delivery Units,Adults and Health,Other Agencies - Third Party P,0090638160,DYNAMIC PEOPLE LTD,573.99,04/10/2023
Delivery Units,Adults and Health,Other Agencies - Third Party P,0090638162,DYNAMIC PEOPLE LTD,105.74,04/10/2023
Delivery Units,Adults and Health,Other Agencies - Third Party P,0090638163,DYNAMIC PEOPLE LTD,100.70,04/10/2023
Delivery Units,Adults and Health,Other Agencies - Third Party P,0090638165,DYNAMIC PEOPLE LTD,246.72,04/10/2023
Delivery Units,Adults and Health,Other Agencies - Third Party P,0090638166,DYNAMIC PEOPLE LTD,181.26,04/10/2023
Delivery Units,Adults and Health,Other Agencies - Third Party P,0090638167,DYNAMIC PEOPLE LTD,307.14,04/10/2023
Delivery Units,Adults and Health,Other Agencies - Third Party P,0090638168,DYNAMIC PEOPLE LTD,654.55,04/10/2023
Delivery Units,Adults and Health,Other Agencies - Third Party P,0090638169,DYNAMIC PEOPLE LTD,251.75,04/10/2023
Delivery Units,Adults and Health,Other Agencies - Third Party P,0090638170,DYNAMIC PEOPLE LTD,191.33,04/10/2023
Delivery Units,Adults and Health,Other Agencies - Third Party P,0090638171,DYNAMIC PEOPLE LTD,352.45,04/10/2023
Delivery Units,Adults and Health,Other Agencies - Third Party P,0090638172,DYNAMIC PEOPLE LTD,"3,373.45",04/10/2023
Delivery Units,Adults and Health,Other Agencies - Third Party P,0090638173,DYNAMIC PEOPLE LTD,271.89,04/10/2023
Delivery Units,Adults and Health,Other Agencies - Third Party P,0090638174,DYNAMIC PEOPLE LTD,156.09,04/10/2023
Delivery Units,Adults and Health,Other Agencies - Third Party P,0090638175,DYNAMIC PEOPLE LTD,176.23,04/10/2023
Delivery Units,Adults and Health,Other Agencies - Third Party P,0090638176,DYNAMIC PEOPLE LTD,30.21,04/10/2023
Delivery Units,Adults and Health,Other Agencies - Third Party P,0090638177,DYNAMIC PEOPLE LTD,246.72,04/10/2023
Delivery Units,Adults and Health,Other Agencies - Third Party P,0090638179,DYNAMIC PEOPLE LTD,100.70,04/10/2023
Delivery Units,Adults and Health,Other Agencies - Third Party P,0090638180,DYNAMIC PEOPLE LTD,151.05,04/10/2023
Delivery Units,Adults and Health,Other Agencies - Third Party P,0090638181,DYNAMIC PEOPLE LTD,105.74,04/10/2023
Delivery Units,Adults and Health,Other Agencies - Third Party P,0090638182,DYNAMIC PEOPLE LTD,246.72,04/10/2023
Delivery Units,Adults and Health,Other Agencies - Third Party P,0090638183,DYNAMIC PEOPLE LTD,422.94,04/10/2023
Delivery Units,Adults and Health,Other Agencies - Third Party P,0090638184,DYNAMIC PEOPLE LTD,281.96,04/10/2023
Delivery Units,Adults and Health,Other Agencies - Third Party P,0090638185,DYNAMIC PEOPLE LTD,135.95,04/10/2023
Delivery Units,Adults and Health,Other Agencies - Third Party P,0090638186,DYNAMIC PEOPLE LTD,40.28,04/10/2023
Delivery Units,Adults and Health,Other Agencies - Third Party P,0090638187,DYNAMIC PEOPLE LTD,161.12,04/10/2023
Delivery Units,Adults and Health,Other Agencies - Third Party P,0090638188,DYNAMIC PEOPLE LTD,75.53,04/10/2023
Delivery Units,Adults and Health,Other Agencies - Third Party P,0090638191,DYNAMIC PEOPLE LTD,261.82,04/10/2023
Delivery Units,Adults and Health,Other Agencies - Third Party P,0090638192,DYNAMIC PEOPLE LTD,105.74,04/10/2023
Delivery Units,Adults and Health,Other Agencies - Third Party P,0090638193,DYNAMIC PEOPLE LTD,332.31,04/10/2023
Delivery Units,Adults and Health,Other Agencies - Third Party P,0090638195,DYNAMIC PEOPLE LTD,337.35,04/10/2023
Delivery Units,Adults and Health,Other Agencies - Third Party P,0090638198,DYNAMIC PEOPLE LTD,292.03,04/10/2023
Delivery Units,Adults and Health,Other Agencies - Third Party P,0090638199,DYNAMIC PEOPLE LTD,281.96,04/10/2023
Delivery Units,Adults and Health,Other Agencies - Third Party P,0090638200,DYNAMIC PEOPLE LTD,176.23,04/10/2023
Delivery Units,Adults and Health,Other Agencies - Third Party P,0090638203,DYNAMIC PEOPLE LTD,140.98,04/10/2023
Delivery Units,Adults and Health,Other Agencies - Third Party P,0090638204,DYNAMIC PEOPLE LTD,105.74,04/10/2023
Delivery Units,Adults and Health,Other Agencies - Third Party P,0090638206,DYNAMIC PEOPLE LTD,60.42,04/10/2023
Delivery Units,Adults and Health,Other Agencies - Third Party P,0090638208,DYNAMIC PEOPLE LTD,281.96,04/10/2023
Delivery Units,Adults and Health,Other Agencies - Third Party P,0090638209,DYNAMIC PEOPLE LTD,186.30,04/10/2023
Delivery Units,Adults and Health,Other Agencies - Third Party P,0090638211,DYNAMIC PEOPLE LTD,"1,691.76",04/10/2023
Delivery Units,Adults and Health,Other Agencies - Third Party P,0090638212,DYNAMIC PEOPLE LTD,181.26,04/10/2023
Delivery Units,Adults and Health,Other Agencies - Third Party P,0090638213,DYNAMIC PEOPLE LTD,90.63,04/10/2023
Delivery Units,Adults and Health,Other Agencies - Third Party P,0090638216,DYNAMIC PEOPLE LTD,140.98,04/10/2023
Delivery Units,Adults and Health,Other Agencies - Third Party P,0090638217,DYNAMIC PEOPLE LTD,45.32,04/10/2023
Delivery Units,Adults and Health,Other Agencies - Third Party P,0090638218,DYNAMIC PEOPLE LTD,302.10,04/10/2023
Delivery Units,Adults and Health,Other Agencies - Third Party P,0090638220,DYNAMIC PEOPLE LTD,266.86,04/10/2023
Delivery Units,Adults and Health,Other Agencies - Third Party P,0090638221,DYNAMIC PEOPLE LTD,352.45,04/10/2023
Delivery Units,Adults and Health,Other Agencies - Third Party P,0090638226,DYNAMIC PEOPLE LTD,140.98,04/10/2023
Delivery Units,Adults and Health,Other Agencies - Third Party P,0090638227,DYNAMIC PEOPLE LTD,302.10,04/10/2023
Delivery Units,Adults and Health,Other Agencies - Third Party P,0090638228,DYNAMIC PEOPLE LTD,302.10,04/10/2023
Delivery Units,Adults and Health,Other Agencies - Third Party P,0090638229,DYNAMIC PEOPLE LTD,161.12,04/10/2023
Delivery Units,Adults and Health,Other Agencies - Third Party P,0090638230,DYNAMIC PEOPLE LTD,30.21,04/10/2023
Delivery Units,Adults and Health,Other Agencies - Third Party P,0090638232,DYNAMIC PEOPLE LTD,50.35,04/10/2023
Delivery Units,Adults and Health,Other Agencies - Third Party P,0090638233,DYNAMIC PEOPLE LTD,50.35,04/10/2023
Delivery Units,Adults and Health,Other Agencies - Third Party P,0090638236,DYNAMIC PEOPLE LTD,156.09,04/10/2023
Delivery Units,Adults and Health,Other Agencies - Third Party P,0090638237,DYNAMIC PEOPLE LTD,458.19,04/10/2023
Delivery Units,Adults and Health,Other Agencies - Third Party P,0090638240,DYNAMIC PEOPLE LTD,176.23,04/10/2023
Delivery Units,Adults and Health,Other Agencies - Third Party P,0090638241,DYNAMIC PEOPLE LTD,276.93,04/10/2023
Delivery Units,Adults and Health,Other Agencies - Third Party P,0090638242,DYNAMIC PEOPLE LTD,226.58,04/10/2023
Delivery Units,Adults and Health,Other Agencies - Third Party P,0090638243,DYNAMIC PEOPLE LTD,151.05,04/10/2023
Delivery Units,Adults and Health,Other Agencies - Third Party P,0090638244,DYNAMIC PEOPLE LTD,337.35,04/10/2023
Delivery Units,Adults and Health,Other Agencies - Third Party P,0090638245,DYNAMIC PEOPLE LTD,140.98,04/10/2023
Delivery Units,Adults and Health,Other Agencies - Third Party P,0090638246,DYNAMIC PEOPLE LTD,75.53,04/10/2023
Delivery Units,Adults and Health,Other Agencies - Third Party P,0090638247,DYNAMIC PEOPLE LTD,"1,727.01",04/10/2023
Delivery Units,Adults and Health,Other Agencies - Third Party P,0090638248,DYNAMIC PEOPLE LTD,140.98,04/10/2023
Delivery Units,Adults and Health,Other Agencies - Third Party P,0090638249,DYNAMIC PEOPLE LTD,151.05,04/10/2023
Delivery Units,Adults and Health,Other Agencies - Third Party P,0090638250,DYNAMIC PEOPLE LTD,221.54,04/10/2023
Delivery Units,Adults and Health,Other Agencies - Third Party P,0090638251,DYNAMIC PEOPLE LTD,352.45,04/10/2023
Delivery Units,Adults and Health,Other Agencies - Third Party P,0090638252,DYNAMIC PEOPLE LTD,337.35,04/10/2023
Delivery Units,Adults and Health,Other Agencies - Third Party P,0090638253,DYNAMIC PEOPLE LTD,40.28,04/10/2023
Delivery Units,Adults and Health,Other Agencies - Third Party P,0090638254,DYNAMIC PEOPLE LTD,352.45,04/10/2023
Delivery Units,Adults and Health,Other Agencies - Third Party P,0090638255,DYNAMIC PEOPLE LTD,130.91,04/10/2023
Delivery Units,Adults and Health,Other Agencies - Third Party P,0090638257,DYNAMIC PEOPLE LTD,120.84,04/10/2023
Delivery Units,Adults and Health,Other Agencies - Third Party P,0090638258,DYNAMIC PEOPLE LTD,140.98,04/10/2023
Delivery Units,Adults and Health,Other Agencies - Third Party P,0090638259,DYNAMIC PEOPLE LTD,115.81,04/10/2023
Delivery Units,Adults and Health,Other Agencies - Third Party P,0090638263,DYNAMIC PEOPLE LTD,387.70,04/10/2023
Delivery Units,Adults and Health,Other Agencies - Third Party P,0090638266,DYNAMIC PEOPLE LTD,211.47,04/10/2023
Delivery Units,Adults and Health,Other Agencies - Third Party P,0090638268,DYNAMIC PEOPLE LTD,161.12,04/10/2023
Delivery Units,Adults and Health,Other Agencies - Third Party P,0090638272,DYNAMIC PEOPLE LTD,211.47,04/10/2023
Delivery Units,Adults and Health,Other Agencies - Third Party P,0090638273,DYNAMIC PEOPLE LTD,246.72,04/10/2023
Delivery Units,Adults and Health,Other Agencies - Third Party P,0090638274,DYNAMIC PEOPLE LTD,45.32,04/10/2023
Delivery Units,Adults and Health,Other Agencies - Third Party P,0090638275,DYNAMIC PEOPLE LTD,70.49,04/10/2023
Delivery Units,Adults and Health,Other Agencies - Third Party P,0090638277,DYNAMIC PEOPLE LTD,231.61,04/10/2023
Delivery Units,Adults and Health,Other Agencies - Third Party P,0090638278,DYNAMIC PEOPLE LTD,246.72,04/10/2023
Delivery Units,Adults and Health,Other Agencies - Third Party P,0090638279,DYNAMIC PEOPLE LTD,70.49,04/10/2023
Delivery Units,Adults and Health,Other Agencies - Third Party P,0090638280,DYNAMIC PEOPLE LTD,317.21,04/10/2023
Delivery Units,Adults and Health,Other Agencies - Third Party P,0090638284,DYNAMIC PEOPLE LTD,246.72,04/10/2023
Delivery Units,Adults and Health,Other Agencies - Third Party P,0090638285,DYNAMIC PEOPLE LTD,292.03,04/10/2023
Delivery Units,Adults and Health,Other Agencies - Third Party P,0090638286,DYNAMIC PEOPLE LTD,211.47,04/10/2023
Delivery Units,Adults and Health,Other Agencies - Third Party P,0090638287,DYNAMIC PEOPLE LTD,221.54,04/10/2023
Delivery Units,Adults and Health,Other Agencies - Third Party P,0090638290,DYNAMIC PEOPLE LTD,140.98,04/10/2023
Delivery Units,Adults and Health,Other Agencies - Third Party P,0090638292,DYNAMIC PEOPLE LTD,211.47,04/10/2023
Delivery Units,Adults and Health,Other Agencies - Third Party P,0090638293,DYNAMIC PEOPLE LTD,694.83,04/10/2023
Delivery Units,Adults and Health,Other Agencies - Third Party P,0090638294,DYNAMIC PEOPLE LTD,75.53,04/10/2023
Delivery Units,Adults and Health,Other Agencies - Third Party P,0090638295,DYNAMIC PEOPLE LTD,80.56,04/10/2023
Delivery Units,Adults and Health,Other Agencies - Third Party P,0090638296,DYNAMIC PEOPLE LTD,40.28,04/10/2023
Delivery Units,Adults and Health,Other Agencies - Third Party P,0090638298,DYNAMIC PEOPLE LTD,"1,112.74",04/10/2023
Delivery Units,Adults and Health,Other Agencies - Third Party P,0090638301,DYNAMIC PEOPLE LTD,105.74,04/10/2023
Delivery Units,Adults and Health,Other Agencies - Third Party P,0090638379,DYNAMIC PEOPLE LTD,50.35,04/10/2023
Delivery Units,Adults and Health,Other Agencies - Third Party P,0090638380,DYNAMIC PEOPLE LTD,352.45,04/10/2023
Delivery Units,Adults and Health,Other Agencies - Third Party P,0090638383,DYNAMIC PEOPLE LTD,90.63,04/10/2023
Delivery Units,Adults and Health,Other Agencies - Third Party P,0090638384,DYNAMIC PEOPLE LTD,422.94,04/10/2023
Delivery Units,Adults and Health,Other Agencies - Third Party P,0090638386,DYNAMIC PEOPLE LTD,281.96,04/10/2023
Delivery Units,Adults and Health,Other Agencies - Third Party P,0090638388,DYNAMIC PEOPLE LTD,775.39,04/10/2023
Delivery Units,Adults and Health,Other Agencies - Third Party P,0090638389,DYNAMIC PEOPLE LTD,70.49,04/10/2023
Delivery Units,Adults and Health,Other Agencies - Third Party P,0090638395,DYNAMIC PEOPLE LTD,236.65,04/10/2023
Delivery Units,Adults and Health,Other Agencies - Third Party P,0090638396,DYNAMIC PEOPLE LTD,246.72,04/10/2023
Delivery Units,Adults and Health,Other Agencies - Third Party P,0090638399,DYNAMIC PEOPLE LTD,75.53,04/10/2023
Delivery Units,Adults and Health,Other Agencies - Third Party P,0090638401,DYNAMIC PEOPLE LTD,140.98,04/10/2023
Delivery Units,Adults and Health,Other Agencies - Third Party P,0090638402,DYNAMIC PEOPLE LTD,75.53,04/10/2023
Delivery Units,Adults and Health,Other Agencies - Third Party P,0090638403,DYNAMIC PEOPLE LTD,281.96,04/10/2023
Delivery Units,Adults and Health,Other Agencies - Third Party P,0090638404,DYNAMIC PEOPLE LTD,246.72,04/10/2023
Delivery Units,Adults and Health,Other Agencies - Third Party P,0090638405,DYNAMIC PEOPLE LTD,90.63,04/10/2023
Delivery Units,Adults and Health,Other Agencies - Third Party P,0090638406,DYNAMIC PEOPLE LTD,75.53,04/10/2023
Delivery Units,Adults and Health,Other Agencies - Third Party P,0090638407,DYNAMIC PEOPLE LTD,573.99,04/10/2023
Delivery Units,Adults and Health,Other Agencies - Third Party P,0090638409,DYNAMIC PEOPLE LTD,105.74,04/10/2023
Delivery Units,Adults and Health,Other Agencies - Third Party P,0090638410,DYNAMIC PEOPLE LTD,201.40,04/10/2023
Delivery Units,Adults and Health,Other Agencies - Third Party P,0090638412,DYNAMIC PEOPLE LTD,246.72,04/10/2023
Delivery Units,Adults and Health,Other Agencies - Third Party P,0090638413,DYNAMIC PEOPLE LTD,181.26,04/10/2023
Delivery Units,Adults and Health,Other Agencies - Third Party P,0090638414,DYNAMIC PEOPLE LTD,307.14,04/10/2023
Delivery Units,Adults and Health,Other Agencies - Third Party P,0090638415,DYNAMIC PEOPLE LTD,654.55,04/10/2023
Delivery Units,Adults and Health,Other Agencies - Third Party P,0090638416,DYNAMIC PEOPLE LTD,251.75,04/10/2023
Delivery Units,Adults and Health,Other Agencies - Third Party P,0090638417,DYNAMIC PEOPLE LTD,241.68,04/10/2023
Delivery Units,Adults and Health,Other Agencies - Third Party P,0090638418,DYNAMIC PEOPLE LTD,352.45,04/10/2023
Delivery Units,Adults and Health,Other Agencies - Third Party P,0090638419,DYNAMIC PEOPLE LTD,271.89,04/10/2023
Delivery Units,Adults and Health,Other Agencies - Third Party P,0090638420,DYNAMIC PEOPLE LTD,156.09,04/10/2023
Delivery Units,Adults and Health,Other Agencies - Third Party P,0090638421,DYNAMIC PEOPLE LTD,176.23,04/10/2023
Delivery Units,Adults and Health,Other Agencies - Third Party P,0090638422,DYNAMIC PEOPLE LTD,30.21,04/10/2023
Delivery Units,Adults and Health,Other Agencies - Third Party P,0090638423,DYNAMIC PEOPLE LTD,246.72,04/10/2023
Delivery Units,Adults and Health,Other Agencies - Third Party P,0090638425,DYNAMIC PEOPLE LTD,100.70,04/10/2023
Delivery Units,Adults and Health,Other Agencies - Third Party P,0090638426,DYNAMIC PEOPLE LTD,151.05,04/10/2023
Delivery Units,Adults and Health,Other Agencies - Third Party P,0090638427,DYNAMIC PEOPLE LTD,105.74,04/10/2023
Delivery Units,Adults and Health,Other Agencies - Third Party P,0090638428,DYNAMIC PEOPLE LTD,246.72,04/10/2023
Delivery Units,Adults and Health,Other Agencies - Third Party P,0090638429,DYNAMIC PEOPLE LTD,422.94,04/10/2023
Delivery Units,Adults and Health,Other Agencies - Third Party P,0090638430,DYNAMIC PEOPLE LTD,281.96,04/10/2023
Delivery Units,Adults and Health,Other Agencies - Third Party P,0090638431,DYNAMIC PEOPLE LTD,135.95,04/10/2023
Delivery Units,Adults and Health,Other Agencies - Third Party P,0090638432,DYNAMIC PEOPLE LTD,40.28,04/10/2023
Delivery Units,Adults and Health,Other Agencies - Third Party P,0090638433,DYNAMIC PEOPLE LTD,161.12,04/10/2023
Delivery Units,Adults and Health,Other Agencies - Third Party P,0090638434,DYNAMIC PEOPLE LTD,75.53,04/10/2023
Delivery Units,Adults and Health,Other Agencies - Third Party P,0090638437,DYNAMIC PEOPLE LTD,231.61,04/10/2023
Delivery Units,Adults and Health,Other Agencies - Third Party P,0090638438,DYNAMIC PEOPLE LTD,105.74,04/10/2023
Delivery Units,Adults and Health,Other Agencies - Third Party P,0090638439,DYNAMIC PEOPLE LTD,352.45,04/10/2023
Delivery Units,Adults and Health,Other Agencies - Third Party P,0090638441,DYNAMIC PEOPLE LTD,221.54,04/10/2023
Delivery Units,Adults and Health,Other Agencies - Third Party P,0090638444,DYNAMIC PEOPLE LTD,292.03,04/10/2023
Delivery Units,Adults and Health,Other Agencies - Third Party P,0090638445,DYNAMIC PEOPLE LTD,281.96,04/10/2023
Delivery Units,Adults and Health,Other Agencies - Third Party P,0090638446,DYNAMIC PEOPLE LTD,266.86,04/10/2023
Delivery Units,Adults and Health,Other Agencies - Third Party P,0090638449,DYNAMIC PEOPLE LTD,120.84,04/10/2023
Delivery Units,Adults and Health,Other Agencies - Third Party P,0090638450,DYNAMIC PEOPLE LTD,105.74,04/10/2023
Delivery Units,Adults and Health,Other Agencies - Third Party P,0090638452,DYNAMIC PEOPLE LTD,60.42,04/10/2023
Delivery Units,Adults and Health,Other Agencies - Third Party P,0090638454,DYNAMIC PEOPLE LTD,281.96,04/10/2023
Delivery Units,Adults and Health,Other Agencies - Third Party P,0090638455,DYNAMIC PEOPLE LTD,186.30,04/10/2023
Delivery Units,Adults and Health,Other Agencies - Third Party P,0090638457,DYNAMIC PEOPLE LTD,"1,691.76",04/10/2023
Delivery Units,Adults and Health,Other Agencies - Third Party P,0090638458,DYNAMIC PEOPLE LTD,181.26,04/10/2023
Delivery Units,Adults and Health,Other Agencies - Third Party P,0090638459,DYNAMIC PEOPLE LTD,90.63,04/10/2023
Delivery Units,Adults and Health,Other Agencies - Third Party P,0090638462,DYNAMIC PEOPLE LTD,140.98,04/10/2023
Delivery Units,Adults and Health,Other Agencies - Third Party P,0090638463,DYNAMIC PEOPLE LTD,45.32,04/10/2023
Delivery Units,Adults and Health,Other Agencies - Third Party P,0090638464,DYNAMIC PEOPLE LTD,302.10,04/10/2023
Delivery Units,Adults and Health,Other Agencies - Third Party P,0090638466,DYNAMIC PEOPLE LTD,266.86,04/10/2023
Delivery Units,Adults and Health,Other Agencies - Third Party P,0090638467,DYNAMIC PEOPLE LTD,332.31,04/10/2023
Delivery Units,Adults and Health,Other Agencies - Third Party P,0090638471,DYNAMIC PEOPLE LTD,100.70,04/10/2023
Delivery Units,Adults and Health,Other Agencies - Third Party P,0090638472,DYNAMIC PEOPLE LTD,302.10,04/10/2023
Delivery Units,Adults and Health,Other Agencies - Third Party P,0090638473,DYNAMIC PEOPLE LTD,302.10,04/10/2023
Delivery Units,Adults and Health,Other Agencies - Third Party P,0090638474,DYNAMIC PEOPLE LTD,161.12,04/10/2023
Delivery Units,Adults and Health,Other Agencies - Third Party P,0090638475,DYNAMIC PEOPLE LTD,30.21,04/10/2023
Delivery Units,Adults and Health,Other Agencies - Third Party P,0090638477,DYNAMIC PEOPLE LTD,50.35,04/10/2023
Delivery Units,Adults and Health,Other Agencies - Third Party P,0090638478,DYNAMIC PEOPLE LTD,50.35,04/10/2023
Delivery Units,Adults and Health,Other Agencies - Third Party P,0090638480,DYNAMIC PEOPLE LTD,156.09,04/10/2023
Delivery Units,Adults and Health,Other Agencies - Third Party P,0090638481,DYNAMIC PEOPLE LTD,458.19,04/10/2023
Delivery Units,Adults and Health,Other Agencies - Third Party P,0090638484,DYNAMIC PEOPLE LTD,176.23,04/10/2023
Delivery Units,Adults and Health,Other Agencies - Third Party P,0090638485,DYNAMIC PEOPLE LTD,15.11,04/10/2023
Delivery Units,Adults and Health,Other Agencies - Third Party P,0090638486,DYNAMIC PEOPLE LTD,226.58,04/10/2023
Delivery Units,Adults and Health,Other Agencies - Third Party P,0090638487,DYNAMIC PEOPLE LTD,100.70,04/10/2023
Delivery Units,Adults and Health,Other Agencies - Third Party P,0090638488,DYNAMIC PEOPLE LTD,322.24,04/10/2023
Delivery Units,Adults and Health,Other Agencies - Third Party P,0090638489,DYNAMIC PEOPLE LTD,140.98,04/10/2023
Delivery Units,Adults and Health,Other Agencies - Third Party P,0090638490,DYNAMIC PEOPLE LTD,"1,727.01",04/10/2023
Delivery Units,Adults and Health,Other Agencies - Third Party P,0090638491,DYNAMIC PEOPLE LTD,140.98,04/10/2023
Delivery Units,Adults and Health,Other Agencies - Third Party P,0090638492,DYNAMIC PEOPLE LTD,166.16,04/10/2023
Delivery Units,Adults and Health,Other Agencies - Third Party P,0090638493,DYNAMIC PEOPLE LTD,221.54,04/10/2023
Delivery Units,Adults and Health,Other Agencies - Third Party P,0090638494,DYNAMIC PEOPLE LTD,352.45,04/10/2023
Delivery Units,Adults and Health,Other Agencies - Third Party P,0090638495,DYNAMIC PEOPLE LTD,337.35,04/10/2023
Delivery Units,Adults and Health,Other Agencies - Third Party P,0090638496,DYNAMIC PEOPLE LTD,40.28,04/10/2023
Delivery Units,Adults and Health,Other Agencies - Third Party P,0090638497,DYNAMIC PEOPLE LTD,90.63,04/10/2023
Delivery Units,Adults and Health,Other Agencies - Third Party P,0090638498,DYNAMIC PEOPLE LTD,130.91,04/10/2023
Delivery Units,Adults and Health,Other Agencies - Third Party P,0090638500,DYNAMIC PEOPLE LTD,100.70,04/10/2023
Delivery Units,Adults and Health,Other Agencies - Third Party P,0090638501,DYNAMIC PEOPLE LTD,140.98,04/10/2023
Delivery Units,Adults and Health,Other Agencies - Third Party P,0090638502,DYNAMIC PEOPLE LTD,115.81,04/10/2023
Delivery Units,Adults and Health,Other Agencies - Third Party P,0090638504,DYNAMIC PEOPLE LTD,387.70,04/10/2023
Delivery Units,Adults and Health,Other Agencies - Third Party P,0090638506,DYNAMIC PEOPLE LTD,211.47,04/10/2023
Delivery Units,Adults and Health,Other Agencies - Third Party P,0090638508,DYNAMIC PEOPLE LTD,161.12,04/10/2023
Delivery Units,Adults and Health,Other Agencies - Third Party P,0090638510,DYNAMIC PEOPLE LTD,211.47,04/10/2023
Delivery Units,Adults and Health,Other Agencies - Third Party P,0090638511,DYNAMIC PEOPLE LTD,15.11,04/10/2023
Delivery Units,Adults and Health,Other Agencies - Third Party P,0090638512,DYNAMIC PEOPLE LTD,246.72,04/10/2023
Delivery Units,Adults and Health,Other Agencies - Third Party P,0090638513,DYNAMIC PEOPLE LTD,30.21,04/10/2023
Delivery Units,Adults and Health,Other Agencies - Third Party P,0090638514,DYNAMIC PEOPLE LTD,70.49,04/10/2023
Delivery Units,Adults and Health,Other Agencies - Third Party P,0090638515,DYNAMIC PEOPLE LTD,201.40,04/10/2023
Delivery Units,Adults and Health,Other Agencies - Third Party P,0090638516,DYNAMIC PEOPLE LTD,246.72,04/10/2023
Delivery Units,Adults and Health,Other Agencies - Third Party P,0090638517,DYNAMIC PEOPLE LTD,70.49,04/10/2023
Delivery Units,Adults and Health,Other Agencies - Third Party P,0090638518,DYNAMIC PEOPLE LTD,317.21,04/10/2023
Delivery Units,Adults and Health,Other Agencies - Third Party P,0090638522,DYNAMIC PEOPLE LTD,246.72,04/10/2023
Delivery Units,Adults and Health,Other Agencies - Third Party P,0090638523,DYNAMIC PEOPLE LTD,140.98,04/10/2023
Delivery Units,Adults and Health,Other Agencies - Third Party P,0090638525,DYNAMIC PEOPLE LTD,211.47,04/10/2023
Delivery Units,Adults and Health,Other Agencies - Third Party P,0090638527,DYNAMIC PEOPLE LTD,221.54,04/10/2023
Delivery Units,Adults and Health,Other Agencies - Third Party P,0090638529,DYNAMIC PEOPLE LTD,140.98,04/10/2023
Delivery Units,Adults and Health,Other Agencies - Third Party P,0090638531,DYNAMIC PEOPLE LTD,211.47,04/10/2023
Delivery Units,Adults and Health,Other Agencies - Third Party P,0090638533,DYNAMIC PEOPLE LTD,105.74,04/10/2023
Delivery Units,Adults and Health,Other Agencies - Third Party P,0090638534,DYNAMIC PEOPLE LTD,80.56,04/10/2023
Delivery Units,Adults and Health,Other Agencies - Third Party P,0090638535,DYNAMIC PEOPLE LTD,40.28,04/10/2023
Delivery Units,Adults and Health,Other Agencies - Third Party P,0090638537,DYNAMIC PEOPLE LTD,"1,112.74",04/10/2023
Delivery Units,Adults and Health,Other Agencies - Third Party P,0090638541,DYNAMIC PEOPLE LTD,50.35,04/10/2023
Delivery Units,Adults and Health,Other Agencies - Third Party P,0090638542,DYNAMIC PEOPLE LTD,352.45,04/10/2023
Delivery Units,Adults and Health,Other Agencies - Third Party P,0090638545,DYNAMIC PEOPLE LTD,90.63,04/10/2023
